Workbook

Sheet BEP
B2: Produkcja kapitałochłonna | C2: A. | N2: Produkcja pracochłonna | O2: B. | AC2: A | AF2: B
AA3: q | AB3: s | AC3: ks | AD3: kz | AE3: KC | AF3: ks | AG3: kz | AH3: KC
B4: C j | C4: =D4/10 -> 1.5 | D4: 15 | N4: C j | O4: =C4 -> 1.5 | P4: 9 | AA4: 0 | AB4: =AA4*$C$4 -> 0 | AC4: =C$8 -> 15000 | AD4: =AA4*$C$6 -> 0 | AE4: =AC4+AD4 -> 15000 | AF4: =$O$8 -> 2000 | AG4: =$O$6*AA4 -> 0 | AH4: =AF4+AG4 -> 2000
AA5: 1000 | AB5: 1500 | AC5: 15000 | AD5: 200 | AE5: 15200 | AF5: 2000 | AG5: 1000 | AH5: 3000
B6: Kz j | C6: =D6/10 -> 0.2 | D6: 2 | N6: Kz j | O6: =P6/10 -> 1 | P6: 10 | AA6: 2000 | AB6: 3000 | AC6: 15000 | AD6: 400 | AE6: 15400 | AF6: 2000 | AG6: 2000 | AH6: 4000
AA7: 3000 | AB7: 4500 | AC7: 15000 | AD7: 600 | AE7: 15600 | AF7: 2000 | AG7: 3000 | AH7: 5000
B8: KS | C8: =D8*100 -> 15000 | D8: 150 | N8: KS | O8: =P8*100 -> 2000 | P8: 20 | AA8: 4000 | AB8: 6000 | AC8: 15000 | AD8: 800 | AE8: 15800 | AF8: 2000 | AG8: 4000 | AH8: 6000
AA9: 5000 | AB9: 7500 | AC9: 15000 | AD9: 1000 | AE9: 16000 | AF9: 2000 | AG9: 5000 | AH9: 7000
B10: BEP | C10: =C8/(C4-C6) -> 11538.46154 | N10: BEP | O10: =O8/(O4-O6) -> 4000 | AA10: 6000 | AB10: 9000 | AC10: 15000 | AD10: 1200 | AE10: 16200 | AF10: 2000 | AG10: 6000 | AH10: 8000
B11: BEP ' | C11: =C10*C4 -> 17307.69231 | N11: BEP ' | O11: =O10*O4 -> 6000 | AA11: 7000 | AB11: 10500 | AC11: 15000 | AD11: 1400 | AE11: 16400 | AF11: 2000 | AG11: 7000 | AH11: 9000
AA12: 8000 | AB12: 12000 | AC12: 15000 | AD12: 1600 | AE12: 16600 | AF12: 2000 | AG12: 8000 | AH12: 10000
B13: DOL | C13: =C27/C29 -> 2.192662739 | N13: DOL | O13: =O27/O29 -> 1.232382502 | AA13: 9000 | AB13: 13500 | AC13: 15000 | AD13: 1800 | AE13: 16800 | AF13: 2000 | AG13: 9000 | AH13: 11000
AA14: 10000 | AB14: 15000 | AC14: 15000 | AD14: 2000 | AE14: 17000 | AF14: 2000 | AG14: 10000 | AH14: 12000
B15: % KS | C15: =C8/(C8+(H31*C6)) -> 0.779520439 | N15: % KS | O15: =O8/(O8+(H31*O6)) -> 0.08615861802 | AA15: 11000 | AB15: 16500 | AC15: 15000 | AD15: 2200 | AE15: 17200 | AF15: 2000 | AG15: 11000 | AH15: 13000
B16: % KZ | C16: =(H31*C6)/(C8+(H31*C6)) -> 0.220479561 | N16: % KZ | O16: =(O6*H31)/(O8+(O6*H31)) -> 0.913841382 | AA16: 12000 | AB16: 18000 | AC16: 15000 | AD16: 2400 | AE16: 17400 | AF16: 2000 | AG16: 12000 | AH16: 14000
AA17: 13000 | AB17: 19500 | AC17: 15000 | AD17: 2600 | AE17: 17600 | AF17: 2000 | AG17: 13000 | AH17: 15000
B18: Margines bezp. | C18: =IFERROR((H31-C10)/H31,"-") -> 0.4560664904 | N18: Margines bezp. | O18: =IFERROR((H31-O10)/H31,"-") -> 0.8114363833 | AA18: 14000 | AB18: 21000 | AC18: 15000 | AD18: 2800 | AE18: 17800 | AF18: 2000 | AG18: 14000 | AH18: 16000
AA19: 15000 | AB19: 22500 | AC19: 15000 | AD19: 3000 | AE19: 18000 | AF19: 2000 | AG19: 15000 | AH19: 17000
B20: Nowy popyt | C20: 20000 | N20: Nowy popyt | O20: =C20 -> 20000 | AA20: 16000 | AB20: 24000 | AC20: 15000 | AD20: 3200 | AE20: 18200 | AF20: 2000 | AG20: 16000 | AH20: 18000
B21: Nowy WO | C21: =IFERROR(C29*(1+(C13*((C20-H31)/H31))),"-") -> 11000 | N21: Nowy WO | O21: =IFERROR(O29*(1+(O13*((O20-H31)/H31))),"-") -> 8000 | AA21: 17000 | AB21: 25500 | AC21: 15000 | AD21: 3400 | AE21: 18400 | AF21: 2000 | AG21: 17000 | AH21: 19000
B22: % ZM S | C22: =D22/100 -> 1 | D22: 100 | N22: % ZM S | O22: =C22 -> 1 | P22: 100 | AA22: 18000 | AB22: 27000 | AC22: 15000 | AD22: 3600 | AE22: 18600 | AF22: 2000 | AG22: 18000 | AH22: 20000
B23: % ZM WO | C23: =C22*C13 -> 2.192662739 | N23: % ZM WO | O23: =O22*O13 -> 1.232382502 | AA23: 19000 | AB23: 28500 | AC23: 15000 | AD23: 3800 | AE23: 18800 | AF23: 2000 | AG23: 19000 | AH23: 21000
AA24: 20000 | AB24: 30000 | AC24: 15000 | AD24: 4000 | AE24: 19000 | AF24: 2000 | AG24: 20000 | AH24: 22000
B25: Przychody | C25: =H31*C4 -> 31819.5 | N25: Przychody | O25: =H31*O4 -> 31819.5 | AA25: 21000 | AB25: 31500 | AC25: 15000 | AD25: 4200 | AE25: 19200 | AF25: 2000 | AG25: 21000 | AH25: 23000
B26: Koszty zmienne | C26: =H31*C6 -> 4242.6 | N26: Koszty zmienne | O26: =H31*O6 -> 21213 | AA26: 22000 | AB26: 33000 | AC26: 15000 | AD26: 4400 | AE26: 19400 | AF26: 2000 | AG26: 22000 | AH26: 24000
B27: MB | C27: =H31*(C4-C6) -> 27576.9 | N27: MB | O27: =H31*(O4-O6) -> 10606.5 | AA27: 23000 | AB27: 34500 | AC27: 15000 | AD27: 4600 | AE27: 19600 | AF27: 2000 | AG27: 23000 | AH27: 25000
B28: Koszty stałe | C28: =C8 -> 15000 | N28: Koszty stałe | O28: =O8 -> 2000 | AA28: 24000 | AB28: 36000 | AC28: 15000 | AD28: 4800 | AE28: 19800 | AF28: 2000 | AG28: 24000 | AH28: 26000
B29: Wynik operacyjny | C29: =C27-C8 -> 12576.9 | N29: Wynik operacyjny | O29: =O27-O8 -> 8606.5 | AA29: 25000 | AB29: 37500 | AC29: 15000 | AD29: 5000 | AE29: 20000 | AF29: 2000 | AG29: 25000 | AH29: 27000
AA30: 26000 | AB30: 39000 | AC30: 15000 | AD30: 5200 | AE30: 20200 | AF30: 2000 | AG30: 26000 | AH30: 28000
B31: Koszty całkowite | C31: =H31*C6+C8 -> 19242.6 | F31: Popyt na wyroby | H31: 21213 | N31: Koszty całkowite | O31: =H31*O6+O8 -> 23213 | AA31: 27000 | AB31: 40500 | AC31: 15000 | AD31: 5400 | AE31: 20400 | AF31: 2000 | AG31: 27000 | AH31: 29000
AA32: 28000 | AB32: 42000 | AC32: 15000 | AD32: 5600 | AE32: 20600 | AF32: 2000 | AG32: 28000 | AH32: 30000
AA33: 29000 | AB33: 43500 | AC33: 15000 | AD33: 5800 | AE33: 20800 | AF33: 2000 | AG33: 29000 | AH33: 31000
AA34: 30000 | AB34: 45000 | AC34: 15000 | AD34: 6000 | AE34: 21000 | AF34: 2000 | AG34: 30000 | AH34: 32000
AB38: =H31 -> 21213 | AC38: =C31 -> 19242.6 | AE38: =H31 -> 21213 | AF38: =O31 -> 23213
AB39: =H31 -> 21213 | AC39: =C25 -> 31819.5 | AE39: =H31 -> 21213 | AF39: =O25 -> 31819.5

Sheet Dźwignie
B2: KAPITAŁ CAŁKOWITY = | D2: 200000 | E2: ="% udział kapitału własnego = " & TEXT( $D$3/$D$2,"0%") -> % udział kapitału własnego = 50%
B3: ="KAPITAŁ WŁASNY (" & TEXT( $D$3/$D$2,"0%") & ") =" -> KAPITAŁ WŁASNY (50%) = | D3: =$D$2*$AF$12/100 -> 100000
B4: ="KAPITAŁ OBCY (" & TEXT( $D$4/$D$2,"0%") & ") =" -> KAPITAŁ OBCY (50%) = | D4: =$D$2-$D$3 -> 100000 | E4: TECHNOLOGIA A
B5: akcje w szt. = | D5: =D3/$D$7 -> 10000 | E5: Koszt zmienny jedn. = | G5: =AI12/100 -> 1
B6: odsetki = | D6: =D4*$D$8 -> 20000 | E6: Koszty stałe = | G6: =AI13*1000 -> 50000
B7: cena 1 akcji (zł) = | D7: 10 | E7: TECHNOLOGIA B | J7: Cena jednostkowa = | L7: =1+AF15/100 -> 1.5
B8: oprocentowanie = | D8: 0.2 | E8: Koszt zmienny jedn. = | G8: =AI14/100 -> 0.5 | J8: Przeciętny popyt E(Q) = | L8: =AF13*1000 -> 350000
B9: stopa podatku = | D9: 0.19 | E9: Koszty stałe = | G9: =AI15*1000 -> 150000 | J9: Zmienność popytu S(Q) = | L9: =AF14*500 -> 50000
C11: E (EBIT) | D11: S (EBIT) | E11: cv (EBIT) | F11: MIN (EBIT) | G11: MAX (EBIT) | I11: E (EBIT) | J11: S (EBIT) | K11: cv (EBIT) | L11: MIN (EBIT) | M11: MAX (EBIT)
B12: EBIT A -> | C12: =MC!I7 -> 125186.2521 | D12: =MC!I8 -> 24038.17321 | E12: =MC!I9 -> 0.1920192737 | F12: =MC!I5 -> 49793.87222 | G12: =MC!I4 -> 208332.7903 | H12: EBIT B -> | I12: =MC!V7 -> 200372.5042 | J12: =MC!V8 -> 48076.34642 | K12: =MC!V9 -> 0.2399348484 | L12: =MC!V5 -> 49587.74444 | M12: =MC!V4 -> 366665.5805 | AE12: KW | AF12: 50 | AH12: kzjA | AI12: 100
AE13: E(Q) | AF13: 350 | AH13: ksA | AI13: 50
AE14: S(Q) | AF14: 100 | AH14: kzjB | AI14: 50
AE15: cj | AF15: 50 | AH15: ksB | AI15: 150
AE19: -50000 | AF19: =FREQUENCY(popyt,AE19:AE35) -> 0 | AH19: =AI19/1000 -> -250 | AI19: -250000 | AJ19: =FREQUENCY(EBIT_A,$AI$19:$AI$54) -> 0 | AK19: =FREQUENCY(EBIT_B,$AI$19:$AI$54) -> 0 | AM19: -15 | AN19: =FREQUENCY(EPS_A,$AM$19:$AM$59) -> 0 | AO19: =FREQUENCY(EPS_B,$AM$19:$AM$59) -> 0
C20: E (EPS) | D20: S (EPS) | E20: cv (EPS) | F20: MIN (EPS) | G20: MAX (EPS) | I20: E (EPS) | J20: S (EPS) | K20: cv (EPS) | L20: MIN (EPS) | M20: MAX (EPS) | AE20: 0 | AF20: 0 | AH20: =AI20/1000 -> -232.8571429 | AI20: =AI19+($AI$54-$AI$19)/35 -> -232857.1429 | AJ20: 0 | AK20: 0 | AM20: -14 | AN20: 0 | AO20: 0
B21: EPS A -> | C21: =MC!L7 -> 8.52008642 | D21: =MC!L8 -> 1.94709203 | E21: =MC!L9 -> 0.2285296104 | F21: =MC!L5 -> 2.41330365 | G21: =MC!L4 -> 15.25495601 | H21: EPS B -> | I21: =MC!Y7 -> 14.61017284 | J21: =MC!Y8 -> 3.89418406 | K21: =MC!Y9 -> 0.2665392191 | L21: =MC!Y5 -> 2.3966073 | M21: =MC!Y4 -> 28.07991202 | AE21: 50000 | AF21: 0 | AH21: -215.7142857 | AI21: -215714.2857 | AJ21: 0 | AK21: 0 | AM21: -13 | AN21: 0 | AO21: 0
AE22: 100000 | AF22: 0 | AH22: -198.5714286 | AI22: -198571.4286 | AJ22: 0 | AK22: 0 | AM22: -12 | AN22: 0 | AO22: 0
AE23: 150000 | AF23: 0 | AH23: -181.4285714 | AI23: -181428.5714 | AJ23: 0 | AK23: 0 | AM23: -11 | AN23: 0 | AO23: 0
AE24: 200000 | AF24: 1 | AH24: -164.2857143 | AI24: -164285.7143 | AJ24: 0 | AK24: 0 | AM24: -10 | AN24: 0 | AO24: 0
AE25: 250000 | AF25: 16 | AH25: -147.1428571 | AI25: -147142.8571 | AJ25: 0 | AK25: 0 | AM25: -9 | AN25: 0 | AO25: 0
AE26: 300000 | AF26: 122 | AH26: -130 | AI26: -130000 | AJ26: 0 | AK26: 0 | AM26: -8 | AN26: 0 | AO26: 0
AE27: 350000 | AF27: 363 | AH27: -112.8571429 | AI27: -112857.1429 | AJ27: 0 | AK27: 0 | AM27: -7 | AN27: 0 | AO27: 0
AE28: 400000 | AF28: 353 | AH28: -95.71428571 | AI28: -95714.28571 | AJ28: 0 | AK28: 0 | AM28: -6 | AN28: 0 | AO28: 0
AE29: 450000 | AF29: 122 | AH29: -78.57142857 | AI29: -78571.42857 | AJ29: 0 | AK29: 0 | AM29: -5 | AN29: 0 | AO29: 0
AE30: 500000 | AF30: 19 | AH30: -61.42857143 | AI30: -61428.57143 | AJ30: 0 | AK30: 0 | AM30: -4 | AN30: 0 | AO30: 0
AE31: 550000 | AF31: 4 | AH31: -44.28571429 | AI31: -44285.71429 | AJ31: 0 | AK31: 0 | AM31: -3 | AN31: 0 | AO31: 0
AE32: 600000 | AF32: 0 | AH32: -27.14285714 | AI32: -27142.85714 | AJ32: 0 | AK32: 0 | AM32: -2 | AN32: 0 | AO32: 0
AE33: 650000 | AF33: 0 | AH33: -10 | AI33: -10000 | AJ33: 0 | AK33: 0 | AM33: -1 | AN33: 0 | AO33: 0
AE34: 700000 | AF34: 0 | AH34: 7.142857143 | AI34: 7142.857143 | AJ34: 0 | AK34: 0 | AM34: 0 | AN34: 0 | AO34: 0
AE35: 750000 | AF35: 0 | AH35: 24.28571429 | AI35: 24285.71429 | AJ35: 0 | AK35: 0 | AM35: 1 | AN35: 0 | AO35: 0
AH36: 41.42857143 | AI36: 41428.57143 | AJ36: 0 | AK36: 0 | AM36: 2 | AN36: 0 | AO36: 0
AE37: x | AF37: y | AH37: 58.57142857 | AI37: 58571.42857 | AJ37: 3 | AK37: 2 | AM37: 3 | AN37: 3 | AO37: 2
AE38: 1 | AF38: =MC!$C$7+MC!$C$8 -> 398448.8506 | AH38: 75.71428571 | AI38: 75714.28571 | AJ38: 15 | AK38: 1 | AM38: 4 | AN38: 8 | AO38: 1
AE39: 1000 | AF39: =AF38 -> 398448.8506 | AH39: 92.85714286 | AI39: 92857.14286 | AJ39: 65 | AK39: 11 | AM39: 5 | AN39: 25 | AO39: 3
AH40: 110 | AI40: 110000 | AJ40: 171 | AK40: 16 | AM40: 6 | AN40: 59 | AO40: 9
AE41: x | AF41: y | AH41: 127.1428571 | AI41: 127142.8571 | AJ41: 292 | AK41: 31 | AM41: 7 | AN41: 110 | AO41: 11
AE42: 1 | AF42: =MC!$C$7 -> 350372.5042 | AH42: 144.2857143 | AI42: 144285.7143 | AJ42: 255 | AK42: 59 | AM42: 8 | AN42: 191 | AO42: 18
AE43: 1000 | AF43: =AF42 -> 350372.5042 | AH43: 161.4285714 | AI43: 161428.5714 | AJ43: 123 | AK43: 77 | AM43: 9 | AN43: 216 | AO43: 25
AH44: 178.5714286 | AI44: 178571.4286 | AJ44: 58 | AK44: 124 | AM44: 10 | AN44: 175 | AO44: 46
AE45: x | AF45: y | AH45: 195.7142857 | AI45: 195714.2857 | AJ45: 14 | AK45: 145 | AM45: 11 | AN45: 108 | AO45: 51
AE46: 1 | AF46: =MC!$C$7-MC!$C$8 -> 302296.1578 | AH46: 212.8571429 | AI46: 212857.1429 | AJ46: 4 | AK46: 141 | AM46: 12 | AN46: 63 | AO46: 76
AE47: 1000 | AF47: =AF46 -> 302296.1578 | AH47: 230 | AI47: 230000 | AJ47: 0 | AK47: 120 | AM47: 13 | AN47: 30 | AO47: 94
AH48: 247.1428571 | AI48: 247142.8571 | AJ48: 0 | AK48: 107 | AM48: 14 | AN48: 8 | AO48: 109
AH49: 264.2857143 | AI49: 264285.7143 | AJ49: 0 | AK49: 56 | AM49: 15 | AN49: 3 | AO49: 111
AH50: 281.4285714 | AI50: 281428.5714 | AJ50: 0 | AK50: 44 | AM50: 16 | AN50: 1 | AO50: 103
AH51: 298.5714286 | AI51: 298571.4286 | AJ51: 0 | AK51: 30 | AM51: 17 | AN51: 0 | AO51: 77
AH52: 315.7142857 | AI52: 315714.2857 | AJ52: 0 | AK52: 16 | AM52: 18 | AN52: 0 | AO52: 80
AH53: 332.8571429 | AI53: 332857.1429 | AJ53: 0 | AK53: 3 | AM53: 19 | AN53: 0 | AO53: 58
AH54: 350 | AI54: 350000 | AJ54: 0 | AK54: 1 | AM54: 20 | AN54: 0 | AO54: 36
AM55: 21 | AN55: 0 | AO55: 33
AI56: x | AJ56: y | AK56: y | AM56: 22 | AN56: 0 | AO56: 22
AI57: 1 | AJ57: =MC!$I$7+MC!$I$8 -> 149224.4253 | AK57: =MC!$V$7+MC!$V$8 -> 248448.8506 | AM57: 23 | AN57: 0 | AO57: 15
AI58: 1000 | AJ58: =AJ57 -> 149224.4253 | AK58: =AK57 -> 248448.8506 | AM58: 24 | AN58: 0 | AO58: 12
AM59: 25 | AN59: 0 | AO59: 1
AI60: x | AJ60: y | AK60: y
AI61: 1 | AJ61: =MC!$I$7 -> 125186.2521 | AK61: =MC!$V$7 -> 200372.5042 | AM61: x | AN61: y | AO61: y
AI62: 1000 | AJ62: =AJ61 -> 125186.2521 | AK62: =AK61 -> 200372.5042 | AM62: 1 | AN62: =MC!$L$7+MC!$L$8 -> 10.46717845 | AO62: =MC!$Y$7+MC!$Y$8 -> 18.5043569
AM63: 1000 | AN63: =AN62 -> 10.46717845 | AO63: =AO62 -> 18.5043569
AI64: x | AJ64: y | AK64: y
AI65: 1 | AJ65: =MC!$I$7-MC!$I$8 -> 101148.0789 | AK65: =MC!$V$7-MC!$V$8 -> 152296.1578 | AM65: x | AN65: y | AO65: y
AI66: 1000 | AJ66: =AJ65 -> 101148.0789 | AK66: =AK65 -> 152296.1578 | AM66: 1 | AN66: =MC!$L$7 -> 8.52008642 | AO66: =MC!$Y$7 -> 14.61017284
AM67: 1000 | AN67: =AN66 -> 8.52008642 | AO67: =AO66 -> 14.61017284
AM69: x | AN69: y | AO69: y
AM70: 1 | AN70: =MC!$L$7-MC!$L$8 -> 6.57299439 | AO70: =MC!$Y$7-MC!$Y$8 -> 10.71598878
AM71: 1000 | AN71: =AN70 -> 6.57299439 | AO71: =AO70 -> 10.71598878

Sheet SD
C2: Technologia A | H2: Technologia B
B4: Przychody ze sprzedaży | C4: =MC!D7 -> 525558.7563 | E4: 0.22 | F4: =E4 -> 0.22 | H4: =C4 -> 525558.7563 | J4: -0.2 | K4: =J4 -> -0.2
B5: - Koszty zmienne | C5: =-MC!F7 -> -350372.5042 | E5: =C6/C8 -> 1.39940488 | F5: =E5*E9 -> 1.665486208 | H5: =-MC!S7 -> -175186.2521 | J5: =H6/H8 -> 1.748605706 | K5: =J5*J9 -> 1.942493984
B6: = Marża | C6: =C4+C5 -> 175186.2521 | H6: =H4+H5 -> 350372.5042
B7: - Koszty stałe | C7: =-MC!H7 -> -50000 | H7: =-MC!U7 -> -150000
B8: = Wynik operacyjny | C8: =C6+C7 -> 125186.2521 | E8: =E4*E5 -> 0.3078690736 | H8: =H6+H7 -> 200372.5042 | J8: =J4*J5 -> -0.3497211412
B9: - Odsetki | C9: =-Dźwignie!D6 -> -20000 | E9: =C8/C10 -> 1.190138916 | H9: =-Dźwignie!D6 -> -20000 | J9: =H8/H10 -> 1.110881645
B10: = Wynki brutto | C10: =C8+C9 -> 105186.2521 | H10: =H8+H9 -> 180372.5042
B11: - Podatek dochodowy | C11: =-C10*Dźwignie!D9 -> -19985.3879 | H11: =-H10*Dźwignie!D9 -> -34270.7758
B12: = Wynik netto | C12: =C10+C11 -> 85200.8642 | H12: =H10+H11 -> 146101.7284
B13: liczba akcji | C13: =Dźwignie!D5 -> 10000 | H13: =Dźwignie!D5 -> 10000
B14: EPS | C14: =C12/C13 -> 8.52008642 | E14: =E8*E9 -> 0.3664069657 | F14: =F4*F5 -> 0.3664069657 | H14: =H12/H13 -> 14.61017284 | J14: =J8*J9 -> -0.3884987967 | K14: =K4*K5 -> -0.3884987967
B15: ROE | C15: =C12/Dźwignie!D3 -> 0.852008642 | H15: =H12/Dźwignie!D3 -> 1.461017284

Sheet MC
H2: TECHNOLOGIA - A | U2: TECHNOLOGIA - B
A4: MAX(x) | C4: =MAX(kolumna) -> 516665.5805 | D4: =MAX(kolumna) -> 774998.3708 | E4: MAX(x) | F4: =MAX(kolumna) -> 516665.5805 | G4: 258332.7903 | H4: 50000 | I4: 208332.7903 | J4: 188332.7903 | K4: 152549.5601 | L4: 15.25495601 | R4: MAX(x) | S4: =MAX(kolumna) -> 258332.7903 | T4: 516665.5805 | U4: 150000 | V4: 366665.5805 | W4: 346665.5805 | X4: 280799.1202 | Y4: 28.07991202
A5: MIN(x) | C5: =MIN(kolumna) -> 199587.7444 | D5: =MIN(kolumna) -> 299381.6167 | E5: MIN(x) | F5: =MIN(kolumna) -> 199587.7444 | G5: 99793.87222 | H5: 50000 | I5: 49793.87222 | J5: 29793.87222 | K5: 24133.0365 | L5: 2.41330365 | R5: MIN(x) | S5: =MIN(kolumna) -> 99793.87222 | T5: 199587.7444 | U5: 150000 | V5: 49587.74444 | W5: 29587.74444 | X5: 23966.073 | Y5: 2.3966073
A7: E(x) | C7: =AVERAGE(kolumna) -> 350372.5042 | D7: =AVERAGE(kolumna) -> 525558.7563 | E7: E(x) | F7: =AVERAGE(kolumna) -> 350372.5042 | G7: 175186.2521 | H7: 50000 | I7: 125186.2521 | J7: 105186.2521 | K7: 85200.8642 | L7: 8.52008642 | R7: E(x) | S7: =AVERAGE(kolumna) -> 175186.2521 | T7: 350372.5042 | U7: 150000 | V7: 200372.5042 | W7: 180372.5042 | X7: 146101.7284 | Y7: 14.61017284
A8: s(x) | C8: =STDEV(kolumna) -> 48076.34642 | D8: =STDEV(kolumna) -> 72114.51963 | E8: s(x) | F8: =STDEV(kolumna) -> 48076.34642 | G8: 24038.17321 | H8: 0 | I8: 24038.17321 | J8: 24038.17321 | K8: 19470.9203 | L8: 1.94709203 | R8: s(x) | S8: =STDEV(kolumna) -> 24038.17321 | T8: 48076.34642 | U8: 0 | V8: 48076.34642 | W8: 48076.34642 | X8: 38941.8406 | Y8: 3.89418406
A9: cv(x) | C9: =C8/C7 -> 0.1372149522 | D9: =D8/D7 -> 0.1372149522 | E9: cv(x) | F9: =F8/F7 -> 0.1372149522 | G9: 0.1372149522 | H9: 0 | I9: 0.1920192737 | J9: 0.2285296104 | K9: 0.2285296104 | L9: 0.2285296104 | R9: cv(x) | S9: =S8/S7 -> 0.1372149522 | T9: 0.1372149522 | U9: 0 | V9: 0.2399348484 | W9: 0.2665392191 | X9: 0.2665392191 | Y9: 0.2665392191
C11: S (szt) | D11: S | F11: KZ | G11: MC | H11: KS | I11: EBIT | J11: EBT | K11: NI | L11: EPS | M11: ROA | N11: ROE | O11: DOL | P11: DFL | Q11: DTL | S11: KZ | T11: MC | U11: KS | V11: EBIT | W11: EBT | X11: NI | Y11: EPS | Z11: ROA | AA11: ROE | AB11: DOL | AC11: DFL | AD11: DTL
B12: los<0;1>
A13: 1 | B13: 0.1826810241 | C13: =NORMINV(B13,Dźwignie!$L$8,Dźwignie!$L$9) -> 304740.246 | D13: =Dźwignie!$L$7*C13 -> 457110.369 | F13: =C13*Dźwignie!$G$5 -> 304740.246 | G13: =$D13-F13 -> 152370.123 | H13: =Dźwignie!$G$6 -> 50000 | I13: =G13-H13 -> 102370.123 | J13: =I13-Dźwignie!$D$6 -> 82370.12301 | K13: =IF(J13>0,J13*(1-Dźwignie!$D$9),J13) -> 66719.79964 | L13: =K13/Dźwignie!$D$5 -> 6.671979964 | M13: =I13/Dźwignie!$D$2 -> 0.5118506151 | N13: =K13/Dźwignie!$D$3 -> 0.6671979964 | O13: =IF(I13<>0,G13/I13,"N ") -> 1.488423756 | P13: =IF(J13<>0,I13/J13,"N ") -> 1.242806485 | Q13: =IF(ISTEXT(O13),O13,IF(ISTEXT(P13),P13,O13*P13)) -> 1.849822696 | S13: =C13*Dźwignie!$G$8 -> 152370.123 | T13: =$D13-S13 -> 304740.246 | U13: =Dźwignie!$G$9 -> 150000 | V13: =T13-U13 -> 154740.246 | W13: =V13-Dźwignie!$D$6 -> 134740.246 | X13: =IF(W13>0,W13*(1-Dźwignie!$D$9),W13) -> 109139.5993 | Y13: =X13/Dźwignie!$D$5 -> 10.91395993 | Z13: =V13/Dźwignie!$D$2 -> 0.7737012301 | AA13: =X13/Dźwignie!$D$3 -> 1.091395993 | AB13: =IF(V13<>0,T13/V13,"N ") -> 1.969366431 | AC13: =IF(W13<>0,V13/W13,"N ") -> 1.14843375 | AD13: =IF(ISTEXT(AB13),AB13,IF(ISTEXT(AC13),AC13,AB13*AC13)) -> 2.261686875
A14: 2 | B14: 0.7765840292 | C14: =NORMINV(B14,Dźwignie!$L$8,Dźwignie!$L$9) -> 388035.3627 | D14: =Dźwignie!$L$7*C14 -> 582053.044 | F14: =C14*Dźwignie!$G$5 -> 388035.3627 | G14: 194017.6813 | H14: =Dźwignie!$G$6 -> 50000 | I14: 144017.6813 | J14: =I14-Dźwignie!$D$6 -> 124017.6813 | K14: =IF(J14>0,J14*(1-Dźwignie!$D$9),J14) -> 100454.3219 | L14: =K14/Dźwignie!$D$5 -> 10.04543219 | M14: =I14/Dźwignie!$D$2 -> 0.7200884066 | N14: =K14/Dźwignie!$D$3 -> 1.004543219 | O14: 1.347179593 | P14: 1.161267327 | Q14: 1.564435645 | S14: =C14*Dźwignie!$G$8 -> 194017.6813 | T14: 388035.3627 | U14: =Dźwignie!$G$9 -> 150000 | V14: 238035.3627 | W14: =V14-Dźwignie!$D$6 -> 218035.3627 | X14: =IF(W14>0,W14*(1-Dźwignie!$D$9),W14) -> 176608.6438 | Y14: =X14/Dźwignie!$D$5 -> 17.66086438 | Z14: =V14/Dźwignie!$D$2 -> 1.190176813 | AA14: =X14/Dźwignie!$D$3 -> 1.766086438 | AB14: 1.63015847 | AC14: 1.09172824 | AD14: 1.779690037
A15: 3 | B15: 0.5763569474 | C15: =NORMINV(B15,Dźwignie!$L$8,Dźwignie!$L$9) -> 359629.1152 | D15: =Dźwignie!$L$7*C15 -> 539443.6728 | F15: =C15*Dźwignie!$G$5 -> 359629.1152 | G15: 179814.5576 | H15: =Dźwignie!$G$6 -> 50000 | I15: 129814.5576 | J15: =I15-Dźwignie!$D$6 -> 109814.5576 | K15: =IF(J15>0,J15*(1-Dźwignie!$D$9),J15) -> 88949.79165 | L15: =K15/Dźwignie!$D$5 -> 8.894979165 | M15: =I15/Dźwignie!$D$2 -> 0.649072788 | N15: =K15/Dźwignie!$D$3 -> 0.8894979165 | O15: 1.385164815 | P15: 1.182125216 | Q15: 1.637438255 | S15: =C15*Dźwignie!$G$8 -> 179814.5576 | T15: 359629.1152 | U15: =Dźwignie!$G$9 -> 150000 | V15: 209629.1152 | W15: =V15-Dźwignie!$D$6 -> 189629.1152 | X15: =IF(W15>0,W15*(1-Dźwignie!$D$9),W15) -> 153599.5833 | Y15: =X15/Dźwignie!$D$5 -> 15.35995833 | Z15: =V15/Dźwignie!$D$2 -> 1.048145576 | AA15: =X15/Dźwignie!$D$3 -> 1.535995833 | AB15: 1.715549459 | AC15: 1.105469036 | AD15: 1.896486807
A16: 4 | B16: 0.870092392 | C16: =NORMINV(B16,Dźwignie!$L$8,Dźwignie!$L$9) -> 406341.3992 | D16: =Dźwignie!$L$7*C16 -> 609512.0989 | F16: =C16*Dźwignie!$G$5 -> 406341.3992 | G16: 203170.6996 | H16: =Dźwignie!$G$6 -> 50000 | I16: 153170.6996 | J16: =I16-Dźwignie!$D$6 -> 133170.6996 | K16: =IF(J16>0,J16*(1-Dźwignie!$D$9),J16) -> 107868.2667 | L16: =K16/Dźwignie!$D$5 -> 10.78682667 | M16: =I16/Dźwignie!$D$2 -> 0.7658534981 | N16: =K16/Dźwignie!$D$3 -> 1.078682667 | O16: 1.326433189 | P16: 1.150183186 | Q16: 1.525641152 | S16: =C16*Dźwignie!$G$8 -> 203170.6996 | T16: 406341.3992 | U16: =Dźwignie!$G$9 -> 150000 | V16: 256341.3992 | W16: =V16-Dźwignie!$D$6 -> 236341.3992 | X16: =IF(W16>0,W16*(1-Dźwignie!$D$9),W16) -> 191436.5334 | Y16: =X16/Dźwignie!$D$5 -> 19.14365334 | Z16: =V16/Dźwignie!$D$2 -> 1.281706996 | AA16: =X16/Dźwignie!$D$3 -> 1.914365334 | AB16: 1.58515714 | AC16: 1.084623346 | AD16: 1.719298441
A17: 5 | B17: 0.5972234607 | C17: =NORMINV(B17,Dźwignie!$L$8,Dźwignie!$L$9) -> 362308.3423 | D17: =Dźwignie!$L$7*C17 -> 543462.5135 | F17: =C17*Dźwignie!$G$5 -> 362308.3423 | G17: 181154.1712 | H17: =Dźwignie!$G$6 -> 50000 | I17: 131154.1712 | J17: =I17-Dźwignie!$D$6 -> 111154.1712 | K17: =IF(J17>0,J17*(1-Dźwignie!$D$9),J17) -> 90034.87864 | L17: =K17/Dźwignie!$D$5 -> 9.003487864 | M17: =I17/Dźwignie!$D$2 -> 0.6557708558 | N17: =K17/Dźwignie!$D$3 -> 0.9003487864 | O17: 1.381230727 | P17: 1.17993027 | Q17: 1.629755944 | S17: =C17*Dźwignie!$G$8 -> 181154.1712 | T17: 362308.3423 | U17: =Dźwignie!$G$9 -> 150000 | V17: 212308.3423 | W17: =V17-Dźwignie!$D$6 -> 192308.3423 | X17: =IF(W17>0,W17*(1-Dźwignie!$D$9),W17) -> 155769.7573 | Y17: =X17/Dźwignie!$D$5 -> 15.57697573 | Z17: =V17/Dźwignie!$D$2 -> 1.061541712 | AA17: =X17/Dźwignie!$D$3 -> 1.557697573 | AB17: 1.706519576 | AC17: 1.103999648 | AD17: 1.883997012
A18: 6 | B18: 0.5283180475 | C18: =NORMINV(B18,Dźwignie!$L$8,Dźwignie!$L$9) -> 353552.1266 | D18: =Dźwignie!$L$7*C18 -> 530328.1899 | F18: =C18*Dźwignie!$G$5 -> 353552.1266 | G18: 176776.0633 | H18: =Dźwignie!$G$6 -> 50000 | I18: 126776.0633 | J18: =I18-Dźwignie!$D$6 -> 106776.0633 | K18: =IF(J18>0,J18*(1-Dźwignie!$D$9),J18) -> 86488.61128 | L18: =K18/Dźwignie!$D$5 -> 8.648861128 | M18: =I18/Dźwignie!$D$2 -> 0.6338803166 | N18: =K18/Dźwignie!$D$3 -> 0.8648861128 | O18: 1.394396219 | P18: 1.187307898 | Q18: 1.655577644 | S18: =C18*Dźwignie!$G$8 -> 176776.0633 | T18: 353552.1266 | U18: =Dźwignie!$G$9 -> 150000 | V18: 203552.1266 | W18: =V18-Dźwignie!$D$6 -> 183552.1266 | X18: =IF(W18>0,W18*(1-Dźwignie!$D$9),W18) -> 148677.2226 | Y18: =X18/Dźwignie!$D$5 -> 14.86772226 | Z18: =V18/Dźwignie!$D$2 -> 1.017760633 | AA18: =X18/Dźwignie!$D$3 -> 1.486772226 | AB18: 1.736911977 | AC18: 1.108960873 | AD18: 1.926167422
A19: 7 | B19: 0.5850709081 | C19: =NORMINV(B19,Dźwignie!$L$8,Dźwignie!$L$9) -> 360744.1728 | D19: =Dźwignie!$L$7*C19 -> 541116.2592 | F19: =C19*Dźwignie!$G$5 -> 360744.1728 | G19: 180372.0864 | H19: =Dźwignie!$G$6 -> 50000 | I19: 130372.0864 | J19: =I19-Dźwignie!$D$6 -> 110372.0864 | K19: =IF(J19>0,J19*(1-Dźwignie!$D$9),J19) -> 89401.38998 | L19: =K19/Dźwignie!$D$5 -> 8.940138998 | M19: =I19/Dźwignie!$D$2 -> 0.651860432 | N19: =K19/Dźwignie!$D$3 -> 0.8940138998 | O19: 1.383517679 | P19: 1.181205236 | Q19: 1.634218327 | S19: =C19*Dźwignie!$G$8 -> 180372.0864 | T19: 360744.1728 | U19: =Dźwignie!$G$9 -> 150000 | V19: 210744.1728 | W19: =V19-Dźwignie!$D$6 -> 190744.1728 | X19: =IF(W19>0,W19*(1-Dźwignie!$D$9),W19) -> 154502.78 | Y19: =X19/Dźwignie!$D$5 -> 15.450278 | Z19: =V19/Dźwignie!$D$2 -> 1.053720864 | AA19: =X19/Dźwignie!$D$3 -> 1.5450278 | AB19: 1.711763452 | AC19: 1.104852482 | AD19: 1.891246099
A20: 8 | B20: 0.3022024632 | C20: =NORMINV(B20,Dźwignie!$L$8,Dźwignie!$L$9) -> 324096.1772 | D20: =Dźwignie!$L$7*C20 -> 486144.2658 | F20: =C20*Dźwignie!$G$5 -> 324096.1772 | G20: 162048.0886 | H20: =Dźwignie!$G$6 -> 50000 | I20: 112048.0886 | J20: =I20-Dźwignie!$D$6 -> 92048.0886 | K20: =IF(J20>0,J20*(1-Dźwignie!$D$9),J20) -> 74558.95176 | L20: =K20/Dźwignie!$D$5 -> 7.455895176 | M20: =I20/Dźwignie!$D$2 -> 0.560240443 | N20: =K20/Dźwignie!$D$3 -> 0.7455895176 | O20: 1.446236974 | P20: 1.217277733 | Q20: 1.760472065 | S20: =C20*Dźwignie!$G$8 -> 162048.0886 | T20: 324096.1772 | U20: =Dźwignie!$G$9 -> 150000 | V20: 174096.1772 | W20: =V20-Dźwignie!$D$6 -> 154096.1772 | X20: =IF(W20>0,W20*(1-Dźwignie!$D$9),W20) -> 124817.9035 | Y20: =X20/Dźwignie!$D$5 -> 12.48179035 | Z20: =V20/Dźwignie!$D$2 -> 0.870480886 | AA20: =X20/Dźwignie!$D$3 -> 1.248179035 | AB20: 1.861592727 | AC20: 1.129789073 | AD20: 2.103207121
A21: 9 | B21: 0.1761373878 | C21: =NORMINV(B21,Dźwignie!$L$8,Dźwignie!$L$9) -> 303490.6987 | D21: =Dźwignie!$L$7*C21 -> 455236.048 | F21: =C21*Dźwignie!$G$5 -> 303490.6987 | G21: 151745.3493 | H21: =Dźwignie!$G$6 -> 50000 | I21: 101745.3493 | J21: =I21-Dźwignie!$D$6 -> 81745.34934 | K21: =IF(J21>0,J21*(1-Dźwignie!$D$9),J21) -> 66213.73296 | L21: =K21/Dźwignie!$D$5 -> 6.621373296 | M21: =I21/Dźwignie!$D$2 -> 0.5087267467 | N21: =K21/Dźwignie!$D$3 -> 0.6621373296 | O21: 1.491422953 | P21: 1.244662237 | Q21: 1.856317828 | S21: =C21*Dźwignie!$G$8 -> 151745.3493 | T21: 303490.6987 | U21: =Dźwignie!$G$9 -> 150000 | V21: 153490.6987 | W21: =V21-Dźwignie!$D$6 -> 133490.6987 | X21: =IF(W21>0,W21*(1-Dźwignie!$D$9),W21) -> 108127.4659 | Y21: =X21/Dźwignie!$D$5 -> 10.81274659 | Z21: =V21/Dźwignie!$D$2 -> 0.7674534934 | AA21: =X21/Dźwignie!$D$3 -> 1.081274659 | AB21: 1.977257914 | AC21: 1.149823173 | AD21: 2.273496968
A22: 10 | B22: 0.4158438444 | C22: =NORMINV(B22,Dźwignie!$L$8,Dźwignie!$L$9) -> 339373.1227 | D22: =Dźwignie!$L$7*C22 -> 509059.684 | F22: =C22*Dźwignie!$G$5 -> 339373.1227 | G22: 169686.5613 | H22: =Dźwignie!$G$6 -> 50000 | I22: 119686.5613 | J22: =I22-Dźwignie!$D$6 -> 99686.56133 | K22: =IF(J22>0,J22*(1-Dźwignie!$D$9),J22) -> 80746.11468 | L22: =K22/Dźwignie!$D$5 -> 8.074611468 | M22: =I22/Dźwignie!$D$2 -> 0.5984328067 | N22: =K22/Dźwignie!$D$3 -> 0.8074611468 | O22: 1.417757846 | P22: 1.200628848 | Q22: 1.702200969 | S22: =C22*Dźwignie!$G$8 -> 169686.5613 | T22: 339373.1227 | U22: =Dźwignie!$G$9 -> 150000 | V22: 189373.1227 | W22: =V22-Dźwignie!$D$6 -> 169373.1227 | X22: =IF(W22>0,W22*(1-Dźwignie!$D$9),W22) -> 137192.2294 | Y22: =X22/Dźwignie!$D$5 -> 13.71922294 | Z22: =V22/Dźwignie!$D$2 -> 0.9468656133 | AA22: =X22/Dźwignie!$D$3 -> 1.371922294 | AB22: 1.79208706 | AC22: 1.11808249 | AD22: 2.003701162
A23: 11 | B23: 0.299690783 | C23: =NORMINV(B23,Dźwignie!$L$8,Dźwignie!$L$9) -> 323735.497 | D23: =Dźwignie!$L$7*C23 -> 485603.2455 | F23: =C23*Dźwignie!$G$5 -> 323735.497 | G23: 161867.7485 | H23: =Dźwignie!$G$6 -> 50000 | I23: 111867.7485 | J23: =I23-Dźwignie!$D$6 -> 91867.74849 | K23: =IF(J23>0,J23*(1-Dźwignie!$D$9),J23) -> 74412.87628 | L23: =K23/Dźwignie!$D$5 -> 7.441287628 | M23: =I23/Dźwignie!$D$2 -> 0.5593387425 | N23: =K23/Dźwignie!$D$3 -> 0.7441287628 | O23: 1.446956345 | P23: 1.217704258 | Q23: 1.761964902 | S23: =C23*Dźwignie!$G$8 -> 161867.7485 | T23: 323735.497 | U23: =Dźwignie!$G$9 -> 150000 | V23: 173735.497 | W23: =V23-Dźwignie!$D$6 -> 153735.497 | X23: =IF(W23>0,W23*(1-Dźwignie!$D$9),W23) -> 124525.7526 | Y23: =X23/Dźwignie!$D$5 -> 12.45257526 | Z23: =V23/Dźwignie!$D$2 -> 0.8686774849 | AA23: =X23/Dźwignie!$D$3 -> 1.245257526 | AB23: 1.863381419 | AC23: 1.130093572 | AD23: 2.105795365
A24: 12 | B24: 0.2767510414 | C24: =NORMINV(B24,Dźwignie!$L$8,Dźwignie!$L$9) -> 320373.9739 | D24: =Dźwignie!$L$7*C24 -> 480560.9609 | F24: =C24*Dźwignie!$G$5 -> 320373.9739 | G24: 160186.987 | H24: =Dźwignie!$G$6 -> 50000 | I24: 110186.987 | J24: =I24-Dźwignie!$D$6 -> 90186.98696 | K24: =IF(J24>0,J24*(1-Dźwignie!$D$9),J24) -> 73051.45943 | L24: =K24/Dźwignie!$D$5 -> 7.305145943 | M24: =I24/Dźwignie!$D$2 -> 0.5509349348 | N24: =K24/Dźwignie!$D$3 -> 0.7305145943 | O24: 1.453774092 | P24: 1.221761483 | Q24: 1.776165191 | S24: =C24*Dźwignie!$G$8 -> 160186.987 | T24: 320373.9739 | U24: =Dźwignie!$G$9 -> 150000 | V24: 170373.9739 | W24: =V24-Dźwignie!$D$6 -> 150373.9739 | X24: =IF(W24>0,W24*(1-Dźwignie!$D$9),W24) -> 121802.9189 | Y24: =X24/Dźwignie!$D$5 -> 12.18029189 | Z24: =V24/Dźwignie!$D$2 -> 0.8518698696 | AA24: =X24/Dźwignie!$D$3 -> 1.218029189 | AB24: 1.880416161 | AC24: 1.133001739 | AD24: 2.13051478
A25: 13 | B25: 0.1472670436 | C25: =NORMINV(B25,Dźwignie!$L$8,Dźwignie!$L$9) -> 297588.6558 | D25: =Dźwignie!$L$7*C25 -> 446382.9837 | F25: =C25*Dźwignie!$G$5 -> 297588.6558 | G25: 148794.3279 | H25: =Dźwignie!$G$6 -> 50000 | I25: 98794.32791 | J25: =I25-Dźwignie!$D$6 -> 78794.32791 | K25: =IF(J25>0,J25*(1-Dźwignie!$D$9),J25) -> 63823.4056 | L25: =K25/Dźwignie!$D$5 -> 6.38234056 | M25: =I25/Dźwignie!$D$2 -> 0.4939716395 | N25: =K25/Dźwignie!$D$3 -> 0.638234056 | O25: 1.50610193 | P25: 1.253825377 | Q25: 1.88838882 | S25: =C25*Dźwignie!$G$8 -> 148794.3279 | T25: 297588.6558 | U25: =Dźwignie!$G$9 -> 150000 | V25: 147588.6558 | W25: =V25-Dźwignie!$D$6 -> 127588.6558 | X25: =IF(W25>0,W25*(1-Dźwignie!$D$9),W25) -> 103346.8112 | Y25: =X25/Dźwignie!$D$5 -> 10.33468112 | Z25: =V25/Dźwignie!$D$2 -> 0.7379432791 | AA25: =X25/Dźwignie!$D$3 -> 1.033468112 | AB25: 2.016338276 | AC25: 1.156753748 | AD25: 2.332406858
A26: 14 | B26: 0.06812870502 | C26: =NORMINV(B26,Dźwignie!$L$8,Dźwignie!$L$9) -> 275506.3078 | D26: =Dźwignie!$L$7*C26 -> 413259.4617 | F26: =C26*Dźwignie!$G$5 -> 275506.3078 | G26: 137753.1539 | H26: =Dźwignie!$G$6 -> 50000 | I26: 87753.15389 | J26: =I26-Dźwignie!$D$6 -> 67753.15389 | K26: =IF(J26>0,J26*(1-Dźwignie!$D$9),J26) -> 54880.05465 | L26: =K26/Dźwignie!$D$5 -> 5.488005465 | M26: =I26/Dźwignie!$D$2 -> 0.4387657695 | N26: =K26/Dźwignie!$D$3 -> 0.5488005465 | O26: 1.569780091 | P26: 1.29518921 | Q26: 2.033162236 | S26: =C26*Dźwignie!$G$8 -> 137753.1539 | T26: 275506.3078 | U26: =Dźwignie!$G$9 -> 150000 | V26: 125506.3078 | W26: =V26-Dźwignie!$D$6 -> 105506.3078 | X26: =IF(W26>0,W26*(1-Dźwignie!$D$9),W26) -> 85460.10931 | Y26: =X26/Dźwignie!$D$5 -> 8.546010931 | Z26: =V26/Dźwignie!$D$2 -> 0.6275315389 | AA26: =X26/Dźwignie!$D$3 -> 0.8546010931 | AB26: 2.195159053 | AC26: 1.189562126 | AD26: 2.61127807
A27: 15 | B27: 0.8958147168 | C27: =NORMINV(B27,Dźwignie!$L$8,Dźwignie!$L$9) -> 412902.9297 | D27: =Dźwignie!$L$7*C27 -> 619354.3946 | F27: =C27*Dźwignie!$G$5 -> 412902.9297 | G27: 206451.4649 | H27: =Dźwignie!$G$6 -> 50000 | I27: 156451.4649 | J27: =I27-Dźwignie!$D$6 -> 136451.4649 | K27: =IF(J27>0,J27*(1-Dźwignie!$D$9),J27) -> 110525.6865 | L27: =K27/Dźwignie!$D$5 -> 11.05256865 | M27: =I27/Dźwignie!$D$2 -> 0.7822573243 | N27: =K27/Dźwignie!$D$3 -> 1.105256865 | O27: 1.319587931 | P27: 1.146572263 | Q27: 1.513002921 | S27: =C27*Dźwignie!$G$8 -> 206451.4649 | T27: 412902.9297 | U27: =Dźwignie!$G$9 -> 150000 | V27: 262902.9297 | W27: =V27-Dźwignie!$D$6 -> 242902.9297 | X27: =IF(W27>0,W27*(1-Dźwignie!$D$9),W27) -> 196751.3731 | Y27: =X27/Dźwignie!$D$5 -> 19.67513731 | Z27: =V27/Dźwignie!$D$2 -> 1.314514649 | AA27: =X27/Dźwignie!$D$3 -> 1.967513731 | AB27: 1.57055279 | AC27: 1.082337418 | AD27: 1.699868051
A28: 16 | B28: 0.07944369316 | C28: =NORMINV(B28,Dźwignie!$L$8,Dźwignie!$L$9) -> 279558.8287 | D28: =Dźwignie!$L$7*C28 -> 419338.243 | F28: =C28*Dźwignie!$G$5 -> 279558.8287 | G28: 139779.4143 | H28: =Dźwignie!$G$6 -> 50000 | I28: 89779.41434 | J28: =I28-Dźwignie!$D$6 -> 69779.41434 | K28: =IF(J28>0,J28*(1-Dźwignie!$D$9),J28) -> 56521.32562 | L28: =K28/Dźwignie!$D$5 -> 5.652132562 | M28: =I28/Dźwignie!$D$2 -> 0.4488970717 | N28: =K28/Dźwignie!$D$3 -> 0.5652132562 | O28: 1.556920541 | P28: 1.286617482 | Q28: 2.003161185 | S28: =C28*Dźwignie!$G$8 -> 139779.4143 | T28: 279558.8287 | U28: =Dźwignie!$G$9 -> 150000 | V28: 129558.8287 | W28: =V28-Dźwignie!$D$6 -> 109558.8287 | X28: =IF(W28>0,W28*(1-Dźwignie!$D$9),W28) -> 88742.65123 | Y28: =X28/Dźwignie!$D$5 -> 8.874265123 | Z28: =V28/Dźwignie!$D$2 -> 0.6477941434 | AA28: =X28/Dźwignie!$D$3 -> 0.8874265123 | AB28: 2.157775209 | AC28: 1.182550327 | AD28: 2.551677779
A29: 17 | B29: 0.215995729 | C29: =NORMINV(B29,Dźwignie!$L$8,Dźwignie!$L$9) -> 310710.5795 | D29: =Dźwignie!$L$7*C29 -> 466065.8693 | F29: =C29*Dźwignie!$G$5 -> 310710.5795 | G29: 155355.2898 | H29: =Dźwignie!$G$6 -> 50000 | I29: 105355.2898 | J29: =I29-Dźwignie!$D$6 -> 85355.28976 | K29: =IF(J29>0,J29*(1-Dźwignie!$D$9),J29) -> 69137.78471 | L29: =K29/Dźwignie!$D$5 -> 6.913778471 | M29: =I29/Dźwignie!$D$2 -> 0.5267764488 | N29: =K29/Dźwignie!$D$3 -> 0.6913778471 | O29: 1.474584619 | P29: 1.23431471 | Q29: 1.820101486 | S29: =C29*Dźwignie!$G$8 -> 155355.2898 | T29: 310710.5795 | U29: =Dźwignie!$G$9 -> 150000 | V29: 160710.5795 | W29: =V29-Dźwignie!$D$6 -> 140710.5795 | X29: =IF(W29>0,W29*(1-Dźwignie!$D$9),W29) -> 113975.5694 | Y29: =X29/Dźwignie!$D$5 -> 11.39755694 | Z29: =V29/Dźwignie!$D$2 -> 0.8035528976 | AA29: =X29/Dźwignie!$D$3 -> 1.139755694 | AB29: 1.933354857 | AC29: 1.142135723 | AD29: 2.208153648
A30: 18 | B30: 0.681522727 | C30: =NORMINV(B30,Dźwignie!$L$8,Dźwignie!$L$9) -> 373598.0556 | D30: =Dźwignie!$L$7*C30 -> 560397.0834 | F30: =C30*Dźwignie!$G$5 -> 373598.0556 | G30: 186799.0278 | H30: =Dźwignie!$G$6 -> 50000 | I30: 136799.0278 | J30: =I30-Dźwignie!$D$6 -> 116799.0278 | K30: =IF(J30>0,J30*(1-Dźwignie!$D$9),J30) -> 94607.21253 | L30: =K30/Dźwignie!$D$5 -> 9.460721253 | M30: =I30/Dźwignie!$D$2 -> 0.683995139 | N30: =K30/Dźwignie!$D$3 -> 0.9460721253 | O30: 1.365499674 | P30: 1.171234302 | Q30: 1.599320057 | S30: =C30*Dźwignie!$G$8 -> 186799.0278 | T30: 373598.0556 | U30: =Dźwignie!$G$9 -> 150000 | V30: 223598.0556 | W30: =V30-Dźwignie!$D$6 -> 203598.0556 | X30: =IF(W30>0,W30*(1-Dźwignie!$D$9),W30) -> 164914.4251 | Y30: =X30/Dźwignie!$D$5 -> 16.49144251 | Z30: =V30/Dźwignie!$D$2 -> 1.117990278 | AA30: =X30/Dźwignie!$D$3 -> 1.649144251 | AB30: 1.670846621 | AC30: 1.098232765 | AD30: 1.834978505
A31: 19 | B31: 0.8468924165 | C31: =NORMINV(B31,Dźwignie!$L$8,Dźwignie!$L$9) -> 401159.8018 | D31: =Dźwignie!$L$7*C31 -> 601739.7027 | F31: =C31*Dźwignie!$G$5 -> 401159.8018 | G31: 200579.9009 | H31: =Dźwignie!$G$6 -> 50000 | I31: 150579.9009 | J31: =I31-Dźwignie!$D$6 -> 130579.9009 | K31: =IF(J31>0,J31*(1-Dźwignie!$D$9),J31) -> 105769.7197 | L31: =K31/Dźwignie!$D$5 -> 10.57697197 | M31: =I31/Dźwignie!$D$2 -> 0.7528995044 | N31: =K31/Dźwignie!$D$3 -> 1.057697197 | O31: 1.332049628 | P31: 1.153162928 | Q31: 1.536070249 | S31: =C31*Dźwignie!$G$8 -> 200579.9009 | T31: 401159.8018 | U31: =Dźwignie!$G$9 -> 150000 | V31: 251159.8018 | W31: =V31-Dźwignie!$D$6 -> 231159.8018 | X31: =IF(W31>0,W31*(1-Dźwignie!$D$9),W31) -> 187239.4394 | Y31: =X31/Dźwignie!$D$5 -> 18.72394394 | Z31: =V31/Dźwignie!$D$2 -> 1.255799009 | AA31: =X31/Dźwignie!$D$3 -> 1.872394394 | AB31: 1.597229329 | AC31: 1.086520233 | AD31: 1.735421984
A32: 20 | B32: 0.1024312973 | C32: =NORMINV(B32,Dźwignie!$L$8,Dźwignie!$L$9) -> 286609.0499 | D32: =Dźwignie!$L$7*C32 -> 429913.5748 | F32: =C32*Dźwignie!$G$5 -> 286609.0499 | G32: 143304.5249 | H32: =Dźwignie!$G$6 -> 50000 | I32: 93304.52494 | J32: =I32-Dźwignie!$D$6 -> 73304.52494 | K32: =IF(J32>0,J32*(1-Dźwignie!$D$9),J32) -> 59376.6652 | L32: =K32/Dźwignie!$D$5 -> 5.93766652 | M32: =I32/Dźwignie!$D$2 -> 0.4665226247 | N32: =K32/Dźwignie!$D$3 -> 0.593766652 | O32: 1.535879691 | P32: 1.272834453 | Q32: 1.954920587 | S32: =C32*Dźwignie!$G$8 -> 143304.5249 | T32: 286609.0499 | U32: =Dźwignie!$G$9 -> 150000 | V32: 136609.0499 | W32: =V32-Dźwignie!$D$6 -> 116609.0499 | X32: =IF(W32>0,W32*(1-Dźwignie!$D$9),W32) -> 94453.33041 | Y32: =X32/Dźwignie!$D$5 -> 9.445333041 | Z32: =V32/Dźwignie!$D$2 -> 0.6830452494 | AA32: =X32/Dźwignie!$D$3 -> 0.9445333041 | AB32: 2.098023887 | AC32: 1.171513275 | AD32: 2.457862835
A33: 21 | B33: 0.7683708072 | C33: =NORMINV(B33,Dźwignie!$L$8,Dźwignie!$L$9) -> 386674.6016 | D33: =Dźwignie!$L$7*C33 -> 580011.9024 | F33: =C33*Dźwignie!$G$5 -> 386674.6016 | G33: 193337.3008 | H33: =Dźwignie!$G$6 -> 50000 | I33: 143337.3008 | J33: =I33-Dźwignie!$D$6 -> 123337.3008 | K33: =IF(J33>0,J33*(1-Dźwignie!$D$9),J33) -> 99903.21366 | L33: =K33/Dźwignie!$D$5 -> 9.990321366 | M33: =I33/Dźwignie!$D$2 -> 0.716686504 | N33: =K33/Dźwignie!$D$3 -> 0.9990321366 | O33: 1.348827554 | P33: 1.162156946 | Q33: 1.56754931 | S33: =C33*Dźwignie!$G$8 -> 193337.3008 | T33: 386674.6016 | U33: =Dźwignie!$G$9 -> 150000 | V33: 236674.6016 | W33: =V33-Dźwignie!$D$6 -> 216674.6016 | X33: =IF(W33>0,W33*(1-Dźwignie!$D$9),W33) -> 175506.4273 | Y33: =X33/Dźwignie!$D$5 -> 17.55064273 | Z33: =V33/Dźwignie!$D$2 -> 1.183373008 | AA33: =X33/Dźwignie!$D$3 -> 1.755064273 | AB33: 1.633781567 | AC33: 1.092304312 | AD33: 1.784586651
A34: 22 | B34: 0.4103838205 | C34: =NORMINV(B34,Dźwignie!$L$8,Dźwignie!$L$9) -> 338672.112 | D34: =Dźwignie!$L$7*C34 -> 508008.168 | F34: =C34*Dźwignie!$G$5 -> 338672.112 | G34: 169336.056 | H34: =Dźwignie!$G$6 -> 50000 | I34: 119336.056 | J34: =I34-Dźwignie!$D$6 -> 99336.05601 | K34: =IF(J34>0,J34*(1-Dźwignie!$D$9),J34) -> 80462.20537 | L34: =K34/Dźwignie!$D$5 -> 8.046220537 | M34: =I34/Dźwignie!$D$2 -> 0.59668028 | N34: =K34/Dźwignie!$D$3 -> 0.8046220537 | O34: 1.418984854 | P34: 1.201336763 | Q34: 1.704678672 | S34: =C34*Dźwignie!$G$8 -> 169336.056 | T34: 338672.112 | U34: =Dźwignie!$G$9 -> 150000 | V34: 188672.112 | W34: =V34-Dźwignie!$D$6 -> 168672.112 | X34: =IF(W34>0,W34*(1-Dźwignie!$D$9),W34) -> 136624.4107 | Y34: =X34/Dźwignie!$D$5 -> 13.66244107 | Z34: =V34/Dźwignie!$D$2 -> 0.9433605601 | AA34: =X34/Dźwignie!$D$3 -> 1.366244107 | AB34: 1.795030057 | AC34: 1.118573247 | AD34: 2.0078726
A35: 23 | B35: 0.7523501515 | C35: =NORMINV(B35,Dźwignie!$L$8,Dźwignie!$L$9) -> 384095.1968 | D35: =Dźwignie!$L$7*C35 -> 576142.7951 | F35: =C35*Dźwignie!$G$5 -> 384095.1968 | G35: 192047.5984 | H35: =Dźwignie!$G$6 -> 50000 | I35: 142047.5984 | J35: =I35-Dźwignie!$D$6 -> 122047.5984 | K35: =IF(J35>0,J35*(1-Dźwignie!$D$9),J35) -> 98858.55469 | L35: =K35/Dźwignie!$D$5 -> 9.885855469 | M35: =I35/Dźwignie!$D$2 -> 0.7102379919 | N35: =K35/Dźwignie!$D$3 -> 0.9885855469 | O35: 1.351994687 | P35: 1.163870492 | Q35: 1.573546722 | S35: =C35*Dźwignie!$G$8 -> 192047.5984 | T35: 384095.1968 | U35: =Dźwignie!$G$9 -> 150000 | V35: 234095.1968 | W35: =V35-Dźwignie!$D$6 -> 214095.1968 | X35: =IF(W35>0,W35*(1-Dźwignie!$D$9),W35) -> 173417.1094 | Y35: =X35/Dźwignie!$D$5 -> 17.34171094 | Z35: =V35/Dźwignie!$D$2 -> 1.170475984 | AA35: =X35/Dźwignie!$D$3 -> 1.734171094 | AB35: 1.640764963 | AC35: 1.093416388 | AD35: 1.794039299
A36: 24 | B36: 0.3599350452 | C36: =NORMINV(B36,Dźwignie!$L$8,Dźwignie!$L$9) -> 332068.379 | D36: =Dźwignie!$L$7*C36 -> 498102.5685 | F36: =C36*Dźwignie!$G$5 -> 332068.379 | G36: 166034.1895 | H36: =Dźwignie!$G$6 -> 50000 | I36: 116034.1895 | J36: =I36-Dźwignie!$D$6 -> 96034.1895 | K36: =IF(J36>0,J36*(1-Dźwignie!$D$9),J36) -> 77787.6935 | L36: =K36/Dźwignie!$D$5 -> 7.77876935 | M36: =I36/Dźwignie!$D$2 -> 0.5801709475 | N36: =K36/Dźwignie!$D$3 -> 0.777876935 | O36: 1.430907478 | P36: 1.208259164 | Q36: 1.728907073 | S36: =C36*Dźwignie!$G$8 -> 166034.1895 | T36: 332068.379 | U36: =Dźwignie!$G$9 -> 150000 | V36: 182068.379 | W36: =V36-Dźwignie!$D$6 -> 162068.379 | X36: =IF(W36>0,W36*(1-Dźwignie!$D$9),W36) -> 131275.387 | Y36: =X36/Dźwignie!$D$5 -> 13.1275387 | Z36: =V36/Dźwignie!$D$2 -> 0.910341895 | AA36: =X36/Dźwignie!$D$3 -> 1.31275387 | AB36: 1.82386629 | AC36: 1.123404702 | AD36: 2.048939966
A37: 25 | B37: 0.324228704 | C37: =NORMINV(B37,Dźwignie!$L$8,Dźwignie!$L$9) -> 327204.6884 | D37: =Dźwignie!$L$7*C37 -> 490807.0326 | F37: =C37*Dźwignie!$G$5 -> 327204.6884 | G37: 163602.3442 | H37: =Dźwignie!$G$6 -> 50000 | I37: 113602.3442 | J37: =I37-Dźwignie!$D$6 -> 93602.3442 | K37: =IF(J37>0,J37*(1-Dźwignie!$D$9),J37) -> 75817.8988 | L37: =K37/Dźwignie!$D$5 -> 7.58178988 | M37: =I37/Dźwignie!$D$2 -> 0.568011721 | N37: =K37/Dźwignie!$D$3 -> 0.758178988 | O37: 1.440131763 | P37: 1.213669862 | Q37: 1.747844518 | S37: =C37*Dźwignie!$G$8 -> 163602.3442 | T37: 327204.6884 | U37: =Dźwignie!$G$9 -> 150000 | V37: 177204.6884 | W37: =V37-Dźwignie!$D$6 -> 157204.6884 | X37: =IF(W37>0,W37*(1-Dźwignie!$D$9),W37) -> 127335.7976 | Y37: =X37/Dźwignie!$D$5 -> 12.73357976 | Z37: =V37/Dźwignie!$D$2 -> 0.886023442 | AA37: =X37/Dźwignie!$D$3 -> 1.273357976 | AB37: 1.846478732 | AC37: 1.127222669 | AD37: 2.081392684
A38: 26 | B38: 0.007702708244 | C38: =NORMINV(B38,Dźwignie!$L$8,Dźwignie!$L$9) -> 228864.7328 | D38: =Dźwignie!$L$7*C38 -> 343297.0993 | F38: =C38*Dźwignie!$G$5 -> 228864.7328 | G38: 114432.3664 | H38: =Dźwignie!$G$6 -> 50000 | I38: 64432.36642 | J38: =I38-Dźwignie!$D$6 -> 44432.36642 | K38: =IF(J38>0,J38*(1-Dźwignie!$D$9),J38) -> 35990.2168 | L38: =K38/Dźwignie!$D$5 -> 3.59902168 | M38: =I38/Dźwignie!$D$2 -> 0.3221618321 | N38: =K38/Dźwignie!$D$3 -> 0.359902168 | O38: 1.776007506 | P38: 1.450122323 | Q38: 2.575428131 | S38: =C38*Dźwignie!$G$8 -> 114432.3664 | T38: 228864.7328 | U38: =Dźwignie!$G$9 -> 150000 | V38: 78864.73285 | W38: =V38-Dźwignie!$D$6 -> 58864.73285 | X38: =IF(W38>0,W38*(1-Dźwignie!$D$9),W38) -> 47680.43361 | Y38: =X38/Dźwignie!$D$5 -> 4.768043361 | Z38: =V38/Dźwignie!$D$2 -> 0.3943236642 | AA38: =X38/Dźwignie!$D$3 -> 0.4768043361 | AB38: 2.901990847 | AC38: 1.339762011 | AD38: 3.887977092
A39: 27 | B39: 0.415715754 | C39: =NORMINV(B39,Dźwignie!$L$8,Dźwignie!$L$9) -> 339356.7016 | D39: =Dźwignie!$L$7*C39 -> 509035.0524 | F39: =C39*Dźwignie!$G$5 -> 339356.7016 | G39: 169678.3508 | H39: =Dźwignie!$G$6 -> 50000 | I39: 119678.3508 | J39: =I39-Dźwignie!$D$6 -> 99678.35081 | K39: =IF(J39>0,J39*(1-Dźwignie!$D$9),J39) -> 80739.46416 | L39: =K39/Dźwignie!$D$5 -> 8.073946416 | M39: =I39/Dźwignie!$D$2 -> 0.5983917541 | N39: =K39/Dźwignie!$D$3 -> 0.8073946416 | O39: 1.417786506 | P39: 1.200645374 | Q39: 1.70225881 | S39: =C39*Dźwignie!$G$8 -> 169678.3508 | T39: 339356.7016 | U39: =Dźwignie!$G$9 -> 150000 | V39: 189356.7016 | W39: =V39-Dźwignie!$D$6 -> 169356.7016 | X39: =IF(W39>0,W39*(1-Dźwignie!$D$9),W39) -> 137178.9283 | Y39: =X39/Dźwignie!$D$5 -> 13.71789283 | Z39: =V39/Dźwignie!$D$2 -> 0.9467835081 | AA39: =X39/Dźwignie!$D$3 -> 1.371789283 | AB39: 1.79215575 | AC39: 1.118093939 | AD39: 2.003798482
A40: 28 | B40: 0.2538714409 | C40: =NORMINV(B40,Dźwignie!$L$8,Dźwignie!$L$9) -> 316882.1833 | D40: =Dźwignie!$L$7*C40 -> 475323.275 | F40: =C40*Dźwignie!$G$5 -> 316882.1833 | G40: 158441.0917 | H40: =Dźwignie!$G$6 -> 50000 | I40: 108441.0917 | J40: =I40-Dźwignie!$D$6 -> 88441.09167 | K40: =IF(J40>0,J40*(1-Dźwignie!$D$9),J40) -> 71637.28425 | L40: =K40/Dźwignie!$D$5 -> 7.163728425 | M40: =I40/Dźwignie!$D$2 -> 0.5422054583 | N40: =K40/Dźwignie!$D$3 -> 0.7163728425 | O40: 1.461079829 | P40: 1.226139226 | Q40: 1.79148729 | S40: =C40*Dźwignie!$G$8 -> 158441.0917 | T40: 316882.1833 | U40: =Dźwignie!$G$9 -> 150000 | V40: 166882.1833 | W40: =V40-Dźwignie!$D$6 -> 146882.1833 | X40: =IF(W40>0,W40*(1-Dźwignie!$D$9),W40) -> 118974.5685 | Y40: =X40/Dźwignie!$D$5 -> 11.89745685 | Z40: =V40/Dźwignie!$D$2 -> 0.8344109167 | AA40: =X40/Dźwignie!$D$3 -> 1.189745685 | AB40: 1.898837713 | AC40: 1.136163553 | AD40: 2.157390203
A41: 29 | B41: 0.2403199077 | C41: =NORMINV(B41,Dźwignie!$L$8,Dźwignie!$L$9) -> 314736.3063 | D41: =Dźwignie!$L$7*C41 -> 472104.4594 | F41: =C41*Dźwignie!$G$5 -> 314736.3063 | G41: 157368.1531 | H41: =Dźwignie!$G$6 -> 50000 | I41: 107368.1531 | J41: =I41-Dźwignie!$D$6 -> 87368.15313 | K41: =IF(J41>0,J41*(1-Dźwignie!$D$9),J41) -> 70768.20403 | L41: =K41/Dźwignie!$D$5 -> 7.076820403 | M41: =I41/Dźwignie!$D$2 -> 0.5368407656 | N41: =K41/Dźwignie!$D$3 -> 0.7076820403 | O41: 1.465687437 | P41: 1.228916365 | Q41: 1.801207276 | S41: =C41*Dźwignie!$G$8 -> 157368.1531 | T41: 314736.3063 | U41: =Dźwignie!$G$9 -> 150000 | V41: 164736.3063 | W41: =V41-Dźwignie!$D$6 -> 144736.3063 | X41: =IF(W41>0,W41*(1-Dźwignie!$D$9),W41) -> 117236.4081 | Y41: =X41/Dźwignie!$D$5 -> 11.72364081 | Z41: =V41/Dźwignie!$D$2 -> 0.8236815313 | AA41: =X41/Dźwignie!$D$3 -> 1.172364081 | AB41: 1.910546093 | AC41: 1.13818233 | AD41: 2.174549803
A42: 30 | B42: 0.7157279253 | C42: =NORMINV(B42,Dźwignie!$L$8,Dźwignie!$L$9) -> 378509.8457 | D42: =Dźwignie!$L$7*C42 -> 567764.7685 | F42: =C42*Dźwignie!$G$5 -> 378509.8457 | G42: 189254.9228 | H42: =Dźwignie!$G$6 -> 50000 | I42: 139254.9228 | J42: =I42-Dźwignie!$D$6 -> 119254.9228 | K42: =IF(J42>0,J42*(1-Dźwignie!$D$9),J42) -> 96596.48749 | L42: =K42/Dźwignie!$D$5 -> 9.659648749 | M42: =I42/Dźwignie!$D$2 -> 0.6962746142 | N42: =K42/Dźwignie!$D$3 -> 0.9659648749 | O42: 1.359053734 | P42: 1.167707961 | Q42: 1.586977865 | S42: =C42*Dźwignie!$G$8 -> 189254.9228 | T42: 378509.8457 | U42: =Dźwignie!$G$9 -> 150000 | V42: 228509.8457 | W42: =V42-Dźwignie!$D$6 -> 208509.8457 | X42: =IF(W42>0,W42*(1-Dźwignie!$D$9),W42) -> 168892.975 | Y42: =X42/Dźwignie!$D$5 -> 16.8892975 | Z42: =V42/Dźwignie!$D$2 -> 1.142549228 | AA42: =X42/Dźwignie!$D$3 -> 1.68892975 | AB42: 1.656426858 | AC42: 1.095918732 | AD42: 1.815309222
A43: 31 | B43: 0.1727436185 | C43: =NORMINV(B43,Dźwignie!$L$8,Dźwignie!$L$9) -> 302831.0653 | D43: =Dźwignie!$L$7*C43 -> 454246.5979 | F43: =C43*Dźwignie!$G$5 -> 302831.0653 | G43: 151415.5326 | H43: =Dźwignie!$G$6 -> 50000 | I43: 101415.5326 | J43: =I43-Dźwignie!$D$6 -> 81415.53264 | K43: =IF(J43>0,J43*(1-Dźwignie!$D$9),J43) -> 65946.58144 | L43: =K43/Dźwignie!$D$5 -> 6.594658144 | M43: =I43/Dźwignie!$D$2 -> 0.5070776632 | N43: =K43/Dźwignie!$D$3 -> 0.6594658144 | O43: 1.493021125 | P43: 1.24565337 | Q43: 1.859786797 | S43: =C43*Dźwignie!$G$8 -> 151415.5326 | T43: 302831.0653 | U43: =Dźwignie!$G$9 -> 150000 | V43: 152831.0653 | W43: =V43-Dźwignie!$D$6 -> 132831.0653 | X43: =IF(W43>0,W43*(1-Dźwignie!$D$9),W43) -> 107593.1629 | Y43: =X43/Dźwignie!$D$5 -> 10.75931629 | Z43: =V43/Dźwignie!$D$2 -> 0.7641553264 | AA43: =X43/Dźwignie!$D$3 -> 1.075931629 | AB43: 1.981475852 | AC43: 1.150567188 | AD43: 2.279821099
A44: 32 | B44: 0.5894773006 | C44: =NORMINV(B44,Dźwignie!$L$8,Dźwignie!$L$9) -> 361310.0303 | D44: =Dźwignie!$L$7*C44 -> 541965.0455 | F44: =C44*Dźwignie!$G$5 -> 361310.0303 | G44: 180655.0152 | H44: =Dźwignie!$G$6 -> 50000 | I44: 130655.0152 | J44: =I44-Dźwignie!$D$6 -> 110655.0152 | K44: =IF(J44>0,J44*(1-Dźwignie!$D$9),J44) -> 89630.56229 | L44: =K44/Dźwignie!$D$5 -> 8.963056229 | M44: =I44/Dźwignie!$D$2 -> 0.6532750758 | N44: =K44/Dźwignie!$D$3 -> 0.8963056229 | O44: 1.382687185 | P44: 1.180741921 | Q44: 1.632596723 | S44: =C44*Dźwignie!$G$8 -> 180655.0152 | T44: 361310.0303 | U44: =Dźwignie!$G$9 -> 150000 | V44: 211310.0303 | W44: =V44-Dźwignie!$D$6 -> 191310.0303 | X44: =IF(W44>0,W44*(1-Dźwignie!$D$9),W44) -> 154961.1246 | Y44: =X44/Dźwignie!$D$5 -> 15.49611246 | Z44: =V44/Dźwignie!$D$2 -> 1.056550152 | AA44: =X44/Dźwignie!$D$3 -> 1.549611246 | AB44: 1.709857453 | AC44: 1.104542349 | AD44: 1.888609968
A45: 33 | B45: 0.663433969 | C45: =NORMINV(B45,Dźwignie!$L$8,Dźwignie!$L$9) -> 371092.6675 | D45: =Dźwignie!$L$7*C45 -> 556639.0013 | F45: =C45*Dźwignie!$G$5 -> 371092.6675 | G45: 185546.3338 | H45: =Dźwignie!$G$6 -> 50000 | I45: 135546.3338 | J45: =I45-Dźwignie!$D$6 -> 115546.3338 | K45: =IF(J45>0,J45*(1-Dźwignie!$D$9),J45) -> 93592.53034 | L45: =K45/Dźwignie!$D$5 -> 9.359253034 | M45: =I45/Dźwignie!$D$2 -> 0.6777316688 | N45: =K45/Dźwignie!$D$3 -> 0.9359253034 | O45: 1.368877554 | P45: 1.173090736 | Q45: 1.605817577 | S45: =C45*Dźwignie!$G$8 -> 185546.3338 | T45: 371092.6675 | U45: =Dźwignie!$G$9 -> 150000 | V45: 221092.6675 | W45: =V45-Dźwignie!$D$6 -> 201092.6675 | X45: =IF(W45>0,W45*(1-Dźwignie!$D$9),W45) -> 162885.0607 | Y45: =X45/Dźwignie!$D$5 -> 16.28850607 | Z45: =V45/Dźwignie!$D$2 -> 1.105463338 | AA45: =X45/Dźwignie!$D$3 -> 1.628850607 | AB45: 1.678448551 | AC45: 1.099456635 | AD45: 1.845381396
A46: 34 | B46: 0.4065908194 | C46: =NORMINV(B46,Dźwignie!$L$8,Dźwignie!$L$9) -> 338183.8241 | D46: =Dźwignie!$L$7*C46 -> 507275.7361 | F46: =C46*Dźwignie!$G$5 -> 338183.8241 | G46: 169091.912 | H46: =Dźwignie!$G$6 -> 50000 | I46: 119091.912 | J46: =I46-Dźwignie!$D$6 -> 99091.91204 | K46: =IF(J46>0,J46*(1-Dźwignie!$D$9),J46) -> 80264.44875 | L46: =K46/Dźwignie!$D$5 -> 8.026444875 | M46: =I46/Dźwignie!$D$2 -> 0.5954595602 | N46: =K46/Dźwignie!$D$3 -> 0.8026444875 | O46: 1.419843792 | P46: 1.20183282 | Q46: 1.706414868 | S46: =C46*Dźwignie!$G$8 -> 169091.912 | T46: 338183.8241 | U46: =Dźwignie!$G$9 -> 150000 | V46: 188183.8241 | W46: =V46-Dźwignie!$D$6 -> 168183.8241 | X46: =IF(W46>0,W46*(1-Dźwignie!$D$9),W46) -> 136228.8975 | Y46: =X46/Dźwignie!$D$5 -> 13.62288975 | Z46: =V46/Dźwignie!$D$2 -> 0.9409191204 | AA46: =X46/Dźwignie!$D$3 -> 1.362288975 | AB46: 1.797092953 | AC46: 1.118917501 | AD46: 2.010798755
A47: 35 | B47: 0.4695397019 | C47: =NORMINV(B47,Dźwignie!$L$8,Dźwignie!$L$9) -> 346178.6509 | D47: =Dźwignie!$L$7*C47 -> 519267.9764 | F47: =C47*Dźwignie!$G$5 -> 346178.6509 | G47: 173089.3255 | H47: =Dźwignie!$G$6 -> 50000 | I47: 123089.3255 | J47: =I47-Dźwignie!$D$6 -> 103089.3255 | K47: =IF(J47>0,J47*(1-Dźwignie!$D$9),J47) -> 83502.35362 | L47: =K47/Dźwignie!$D$5 -> 8.350235362 | M47: =I47/Dźwignie!$D$2 -> 0.6154466273 | N47: =K47/Dźwignie!$D$3 -> 0.8350235362 | O47: 1.406209067 | P47: 1.194006508 | Q47: 1.679022777 | S47: =C47*Dźwignie!$G$8 -> 173089.3255 | T47: 346178.6509 | U47: =Dźwignie!$G$9 -> 150000 | V47: 196178.6509 | W47: =V47-Dźwignie!$D$6 -> 176178.6509 | X47: =IF(W47>0,W47*(1-Dźwignie!$D$9),W47) -> 142704.7072 | Y47: =X47/Dźwignie!$D$5 -> 14.27047072 | Z47: =V47/Dźwignie!$D$2 -> 0.9808932545 | AA47: =X47/Dźwignie!$D$3 -> 1.427047072 | AB47: 1.764609193 | AC47: 1.113521133 | AD47: 1.964929628
A48: 36 | B48: 0.8409347534 | C48: =NORMINV(B48,Dźwignie!$L$8,Dźwignie!$L$9) -> 399915.3522 | D48: =Dźwignie!$L$7*C48 -> 599873.0283 | F48: =C48*Dźwignie!$G$5 -> 399915.3522 | G48: 199957.6761 | H48: =Dźwignie!$G$6 -> 50000 | I48: 149957.6761 | J48: =I48-Dźwignie!$D$6 -> 129957.6761 | K48: =IF(J48>0,J48*(1-Dźwignie!$D$9),J48) -> 105265.7176 | L48: =K48/Dźwignie!$D$5 -> 10.52657176 | M48: =I48/Dźwignie!$D$2 -> 0.7497883804 | N48: =K48/Dźwignie!$D$3 -> 1.052657176 | O48: 1.333427413 | P48: 1.153896258 | Q48: 1.538636902 | S48: =C48*Dźwignie!$G$8 -> 199957.6761 | T48: 399915.3522 | U48: =Dźwignie!$G$9 -> 150000 | V48: 249915.3522 | W48: =V48-Dźwignie!$D$6 -> 229915.3522 | X48: =IF(W48>0,W48*(1-Dźwignie!$D$9),W48) -> 186231.4353 | Y48: =X48/Dźwignie!$D$5 -> 18.62314353 | Z48: =V48/Dźwignie!$D$2 -> 1.249576761 | AA48: =X48/Dźwignie!$D$3 -> 1.862314353 | AB48: 1.600203224 | AC48: 1.086988536 | AD48: 1.73940256
A49: 37 | B49: 0.7335245013 | C49: =NORMINV(B49,Dźwignie!$L$8,Dźwignie!$L$9) -> 381175.3809 | D49: =Dźwignie!$L$7*C49 -> 571763.0714 | F49: =C49*Dźwignie!$G$5 -> 381175.3809 | G49: 190587.6905 | H49: =Dźwignie!$G$6 -> 50000 | I49: 140587.6905 | J49: =I49-Dźwignie!$D$6 -> 120587.6905 | K49: =IF(J49>0,J49*(1-Dźwignie!$D$9),J49) -> 97676.02928 | L49: =K49/Dźwignie!$D$5 -> 9.767602928 | M49: =I49/Dźwignie!$D$2 -> 0.7029384523 | N49: =K49/Dźwignie!$D$3 -> 0.9767602928 | O49: 1.355649914 | P49: 1.165854408 | Q49: 1.580490428 | S49: =C49*Dźwignie!$G$8 -> 190587.6905 | T49: 381175.3809 | U49: =Dźwignie!$G$9 -> 150000 | V49: 231175.3809 | W49: =V49-Dźwignie!$D$6 -> 211175.3809 | X49: =IF(W49>0,W49*(1-Dźwignie!$D$9),W49) -> 171052.0586 | Y49: =X49/Dźwignie!$D$5 -> 17.10520586 | Z49: =V49/Dźwignie!$D$2 -> 1.155876905 | AA49: =X49/Dźwignie!$D$3 -> 1.710520586 | AB49: 1.64885802 | AC49: 1.09470801 | AD49: 1.805018081
A50: 38 | B50: 0.9729305506 | C50: =NORMINV(B50,Dźwignie!$L$8,Dźwignie!$L$9) -> 446286.1786 | D50: =Dźwignie!$L$7*C50 -> 669429.268 | F50: =C50*Dźwignie!$G$5 -> 446286.1786 | G50: 223143.0893 | H50: =Dźwignie!$G$6 -> 50000 | I50: 173143.0893 | J50: =I50-Dźwignie!$D$6 -> 153143.0893 | K50: =IF(J50>0,J50*(1-Dźwignie!$D$9),J50) -> 124045.9024 | L50: =K50/Dźwignie!$D$5 -> 12.40459024 | M50: =I50/Dźwignie!$D$2 -> 0.8657154466 | N50: =K50/Dźwignie!$D$3 -> 1.240459024 | O50: 1.288778491 | P50: 1.130596817 | Q50: 1.457088859 | S50: =C50*Dźwignie!$G$8 -> 223143.0893 | T50: 446286.1786 | U50: =Dźwignie!$G$9 -> 150000 | V50: 296286.1786 | W50: =V50-Dźwignie!$D$6 -> 276286.1786 | X50: =IF(W50>0,W50*(1-Dźwignie!$D$9),W50) -> 223791.8047 | Y50: =X50/Dźwignie!$D$5 -> 22.37918047 | Z50: =V50/Dźwignie!$D$2 -> 1.481430893 | AA50: =X50/Dźwignie!$D$3 -> 2.237918047 | AB50: 1.506267288 | AC50: 1.07238871 | AD50: 1.615304033
A51: 39 | B51: 0.6906865239 | C51: =NORMINV(B51,Dźwignie!$L$8,Dźwignie!$L$9) -> 374889.8627 | D51: =Dźwignie!$L$7*C51 -> 562334.794 | F51: =C51*Dźwignie!$G$5 -> 374889.8627 | G51: 187444.9313 | H51: =Dźwignie!$G$6 -> 50000 | I51: 137444.9313 | J51: =I51-Dźwignie!$D$6 -> 117444.9313 | K51: =IF(J51>0,J51*(1-Dźwignie!$D$9),J51) -> 95130.39438 | L51: =K51/Dźwignie!$D$5 -> 9.513039438 | M51: =I51/Dźwignie!$D$2 -> 0.6872246567 | N51: =K51/Dźwignie!$D$3 -> 0.9513039438 | O51: 1.363782058 | P51: 1.170292577 | Q51: 1.596024019 | S51: =C51*Dźwignie!$G$8 -> 187444.9313 | T51: 374889.8627 | U51: =Dźwignie!$G$9 -> 150000 | V51: 224889.8627 | W51: =V51-Dźwignie!$D$6 -> 204889.8627 | X51: =IF(W51>0,W51*(1-Dźwignie!$D$9),W51) -> 165960.7888 | Y51: =X51/Dźwignie!$D$5 -> 16.59607888 | Z51: =V51/Dźwignie!$D$2 -> 1.124449313 | AA51: =X51/Dźwignie!$D$3 -> 1.659607888 | AB51: 1.666993159 | AC51: 1.097613419 | AD51: 1.829714061
A52: 40 | B52: 0.6669962406 | C52: =NORMINV(B52,Dźwignie!$L$8,Dźwignie!$L$9) -> 371581.6948 | D52: =Dźwignie!$L$7*C52 -> 557372.5422 | F52: =C52*Dźwignie!$G$5 -> 371581.6948 | G52: 185790.8474 | H52: =Dźwignie!$G$6 -> 50000 | I52: 135790.8474 | J52: =I52-Dźwignie!$D$6 -> 115790.8474 | K52: =IF(J52>0,J52*(1-Dźwignie!$D$9),J52) -> 93790.58639 | L52: =K52/Dźwignie!$D$5 -> 9.379058639 | M52: =I52/Dźwignie!$D$2 -> 0.678954237 | N52: =K52/Dźwignie!$D$3 -> 0.9379058639 | O52: 1.368213329 | P52: 1.172725224 | Q52: 1.604538282 | S52: =C52*Dźwignie!$G$8 -> 185790.8474 | T52: 371581.6948 | U52: =Dźwignie!$G$9 -> 150000 | V52: 221581.6948 | W52: =V52-Dźwignie!$D$6 -> 201581.6948 | X52: =IF(W52>0,W52*(1-Dźwignie!$D$9),W52) -> 163281.1728 | Y52: =X52/Dźwignie!$D$5 -> 16.32811728 | Z52: =V52/Dźwignie!$D$2 -> 1.107908474 | AA52: =X52/Dźwignie!$D$3 -> 1.632811728 | AB52: 1.676951226 | AC52: 1.099215358 | AD52: 1.843330542
A53: 41 | B53: 0.03683418036 | C53: =NORMINV(B53,Dźwignie!$L$8,Dźwignie!$L$9) -> 260566.619 | D53: =Dźwignie!$L$7*C53 -> 390849.9285 | F53: =C53*Dźwignie!$G$5 -> 260566.619 | G53: 130283.3095 | H53: =Dźwignie!$G$6 -> 50000 | I53: 80283.30951 | J53: =I53-Dźwignie!$D$6 -> 60283.30951 | K53: =IF(J53>0,J53*(1-Dźwignie!$D$9),J53) -> 48829.4807 | L53: =K53/Dźwignie!$D$5 -> 4.88294807 | M53: =I53/Dźwignie!$D$2 -> 0.4014165475 | N53: =K53/Dźwignie!$D$3 -> 0.488294807 | O53: 1.622794455 | P53: 1.331766789 | Q53: 2.16118376 | S53: =C53*Dźwignie!$G$8 -> 130283.3095 | T53: 260566.619 | U53: =Dźwignie!$G$9 -> 150000 | V53: 110566.619 | W53: =V53-Dźwignie!$D$6 -> 90566.61902 | X53: =IF(W53>0,W53*(1-Dźwignie!$D$9),W53) -> 73358.9614 | Y53: =X53/Dźwignie!$D$5 -> 7.33589614 | Z53: =V53/Dźwignie!$D$2 -> 0.5528330951 | AA53: =X53/Dźwignie!$D$3 -> 0.733589614 | AB53: 2.356648158 | AC53: 1.220831916 | AD53: 2.877071286
A54: 42 | B54: 0.9685190916 | C54: =NORMINV(B54,Dźwignie!$L$8,Dźwignie!$L$9) -> 442973.052 | D54: =Dźwignie!$L$7*C54 -> 664459.5779 | F54: =C54*Dźwignie!$G$5 -> 442973.052 | G54: 221486.526 | H54: =Dźwignie!$G$6 -> 50000 | I54: 171486.526 | J54: =I54-Dźwignie!$D$6 -> 151486.526 | K54: =IF(J54>0,J54*(1-Dźwignie!$D$9),J54) -> 122704.086 | L54: =K54/Dźwignie!$D$5 -> 12.2704086 | M54: =I54/Dźwignie!$D$2 -> 0.8574326299 | N54: =K54/Dźwignie!$D$3 -> 1.22704086 | O54: 1.291568097 | P54: 1.132024943 | Q54: 1.462087301 | S54: =C54*Dźwignie!$G$8 -> 221486.526 | T54: 442973.052 | U54: =Dźwignie!$G$9 -> 150000 | V54: 292973.052 | W54: =V54-Dźwignie!$D$6 -> 272973.052 | X54: =IF(W54>0,W54*(1-Dźwignie!$D$9),W54) -> 221108.1721 | Y54: =X54/Dźwignie!$D$5 -> 22.11081721 | Z54: =V54/Dźwignie!$D$2 -> 1.46486526 | AA54: =X54/Dźwignie!$D$3 -> 2.211081721 | AB54: 1.511992482 | AC54: 1.073267306 | AD54: 1.622772097
A55: 43 | B55: 0.2373681664 | C55: =NORMINV(B55,Dźwignie!$L$8,Dźwignie!$L$9) -> 314260.2992 | D55: =Dźwignie!$L$7*C55 -> 471390.4487 | F55: =C55*Dźwignie!$G$5 -> 314260.2992 | G55: 157130.1496 | H55: =Dźwignie!$G$6 -> 50000 | I55: 107130.1496 | J55: =I55-Dźwignie!$D$6 -> 87130.14958 | K55: =IF(J55>0,J55*(1-Dźwignie!$D$9),J55) -> 70575.42116 | L55: =K55/Dźwignie!$D$5 -> 7.057542116 | M55: =I55/Dźwignie!$D$2 -> 0.5356507479 | N55: =K55/Dźwignie!$D$3 -> 0.7057542116 | O55: 1.466722022 | P55: 1.22954167 | Q55: 1.803395843 | S55: =C55*Dźwignie!$G$8 -> 157130.1496 | T55: 314260.2992 | U55: =Dźwignie!$G$9 -> 150000 | V55: 164260.2992 | W55: =V55-Dźwignie!$D$6 -> 144260.2992 | X55: =IF(W55>0,W55*(1-Dźwignie!$D$9),W55) -> 116850.8423 | Y55: =X55/Dźwignie!$D$5 -> 11.68508423 | Z55: =V55/Dźwignie!$D$2 -> 0.8213014958 | AA55: =X55/Dźwignie!$D$3 -> 1.168508423 | AB55: 1.913184749 | AC55: 1.138638282 | AD55: 2.178425395
A56: 44 | B56: 0.6766095161 | C56: =NORMINV(B56,Dźwignie!$L$8,Dźwignie!$L$9) -> 372911.9344 | D56: =Dźwignie!$L$7*C56 -> 559367.9016 | F56: =C56*Dźwignie!$G$5 -> 372911.9344 | G56: 186455.9672 | H56: =Dźwignie!$G$6 -> 50000 | I56: 136455.9672 | J56: =I56-Dźwignie!$D$6 -> 116455.9672 | K56: =IF(J56>0,J56*(1-Dźwignie!$D$9),J56) -> 94329.33343 | L56: =K56/Dźwignie!$D$5 -> 9.432933343 | M56: =I56/Dźwignie!$D$2 -> 0.682279836 | N56: =K56/Dźwignie!$D$3 -> 0.9432933343 | O56: 1.366418567 | P56: 1.171738731 | Q56: 1.601085558 | S56: =C56*Dźwignie!$G$8 -> 186455.9672 | T56: 372911.9344 | U56: =Dźwignie!$G$9 -> 150000 | V56: 222911.9344 | W56: =V56-Dźwignie!$D$6 -> 202911.9344 | X56: =IF(W56>0,W56*(1-Dźwignie!$D$9),W56) -> 164358.6669 | Y56: =X56/Dźwignie!$D$5 -> 16.43586669 | Z56: =V56/Dźwignie!$D$2 -> 1.114559672 | AA56: =X56/Dźwignie!$D$3 -> 1.643586669 | AB56: 1.672911481 | AC56: 1.098564927 | AD56: 1.837801879
A57: 45 | B57: 0.3090197444 | C57: =NORMINV(B57,Dźwignie!$L$8,Dźwignie!$L$9) -> 325068.459 | D57: =Dźwignie!$L$7*C57 -> 487602.6885 | F57: =C57*Dźwignie!$G$5 -> 325068.459 | G57: 162534.2295 | H57: =Dźwignie!$G$6 -> 50000 | I57: 112534.2295 | J57: =I57-Dźwignie!$D$6 -> 92534.2295 | K57: =IF(J57>0,J57*(1-Dźwignie!$D$9),J57) -> 74952.72589 | L57: =K57/Dźwignie!$D$5 -> 7.495272589 | M57: =I57/Dźwignie!$D$2 -> 0.5626711475 | N57: =K57/Dźwignie!$D$3 -> 0.7495272589 | O57: 1.444309258 | P57: 1.216136235 | Q57: 1.756476824 | S57: =C57*Dźwignie!$G$8 -> 162534.2295 | T57: 325068.459 | U57: =Dźwignie!$G$9 -> 150000 | V57: 175068.459 | W57: =V57-Dźwignie!$D$6 -> 155068.459 | X57: =IF(W57>0,W57*(1-Dźwignie!$D$9),W57) -> 125605.4518 | Y57: =X57/Dźwignie!$D$5 -> 12.56054518 | Z57: =V57/Dźwignie!$D$2 -> 0.875342295 | AA57: =X57/Dźwignie!$D$3 -> 1.256054518 | AB57: 1.856807679 | AC57: 1.128975293 | AD57: 2.096289994
A58: 46 | B58: 0.4988862276 | C58: =NORMINV(B58,Dźwignie!$L$8,Dźwignie!$L$9) -> 349860.4092 | D58: =Dźwignie!$L$7*C58 -> 524790.6137 | F58: =C58*Dźwignie!$G$5 -> 349860.4092 | G58: 174930.2046 | H58: =Dźwignie!$G$6 -> 50000 | I58: 124930.2046 | J58: =I58-Dźwignie!$D$6 -> 104930.2046 | K58: =IF(J58>0,J58*(1-Dźwignie!$D$9),J58) -> 84993.46571 | L58: =K58/Dźwignie!$D$5 -> 8.499346571 | M58: =I58/Dźwignie!$D$2 -> 0.6246510229 | N58: =K58/Dźwignie!$D$3 -> 0.8499346571 | O58: 1.40022347 | P58: 1.190602888 | Q58: 1.667110107 | S58: =C58*Dźwignie!$G$8 -> 174930.2046 | T58: 349860.4092 | U58: =Dźwignie!$G$9 -> 150000 | V58: 199860.4092 | W58: =V58-Dźwignie!$D$6 -> 179860.4092 | X58: =IF(W58>0,W58*(1-Dźwignie!$D$9),W58) -> 145686.9314 | Y58: =X58/Dźwignie!$D$5 -> 14.56869314 | Z58: =V58/Dźwignie!$D$2 -> 0.9993020458 | AA58: =X58/Dźwignie!$D$3 -> 1.456869314 | AB58: 1.750523831 | AC58: 1.111197345 | AD58: 1.945177434
A59: 47 | B59: 0.8554952741 | C59: =NORMINV(B59,Dźwignie!$L$8,Dźwignie!$L$9) -> 403014.8557 | D59: =Dźwignie!$L$7*C59 -> 604522.2835 | F59: =C59*Dźwignie!$G$5 -> 403014.8557 | G59: 201507.4278 | H59: =Dźwignie!$G$6 -> 50000 | I59: 151507.4278 | J59: =I59-Dźwignie!$D$6 -> 131507.4278 | K59: =IF(J59>0,J59*(1-Dźwignie!$D$9),J59) -> 106521.0166 | L59: =K59/Dźwignie!$D$5 -> 10.65210166 | M59: =I59/Dźwignie!$D$2 -> 0.7575371392 | N59: =K59/Dźwignie!$D$3 -> 1.065210166 | O59: 1.330016823 | P59: 1.152082664 | Q59: 1.532289325 | S59: =C59*Dźwignie!$G$8 -> 201507.4278 | T59: 403014.8557 | U59: =Dźwignie!$G$9 -> 150000 | V59: 253014.8557 | W59: =V59-Dźwignie!$D$6 -> 233014.8557 | X59: =IF(W59>0,W59*(1-Dźwignie!$D$9),W59) -> 188742.0331 | Y59: =X59/Dźwignie!$D$5 -> 18.87420331 | Z59: =V59/Dźwignie!$D$2 -> 1.265074278 | AA59: =X59/Dźwignie!$D$3 -> 1.887420331 | AB59: 1.592850564 | AC59: 1.085831437 | AD59: 1.729567218
A60: 48 | B60: 0.4445426464 | C60: =NORMINV(B60,Dźwignie!$L$8,Dźwignie!$L$9) -> 343026.9133 | D60: =Dźwignie!$L$7*C60 -> 514540.37 | F60: =C60*Dźwignie!$G$5 -> 343026.9133 | G60: 171513.4567 | H60: =Dźwignie!$G$6 -> 50000 | I60: 121513.4567 | J60: =I60-Dźwignie!$D$6 -> 101513.4567 | K60: =IF(J60>0,J60*(1-Dźwignie!$D$9),J60) -> 82225.8999 | L60: =K60/Dźwignie!$D$5 -> 8.22258999 | M60: =I60/Dźwignie!$D$2 -> 0.6075672833 | N60: =K60/Dźwignie!$D$3 -> 0.822258999 | O60: 1.411477061 | P60: 1.197018215 | Q60: 1.689563751 | S60: =C60*Dźwignie!$G$8 -> 171513.4567 | T60: 343026.9133 | U60: =Dźwignie!$G$9 -> 150000 | V60: 193026.9133 | W60: =V60-Dźwignie!$D$6 -> 173026.9133 | X60: =IF(W60>0,W60*(1-Dźwignie!$D$9),W60) -> 140151.7998 | Y60: =X60/Dźwignie!$D$5 -> 14.01517998 | Z60: =V60/Dźwignie!$D$2 -> 0.9651345667 | AA60: =X60/Dźwignie!$D$3 -> 1.401517998 | AB60: 1.777093709 | AC60: 1.115588954 | AD60: 1.982506113
A61: 49 | B61: 0.3882769942 | C61: =NORMINV(B61,Dźwignie!$L$8,Dźwignie!$L$9) -> 335809.3694 | D61: =Dźwignie!$L$7*C61 -> 503714.0541 | F61: =C61*Dźwignie!$G$5 -> 335809.3694 | G61: 167904.6847 | H61: =Dźwignie!$G$6 -> 50000 | I61: 117904.6847 | J61: =I61-Dźwignie!$D$6 -> 97904.68469 | K61: =IF(J61>0,J61*(1-Dźwignie!$D$9),J61) -> 79302.7946 | L61: =K61/Dźwignie!$D$5 -> 7.93027946 | M61: =I61/Dźwignie!$D$2 -> 0.5895234234 | N61: =K61/Dźwignie!$D$3 -> 0.793027946 | O61: 1.42407136 | P61: 1.204280317 | Q61: 1.714981109 | S61: =C61*Dźwignie!$G$8 -> 167904.6847 | T61: 335809.3694 | U61: =Dźwignie!$G$9 -> 150000 | V61: 185809.3694 | W61: =V61-Dźwignie!$D$6 -> 165809.3694 | X61: =IF(W61>0,W61*(1-Dźwignie!$D$9),W61) -> 134305.5892 | Y61: =X61/Dźwignie!$D$5 -> 13.43055892 | Z61: =V61/Dźwignie!$D$2 -> 0.9290468469 | AA61: =X61/Dźwignie!$D$3 -> 1.343055892 | AB61: 1.80727899 | AC61: 1.120620445 | AD61: 2.025273787
A62: 50 | B62: 0.3619445562 | C62: =NORMINV(B62,Dźwignie!$L$8,Dźwignie!$L$9) -> 332336.7053 | D62: =Dźwignie!$L$7*C62 -> 498505.058 | F62: =C62*Dźwignie!$G$5 -> 332336.7053 | G62: 166168.3527 | H62: =Dźwignie!$G$6 -> 50000 | I62: 116168.3527 | J62: =I62-Dźwignie!$D$6 -> 96168.35267 | K62: =IF(J62>0,J62*(1-Dźwignie!$D$9),J62) -> 77896.36566 | L62: =K62/Dźwignie!$D$5 -> 7.789636566 | M62: =I62/Dźwignie!$D$2 -> 0.5808417633 | N62: =K62/Dźwignie!$D$3 -> 0.7789636566 | O62: 1.430409822 | P62: 1.207968624 | Q62: 1.727890185 | S62: =C62*Dźwignie!$G$8 -> 166168.3527 | T62: 332336.7053 | U62: =Dźwignie!$G$9 -> 150000 | V62: 182336.7053 | W62: =V62-Dźwignie!$D$6 -> 162336.7053 | X62: =IF(W62>0,W62*(1-Dźwignie!$D$9),W62) -> 131492.7313 | Y62: =X62/Dźwignie!$D$5 -> 13.14927313 | Z62: =V62/Dźwignie!$D$2 -> 0.9116835267 | AA62: =X62/Dźwignie!$D$3 -> 1.314927313 | AB62: 1.82265389 | AC62: 1.123200726 | AD62: 2.047206173
A63: 51 | B63: 0.2138300538 | C63: =NORMINV(B63,Dźwignie!$L$8,Dźwignie!$L$9) -> 310339.897 | D63: =Dźwignie!$L$7*C63 -> 465509.8455 | F63: =C63*Dźwignie!$G$5 -> 310339.897 | G63: 155169.9485 | H63: =Dźwignie!$G$6 -> 50000 | I63: 105169.9485 | J63: =I63-Dźwignie!$D$6 -> 85169.9485 | K63: =IF(J63>0,J63*(1-Dźwignie!$D$9),J63) -> 68987.65829 | L63: =K63/Dźwignie!$D$5 -> 6.898765829 | M63: =I63/Dźwignie!$D$2 -> 0.5258497425 | N63: =K63/Dźwignie!$D$3 -> 0.6898765829 | O63: 1.47542098 | P63: 1.234824611 | Q63: 1.821886137 | S63: =C63*Dźwignie!$G$8 -> 155169.9485 | T63: 310339.897 | U63: =Dźwignie!$G$9 -> 150000 | V63: 160339.897 | W63: =V63-Dźwignie!$D$6 -> 140339.897 | X63: =IF(W63>0,W63*(1-Dźwignie!$D$9),W63) -> 113675.3166 | Y63: =X63/Dźwignie!$D$5 -> 11.36753166 | Z63: =V63/Dźwignie!$D$2 -> 0.801699485 | AA63: =X63/Dźwignie!$D$3 -> 1.136753166 | AB63: 1.935512638 | AC63: 1.142511149 | AD63: 2.211344768
A64: 52 | B64: 0.7770090103 | C64: =NORMINV(B64,Dźwignie!$L$8,Dźwignie!$L$9) -> 388106.5369 | D64: =Dźwignie!$L$7*C64 -> 582159.8053 | F64: =C64*Dźwignie!$G$5 -> 388106.5369 | G64: 194053.2684 | H64: =Dźwignie!$G$6 -> 50000 | I64: 144053.2684 | J64: =I64-Dźwignie!$D$6 -> 124053.2684 | K64: =IF(J64>0,J64*(1-Dźwignie!$D$9),J64) -> 100483.1474 | L64: =K64/Dźwignie!$D$5 -> 10.04831474 | M64: =I64/Dźwignie!$D$2 -> 0.7202663422 | N64: =K64/Dźwignie!$D$3 -> 1.004831474 | O64: 1.347093825 | P64: 1.161221065 | Q64: 1.564273726 | S64: =C64*Dźwignie!$G$8 -> 194053.2684 | T64: 388106.5369 | U64: =Dźwignie!$G$9 -> 150000 | V64: 238106.5369 | W64: =V64-Dźwignie!$D$6 -> 218106.5369 | X64: =IF(W64>0,W64*(1-Dźwignie!$D$9),W64) -> 176666.2949 | Y64: =X64/Dźwignie!$D$5 -> 17.66662949 | Z64: =V64/Dźwignie!$D$2 -> 1.190532684 | AA64: =X64/Dźwignie!$D$3 -> 1.766662949 | AB64: 1.629970105 | AC64: 1.091698306 | AD64: 1.779435603
A65: 53 | B65: 0.4184657931 | C65: =NORMINV(B65,Dźwignie!$L$8,Dźwignie!$L$9) -> 339709.0044 | D65: =Dźwignie!$L$7*C65 -> 509563.5066 | F65: =C65*Dźwignie!$G$5 -> 339709.0044 | G65: 169854.5022 | H65: =Dźwignie!$G$6 -> 50000 | I65: 119854.5022 | J65: =I65-Dźwignie!$D$6 -> 99854.50219 | K65: =IF(J65>0,J65*(1-Dźwignie!$D$9),J65) -> 80882.14677 | L65: =K65/Dźwignie!$D$5 -> 8.088214677 | M65: =I65/Dźwignie!$D$2 -> 0.5992725109 | N65: =K65/Dźwignie!$D$3 -> 0.8088214677 | O65: 1.417172481 | P65: 1.20029142 | Q65: 1.701019969 | S65: =C65*Dźwignie!$G$8 -> 169854.5022 | T65: 339709.0044 | U65: =Dźwignie!$G$9 -> 150000 | V65: 189709.0044 | W65: =V65-Dźwignie!$D$6 -> 169709.0044 | X65: =IF(W65>0,W65*(1-Dźwignie!$D$9),W65) -> 137464.2935 | Y65: =X65/Dźwignie!$D$5 -> 13.74642935 | Z65: =V65/Dźwignie!$D$2 -> 0.9485450219 | AA65: =X65/Dźwignie!$D$3 -> 1.374642935 | AB65: 1.790684662 | AC65: 1.117848785 | AD65: 2.001714674
A66: 54 | B66: 0.4386144876 | C66: =NORMINV(B66,Dźwignie!$L$8,Dźwignie!$L$9) -> 342275.8539 | D66: =Dźwignie!$L$7*C66 -> 513413.7808 | F66: =C66*Dźwignie!$G$5 -> 342275.8539 | G66: 171137.9269 | H66: =Dźwignie!$G$6 -> 50000 | I66: 121137.9269 | J66: =I66-Dźwignie!$D$6 -> 101137.9269 | K66: =IF(J66>0,J66*(1-Dźwignie!$D$9),J66) -> 81921.72082 | L66: =K66/Dźwignie!$D$5 -> 8.192172082 | M66: =I66/Dźwignie!$D$2 -> 0.6056896347 | N66: =K66/Dźwignie!$D$3 -> 0.8192172082 | O66: 1.412752647 | P66: 1.197749752 | Q66: 1.692124133 | S66: =C66*Dźwignie!$G$8 -> 171137.9269 | T66: 342275.8539 | U66: =Dźwignie!$G$9 -> 150000 | V66: 192275.8539 | W66: =V66-Dźwignie!$D$6 -> 172275.8539 | X66: =IF(W66>0,W66*(1-Dźwignie!$D$9),W66) -> 139543.4416 | Y66: =X66/Dźwignie!$D$5 -> 13.95434416 | Z66: =V66/Dźwignie!$D$2 -> 0.9613792693 | AA66: =X66/Dźwignie!$D$3 -> 1.395434416 | AB66: 1.780129158 | AC66: 1.11609288 | AD66: 1.986789479
A67: 55 | B67: 0.7321112752 | C67: =NORMINV(B67,Dźwignie!$L$8,Dźwignie!$L$9) -> 380960.5437 | D67: =Dźwignie!$L$7*C67 -> 571440.8155 | F67: =C67*Dźwignie!$G$5 -> 380960.5437 | G67: 190480.2718 | H67: =Dźwignie!$G$6 -> 50000 | I67: 140480.2718 | J67: =I67-Dźwignie!$D$6 -> 120480.2718 | K67: =IF(J67>0,J67*(1-Dźwignie!$D$9),J67) -> 97589.02019 | L67: =K67/Dźwignie!$D$5 -> 9.758902019 | M67: =I67/Dźwignie!$D$2 -> 0.7024013592 | N67: =K67/Dźwignie!$D$3 -> 0.9758902019 | O67: 1.355921863 | P67: 1.166002281 | Q67: 1.581007985 | S67: =C67*Dźwignie!$G$8 -> 190480.2718 | T67: 380960.5437 | U67: =Dźwignie!$G$9 -> 150000 | V67: 230960.5437 | W67: =V67-Dźwignie!$D$6 -> 210960.5437 | X67: =IF(W67>0,W67*(1-Dźwignie!$D$9),W67) -> 170878.0404 | Y67: =X67/Dźwignie!$D$5 -> 17.08780404 | Z67: =V67/Dźwignie!$D$2 -> 1.154802718 | AA67: =X67/Dźwignie!$D$3 -> 1.708780404 | AB67: 1.649461582 | AC67: 1.094804458 | AD67: 1.805837893
A68: 56 | B68: 0.2272922993 | C68: =NORMINV(B68,Dźwignie!$L$8,Dźwignie!$L$9) -> 312610.3147 | D68: =Dźwignie!$L$7*C68 -> 468915.472 | F68: =C68*Dźwignie!$G$5 -> 312610.3147 | G68: 156305.1573 | H68: =Dźwignie!$G$6 -> 50000 | I68: 106305.1573 | J68: =I68-Dźwignie!$D$6 -> 86305.15733 | K68: =IF(J68>0,J68*(1-Dźwignie!$D$9),J68) -> 69907.17743 | L68: =K68/Dźwignie!$D$5 -> 6.990717743 | M68: =I68/Dźwignie!$D$2 -> 0.5315257866 | N68: =K68/Dźwignie!$D$3 -> 0.6990717743 | O68: 1.470344067 | P68: 1.231735862 | Q68: 1.811075516 | S68: =C68*Dźwignie!$G$8 -> 156305.1573 | T68: 312610.3147 | U68: =Dźwignie!$G$9 -> 150000 | V68: 162610.3147 | W68: =V68-Dźwignie!$D$6 -> 142610.3147 | X68: =IF(W68>0,W68*(1-Dźwignie!$D$9),W68) -> 115514.3549 | Y68: =X68/Dźwignie!$D$5 -> 11.55143549 | Z68: =V68/Dźwignie!$D$2 -> 0.8130515733 | AA68: =X68/Dźwignie!$D$3 -> 1.155143549 | AB68: 1.922450709 | AC68: 1.14024231 | AD68: 2.192059638
A69: 57 | B69: 0.3022350669 | C69: =NORMINV(B69,Dźwignie!$L$8,Dźwignie!$L$9) -> 324100.8502 | D69: =Dźwignie!$L$7*C69 -> 486151.2754 | F69: =C69*Dźwignie!$G$5 -> 324100.8502 | G69: 162050.4251 | H69: =Dźwignie!$G$6 -> 50000 | I69: 112050.4251 | J69: =I69-Dźwignie!$D$6 -> 92050.42512 | K69: =IF(J69>0,J69*(1-Dźwignie!$D$9),J69) -> 74560.84435 | L69: =K69/Dźwignie!$D$5 -> 7.456084435 | M69: =I69/Dźwignie!$D$2 -> 0.5602521256 | N69: =K69/Dźwignie!$D$3 -> 0.7456084435 | O69: 1.446227669 | P69: 1.217272218 | Q69: 1.760452762 | S69: =C69*Dźwignie!$G$8 -> 162050.4251 | T69: 324100.8502 | U69: =Dźwignie!$G$9 -> 150000 | V69: 174100.8502 | W69: =V69-Dźwignie!$D$6 -> 154100.8502 | X69: =IF(W69>0,W69*(1-Dźwignie!$D$9),W69) -> 124821.6887 | Y69: =X69/Dźwignie!$D$5 -> 12.48216887 | Z69: =V69/Dźwignie!$D$2 -> 0.8705042512 | AA69: =X69/Dźwignie!$D$3 -> 1.248216887 | AB69: 1.861569601 | AC69: 1.129785137 | AD69: 2.103173667
A70: 58 | B70: 0.3334492445 | C70: =NORMINV(B70,Dźwignie!$L$8,Dźwignie!$L$9) -> 328479.5733 | D70: =Dźwignie!$L$7*C70 -> 492719.36 | F70: =C70*Dźwignie!$G$5 -> 328479.5733 | G70: 164239.7867 | H70: =Dźwignie!$G$6 -> 50000 | I70: 114239.7867 | J70: =I70-Dźwignie!$D$6 -> 94239.78667 | K70: =IF(J70>0,J70*(1-Dźwignie!$D$9),J70) -> 76334.2272 | L70: =K70/Dźwignie!$D$5 -> 7.63342272 | M70: =I70/Dźwignie!$D$2 -> 0.5711989333 | N70: =K70/Dźwignie!$D$3 -> 0.763342272 | O70: 1.437675887 | P70: 1.212224589 | Q70: 1.742786062 | S70: =C70*Dźwignie!$G$8 -> 164239.7867 | T70: 328479.5733 | U70: =Dźwignie!$G$9 -> 150000 | V70: 178479.5733 | W70: =V70-Dźwignie!$D$6 -> 158479.5733 | X70: =IF(W70>0,W70*(1-Dźwignie!$D$9),W70) -> 128368.4544 | Y70: =X70/Dźwignie!$D$5 -> 12.83684544 | Z70: =V70/Dźwignie!$D$2 -> 0.8923978667 | AA70: =X70/Dźwignie!$D$3 -> 1.283684544 | AB70: 1.840432309 | AC70: 1.126199229 | AD70: 2.072693448
A71: 59 | B71: 0.6591792703 | C71: =NORMINV(B71,Dźwignie!$L$8,Dźwignie!$L$9) -> 370511.2121 | D71: =Dźwignie!$L$7*C71 -> 555766.8181 | F71: =C71*Dźwignie!$G$5 -> 370511.2121 | G71: 185255.606 | H71: =Dźwignie!$G$6 -> 50000 | I71: 135255.606 | J71: =I71-Dźwignie!$D$6 -> 115255.606 | K71: =IF(J71>0,J71*(1-Dźwignie!$D$9),J71) -> 93357.0409 | L71: =K71/Dźwignie!$D$5 -> 9.33570409 | M71: =I71/Dźwignie!$D$2 -> 0.6762780302 | N71: =K71/Dźwignie!$D$3 -> 0.933570409 | O71: 1.369670444 | P71: 1.173527351 | Q71: 1.607345728 | S71: =C71*Dźwignie!$G$8 -> 185255.606 | T71: 370511.2121 | U71: =Dźwignie!$G$9 -> 150000 | V71: 220511.2121 | W71: =V71-Dźwignie!$D$6 -> 200511.2121 | X71: =IF(W71>0,W71*(1-Dźwignie!$D$9),W71) -> 162414.0818 | Y71: =X71/Dźwignie!$D$5 -> 16.24140818 | Z71: =V71/Dźwignie!$D$2 -> 1.10255606 | AA71: =X71/Dźwignie!$D$3 -> 1.624140818 | AB71: 1.68023752 | AC71: 1.099745046 | AD71: 1.847832888
A72: 60 | B72: 0.8613715172 | C72: =NORMINV(B72,Dźwignie!$L$8,Dźwignie!$L$9) -> 404325.099 | D72: =Dźwignie!$L$7*C72 -> 606487.6485 | F72: =C72*Dźwignie!$G$5 -> 404325.099 | G72: 202162.5495 | H72: =Dźwignie!$G$6 -> 50000 | I72: 152162.5495 | J72: =I72-Dźwignie!$D$6 -> 132162.5495 | K72: =IF(J72>0,J72*(1-Dźwignie!$D$9),J72) -> 107051.6651 | L72: =K72/Dźwignie!$D$5 -> 10.70516651 | M72: =I72/Dźwignie!$D$2 -> 0.7608127474 | N72: =K72/Dźwignie!$D$3 -> 1.070516651 | O72: 1.328595966 | P72: 1.1513288 | Q72: 1.5296508 | S72: =C72*Dźwignie!$G$8 -> 202162.5495 | T72: 404325.099 | U72: =Dźwignie!$G$9 -> 150000 | V72: 254325.099 | W72: =V72-Dźwignie!$D$6 -> 234325.099 | X72: =IF(W72>0,W72*(1-Dźwignie!$D$9),W72) -> 189803.3302 | Y72: =X72/Dźwignie!$D$5 -> 18.98033302 | Z72: =V72/Dźwignie!$D$2 -> 1.271625495 | AA72: =X72/Dźwignie!$D$3 -> 1.898033302 | AB72: 1.589796291 | AC72: 1.085351506 | AD72: 1.725487798
A73: 61 | B73: 0.4041478038 | C73: =NORMINV(B73,Dźwignie!$L$8,Dźwignie!$L$9) -> 337868.7303 | D73: =Dźwignie!$L$7*C73 -> 506803.0955 | F73: =C73*Dźwignie!$G$5 -> 337868.7303 | G73: 168934.3652 | H73: =Dźwignie!$G$6 -> 50000 | I73: 118934.3652 | J73: =I73-Dźwignie!$D$6 -> 98934.36516 | K73: =IF(J73>0,J73*(1-Dźwignie!$D$9),J73) -> 80136.83578 | L73: =K73/Dźwignie!$D$5 -> 8.013683578 | M73: =I73/Dźwignie!$D$2 -> 0.5946718258 | N73: =K73/Dźwignie!$D$3 -> 0.8013683578 | O73: 1.42039994 | P73: 1.202154226 | Q73: 1.707539791 | S73: =C73*Dźwignie!$G$8 -> 168934.3652 | T73: 337868.7303 | U73: =Dźwignie!$G$9 -> 150000 | V73: 187868.7303 | W73: =V73-Dźwignie!$D$6 -> 167868.7303 | X73: =IF(W73>0,W73*(1-Dźwignie!$D$9),W73) -> 135973.6716 | Y73: =X73/Dźwignie!$D$5 -> 13.59736716 | Z73: =V73/Dźwignie!$D$2 -> 0.9393436516 | AA73: =X73/Dźwignie!$D$3 -> 1.359736716 | AB73: 1.798429838 | AC73: 1.119140712 | AD73: 2.012696049
A74: 62 | B74: 0.2652598619 | C74: =NORMINV(B74,Dźwignie!$L$8,Dźwignie!$L$9) -> 318639.3577 | D74: =Dźwignie!$L$7*C74 -> 477959.0366 | F74: =C74*Dźwignie!$G$5 -> 318639.3577 | G74: 159319.6789 | H74: =Dźwignie!$G$6 -> 50000 | I74: 109319.6789 | J74: =I74-Dźwignie!$D$6 -> 89319.67886 | K74: =IF(J74>0,J74*(1-Dźwignie!$D$9),J74) -> 72348.93987 | L74: =K74/Dźwignie!$D$5 -> 7.234893987 | M74: =I74/Dźwignie!$D$2 -> 0.5465983943 | N74: =K74/Dźwignie!$D$3 -> 0.7234893987 | O74: 1.457374194 | P74: 1.223914822 | Q74: 1.783701877 | S74: =C74*Dźwignie!$G$8 -> 159319.6789 | T74: 318639.3577 | U74: =Dźwignie!$G$9 -> 150000 | V74: 168639.3577 | W74: =V74-Dźwignie!$D$6 -> 148639.3577 | X74: =IF(W74>0,W74*(1-Dźwignie!$D$9),W74) -> 120397.8797 | Y74: =X74/Dźwignie!$D$5 -> 12.03978797 | Z74: =V74/Dźwignie!$D$2 -> 0.8431967886 | AA74: =X74/Dźwignie!$D$3 -> 1.203978797 | AB74: 1.889472078 | AC74: 1.134553865 | AD74: 2.143707848
A75: 63 | B75: 0.4011009336 | C75: =NORMINV(B75,Dźwignie!$L$8,Dźwignie!$L$9) -> 337475.0752 | D75: =Dźwignie!$L$7*C75 -> 506212.6127 | F75: =C75*Dźwignie!$G$5 -> 337475.0752 | G75: 168737.5376 | H75: =Dźwignie!$G$6 -> 50000 | I75: 118737.5376 | J75: =I75-Dźwignie!$D$6 -> 98737.53758 | K75: =IF(J75>0,J75*(1-Dźwignie!$D$9),J75) -> 79977.40544 | L75: =K75/Dźwignie!$D$5 -> 7.997740544 | M75: =I75/Dźwignie!$D$2 -> 0.5936876879 | N75: =K75/Dźwignie!$D$3 -> 0.7997740544 | O75: 1.421096824 | P75: 1.202557209 | Q75: 1.70895023 | S75: =C75*Dźwignie!$G$8 -> 168737.5376 | T75: 337475.0752 | U75: =Dźwignie!$G$9 -> 150000 | V75: 187475.0752 | W75: =V75-Dźwignie!$D$6 -> 167475.0752 | X75: =IF(W75>0,W75*(1-Dźwignie!$D$9),W75) -> 135654.8109 | Y75: =X75/Dźwignie!$D$5 -> 13.56548109 | Z75: =V75/Dźwignie!$D$2 -> 0.9373753758 | AA75: =X75/Dźwignie!$D$3 -> 1.356548109 | AB75: 1.80010636 | AC75: 1.119420755 | AD75: 2.015076422
A76: 64 | B76: 0.2735459805 | C76: =NORMINV(B76,Dźwignie!$L$8,Dźwignie!$L$9) -> 319893.8271 | D76: =Dźwignie!$L$7*C76 -> 479840.7407 | F76: =C76*Dźwignie!$G$5 -> 319893.8271 | G76: 159946.9136 | H76: =Dźwignie!$G$6 -> 50000 | I76: 109946.9136 | J76: =I76-Dźwignie!$D$6 -> 89946.91355 | K76: =IF(J76>0,J76*(1-Dźwignie!$D$9),J76) -> 72856.99998 | L76: =K76/Dźwignie!$D$5 -> 7.285699998 | M76: =I76/Dźwignie!$D$2 -> 0.5497345678 | N76: =K76/Dźwignie!$D$3 -> 0.7285699998 | O76: 1.454764926 | P76: 1.222353377 | Q76: 1.77823682 | S76: =C76*Dźwignie!$G$8 -> 159946.9136 | T76: 319893.8271 | U76: =Dźwignie!$G$9 -> 150000 | V76: 169893.8271 | W76: =V76-Dźwignie!$D$6 -> 149893.8271 | X76: =IF(W76>0,W76*(1-Dźwignie!$D$9),W76) -> 121414 | Y76: =X76/Dźwignie!$D$5 -> 12.1414 | Z76: =V76/Dźwignie!$D$2 -> 0.8494691355 | AA76: =X76/Dźwignie!$D$3 -> 1.21414 | AB76: 1.882904356 | AC76: 1.133427776 | AD76: 2.134136097
A77: 65 | B77: 0.5038060546 | C77: =NORMINV(B77,Dźwignie!$L$8,Dźwignie!$L$9) -> 350477.0254 | D77: =Dźwignie!$L$7*C77 -> 525715.5382 | F77: =C77*Dźwignie!$G$5 -> 350477.0254 | G77: =$D77-F77 -> 175238.5127 | H77: =Dźwignie!$G$6 -> 50000 | I77: =G77-H77 -> 125238.5127 | J77: =I77-Dźwignie!$D$6 -> 105238.5127 | K77: =IF(J77>0,J77*(1-Dźwignie!$D$9),J77) -> 85243.1953 | L77: =K77/Dźwignie!$D$5 -> 8.52431953 | M77: =I77/Dźwignie!$D$2 -> 0.6261925636 | N77: =K77/Dźwignie!$D$3 -> 0.852431953 | O77: =IF(I77<>0,G77/I77,"N ") -> 1.399238213 | P77: =IF(J77<>0,I77/J77,"N ") -> 1.190044495 | Q77: =IF(ISTEXT(O77),O77,IF(ISTEXT(P77),P77,O77*P77)) -> 1.665155732 | S77: =C77*Dźwignie!$G$8 -> 175238.5127 | T77: =$D77-S77 -> 350477.0254 | U77: =Dźwignie!$G$9 -> 150000 | V77: =T77-U77 -> 200477.0254 | W77: =V77-Dźwignie!$D$6 -> 180477.0254 | X77: =IF(W77>0,W77*(1-Dźwignie!$D$9),W77) -> 146186.3906 | Y77: =X77/Dźwignie!$D$5 -> 14.61863906 | Z77: =V77/Dźwignie!$D$2 -> 1.002385127 | AA77: =X77/Dźwignie!$D$3 -> 1.461863906 | AB77: =IF(V77<>0,T77/V77,"N ") -> 1.748215411 | AC77: =IF(W77<>0,V77/W77,"N ") -> 1.110817429 | AD77: =IF(ISTEXT(AB77),AB77,IF(ISTEXT(AC77),AC77,AB77*AC77)) -> 1.941948149
A78: 66 | B78: 0.2077401876 | C78: =NORMINV(B78,Dźwignie!$L$8,Dźwignie!$L$9) -> 309285.6343 | D78: =Dźwignie!$L$7*C78 -> 463928.4514 | F78: =C78*Dźwignie!$G$5 -> 309285.6343 | G78: 154642.8171 | H78: =Dźwignie!$G$6 -> 50000 | I78: 104642.8171 | J78: =I78-Dźwignie!$D$6 -> 84642.81714 | K78: =IF(J78>0,J78*(1-Dźwignie!$D$9),J78) -> 68560.68189 | L78: =K78/Dźwignie!$D$5 -> 6.856068189 | M78: =I78/Dźwignie!$D$2 -> 0.5232140857 | N78: =K78/Dźwignie!$D$3 -> 0.6856068189 | O78: 1.477815882 | P78: 1.236287031 | Q78: 1.82700461 | S78: =C78*Dźwignie!$G$8 -> 154642.8171 | T78: 309285.6343 | U78: =Dźwignie!$G$9 -> 150000 | V78: 159285.6343 | W78: =V78-Dźwignie!$D$6 -> 139285.6343 | X78: =IF(W78>0,W78*(1-Dźwignie!$D$9),W78) -> 112821.3638 | Y78: =X78/Dźwignie!$D$5 -> 11.28213638 | Z78: =V78/Dźwignie!$D$2 -> 0.7964281714 | AA78: =X78/Dźwignie!$D$3 -> 1.128213638 | AB78: 1.941704509 | AC78: 1.143589826 | AD78: 2.220513522
A79: 67 | B79: 0.09929472208 | C79: =NORMINV(B79,Dźwignie!$L$8,Dźwignie!$L$9) -> 285720.9662 | D79: =Dźwignie!$L$7*C79 -> 428581.4493 | F79: =C79*Dźwignie!$G$5 -> 285720.9662 | G79: 142860.4831 | H79: =Dźwignie!$G$6 -> 50000 | I79: 92860.48309 | J79: =I79-Dźwignie!$D$6 -> 72860.48309 | K79: =IF(J79>0,J79*(1-Dźwignie!$D$9),J79) -> 59016.9913 | L79: =K79/Dźwignie!$D$5 -> 5.90169913 | M79: =I79/Dźwignie!$D$2 -> 0.4643024154 | N79: =K79/Dźwignie!$D$3 -> 0.590169913 | O79: 1.53844217 | P79: 1.274497219 | Q79: 1.960740267 | S79: =C79*Dźwignie!$G$8 -> 142860.4831 | T79: 285720.9662 | U79: =Dźwignie!$G$9 -> 150000 | V79: 135720.9662 | W79: =V79-Dźwignie!$D$6 -> 115720.9662 | X79: =IF(W79>0,W79*(1-Dźwignie!$D$9),W79) -> 93733.9826 | Y79: =X79/Dźwignie!$D$5 -> 9.37339826 | Z79: =V79/Dźwignie!$D$2 -> 0.6786048309 | AA79: =X79/Dźwignie!$D$3 -> 0.937339826 | AB79: 2.105208755 | AC79: 1.172829528 | AD79: 2.469050991
A80: 68 | B80: 0.852060318 | C80: =NORMINV(B80,Dźwignie!$L$8,Dźwignie!$L$9) -> 402265.5382 | D80: =Dźwignie!$L$7*C80 -> 603398.3074 | F80: =C80*Dźwignie!$G$5 -> 402265.5382 | G80: 201132.7691 | H80: =Dźwignie!$G$6 -> 50000 | I80: 151132.7691 | J80: =I80-Dźwignie!$D$6 -> 131132.7691 | K80: =IF(J80>0,J80*(1-Dźwignie!$D$9),J80) -> 106217.543 | L80: =K80/Dźwignie!$D$5 -> 10.6217543 | M80: =I80/Dźwignie!$D$2 -> 0.7556638456 | N80: =K80/Dźwignie!$D$3 -> 1.06217543 | O80: 1.330834936 | P80: 1.152517179 | Q80: 1.533810126 | S80: =C80*Dźwignie!$G$8 -> 201132.7691 | T80: 402265.5382 | U80: =Dźwignie!$G$9 -> 150000 | V80: 252265.5382 | W80: =V80-Dźwignie!$D$6 -> 232265.5382 | X80: =IF(W80>0,W80*(1-Dźwignie!$D$9),W80) -> 188135.086 | Y80: =X80/Dźwignie!$D$5 -> 18.8135086 | Z80: =V80/Dźwignie!$D$2 -> 1.261327691 | AA80: =X80/Dźwignie!$D$3 -> 1.88135086 | AB80: 1.594611539 | AC80: 1.08610834 | AD80: 1.731920892
A81: 69 | B81: 0.9989759326 | C81: =NORMINV(B81,Dźwignie!$L$8,Dźwignie!$L$9) -> 504158.1106 | D81: =Dźwignie!$L$7*C81 -> 756237.1659 | F81: =C81*Dźwignie!$G$5 -> 504158.1106 | G81: 252079.0553 | H81: =Dźwignie!$G$6 -> 50000 | I81: 202079.0553 | J81: =I81-Dźwignie!$D$6 -> 182079.0553 | K81: =IF(J81>0,J81*(1-Dźwignie!$D$9),J81) -> 147484.0348 | L81: =K81/Dźwignie!$D$5 -> 14.74840348 | M81: =I81/Dźwignie!$D$2 -> 1.010395277 | N81: =K81/Dźwignie!$D$3 -> 1.474840348 | O81: 1.247427918 | P81: 1.109842398 | Q81: 1.384448392 | S81: =C81*Dźwignie!$G$8 -> 252079.0553 | T81: 504158.1106 | U81: =Dźwignie!$G$9 -> 150000 | V81: 354158.1106 | W81: =V81-Dźwignie!$D$6 -> 334158.1106 | X81: =IF(W81>0,W81*(1-Dźwignie!$D$9),W81) -> 270668.0696 | Y81: =X81/Dźwignie!$D$5 -> 27.06680696 | Z81: =V81/Dźwignie!$D$2 -> 1.770790553 | AA81: =X81/Dźwignie!$D$3 -> 2.706680696 | AB81: 1.423539644 | AC81: 1.059851907 | AD81: 1.508741205
A82: 70 | B82: 0.2800918818 | C82: =NORMINV(B82,Dźwignie!$L$8,Dźwignie!$L$9) -> 320871.5711 | D82: =Dźwignie!$L$7*C82 -> 481307.3567 | F82: =C82*Dźwignie!$G$5 -> 320871.5711 | G82: 160435.7856 | H82: =Dźwignie!$G$6 -> 50000 | I82: 110435.7856 | J82: =I82-Dźwignie!$D$6 -> 90435.78556 | K82: =IF(J82>0,J82*(1-Dźwignie!$D$9),J82) -> 73252.9863 | L82: =K82/Dźwignie!$D$5 -> 7.32529863 | M82: =I82/Dźwignie!$D$2 -> 0.5521789278 | N82: =K82/Dźwignie!$D$3 -> 0.732529863 | O82: 1.452751794 | P82: 1.221151394 | Q82: 1.774029877 | S82: =C82*Dźwignie!$G$8 -> 160435.7856 | T82: 320871.5711 | U82: =Dźwignie!$G$9 -> 150000 | V82: 170871.5711 | W82: =V82-Dźwignie!$D$6 -> 150871.5711 | X82: =IF(W82>0,W82*(1-Dźwignie!$D$9),W82) -> 122205.9726 | Y82: =X82/Dźwignie!$D$5 -> 12.22059726 | Z82: =V82/Dźwignie!$D$2 -> 0.8543578556 | AA82: =X82/Dźwignie!$D$3 -> 1.222059726 | AB82: 1.87785229 | AC82: 1.132563079 | AD82: 2.126786171
A83: 71 | B83: 0.4586556554 | C83: =NORMINV(B83,Dźwignie!$L$8,Dźwignie!$L$9) -> 344808.9443 | D83: =Dźwignie!$L$7*C83 -> 517213.4165 | F83: =C83*Dźwignie!$G$5 -> 344808.9443 | G83: 172404.4722 | H83: =Dźwignie!$G$6 -> 50000 | I83: 122404.4722 | J83: =I83-Dźwignie!$D$6 -> 102404.4722 | K83: =IF(J83>0,J83*(1-Dźwignie!$D$9),J83) -> 82947.62245 | L83: =K83/Dźwignie!$D$5 -> 8.294762245 | M83: =I83/Dźwignie!$D$2 -> 0.6120223608 | N83: =K83/Dźwignie!$D$3 -> 0.8294762245 | O83: 1.408481807 | P83: 1.19530397 | Q83: 1.683563896 | S83: =C83*Dźwignie!$G$8 -> 172404.4722 | T83: 344808.9443 | U83: =Dźwignie!$G$9 -> 150000 | V83: 194808.9443 | W83: =V83-Dźwignie!$D$6 -> 174808.9443 | X83: =IF(W83>0,W83*(1-Dźwignie!$D$9),W83) -> 141595.2449 | Y83: =X83/Dźwignie!$D$5 -> 14.15952449 | Z83: =V83/Dźwignie!$D$2 -> 0.9740447216 | AA83: =X83/Dźwignie!$D$3 -> 1.415952449 | AB83: 1.76998518 | AC83: 1.114410622 | AD83: 1.972490285
A84: 72 | B84: 0.2947294712 | C84: =NORMINV(B84,Dźwignie!$L$8,Dźwignie!$L$9) -> 323018.9871 | D84: =Dźwignie!$L$7*C84 -> 484528.4806 | F84: =C84*Dźwignie!$G$5 -> 323018.9871 | G84: 161509.4935 | H84: =Dźwignie!$G$6 -> 50000 | I84: 111509.4935 | J84: =I84-Dźwignie!$D$6 -> 91509.49353 | K84: =IF(J84>0,J84*(1-Dźwignie!$D$9),J84) -> 74122.68976 | L84: =K84/Dźwignie!$D$5 -> 7.412268976 | M84: =I84/Dźwignie!$D$2 -> 0.5575474676 | N84: =K84/Dźwignie!$D$3 -> 0.7412268976 | O84: 1.448392315 | P84: 1.218556559 | Q84: 1.764947956 | S84: =C84*Dźwignie!$G$8 -> 161509.4935 | T84: 323018.9871 | U84: =Dźwignie!$G$9 -> 150000 | V84: 173018.9871 | W84: =V84-Dźwignie!$D$6 -> 153018.9871 | X84: =IF(W84>0,W84*(1-Dźwignie!$D$9),W84) -> 123945.3795 | Y84: =X84/Dźwignie!$D$5 -> 12.39453795 | Z84: =V84/Dźwignie!$D$2 -> 0.8650949353 | AA84: =X84/Dźwignie!$D$3 -> 1.239453795 | AB84: 1.866956873 | AC84: 1.130702734 | AD84: 2.110973241
A85: 73 | B85: 0.3587126136 | C85: =NORMINV(B85,Dźwignie!$L$8,Dźwignie!$L$9) -> 331904.8974 | D85: =Dźwignie!$L$7*C85 -> 497857.3462 | F85: =C85*Dźwignie!$G$5 -> 331904.8974 | G85: 165952.4487 | H85: =Dźwignie!$G$6 -> 50000 | I85: 115952.4487 | J85: =I85-Dźwignie!$D$6 -> 95952.44872 | K85: =IF(J85>0,J85*(1-Dźwignie!$D$9),J85) -> 77721.48347 | L85: =K85/Dźwignie!$D$5 -> 7.772148347 | M85: =I85/Dźwignie!$D$2 -> 0.5797622436 | N85: =K85/Dźwignie!$D$3 -> 0.7772148347 | O85: 1.431211247 | P85: 1.208436577 | Q85: 1.729528021 | S85: =C85*Dźwignie!$G$8 -> 165952.4487 | T85: 331904.8974 | U85: =Dźwignie!$G$9 -> 150000 | V85: 181904.8974 | W85: =V85-Dźwignie!$D$6 -> 161904.8974 | X85: =IF(W85>0,W85*(1-Dźwignie!$D$9),W85) -> 131142.9669 | Y85: =X85/Dźwignie!$D$5 -> 13.11429669 | Z85: =V85/Dźwignie!$D$2 -> 0.9095244872 | AA85: =X85/Dźwignie!$D$3 -> 1.311429669 | AB85: 1.824606715 | AC85: 1.123529308 | AD85: 2.049999121
A86: 74 | B86: 0.3876494169 | C86: =NORMINV(B86,Dźwignie!$L$8,Dźwignie!$L$9) -> 335727.4627 | D86: =Dźwignie!$L$7*C86 -> 503591.194 | F86: =C86*Dźwignie!$G$5 -> 335727.4627 | G86: 167863.7313 | H86: =Dźwignie!$G$6 -> 50000 | I86: 117863.7313 | J86: =I86-Dźwignie!$D$6 -> 97863.73134 | K86: =IF(J86>0,J86*(1-Dźwignie!$D$9),J86) -> 79269.62238 | L86: =K86/Dźwignie!$D$5 -> 7.926962238 | M86: =I86/Dźwignie!$D$2 -> 0.5893186567 | N86: =K86/Dźwignie!$D$3 -> 0.7926962238 | O86: 1.424218709 | P86: 1.204365803 | Q86: 1.715280309 | S86: =C86*Dźwignie!$G$8 -> 167863.7313 | T86: 335727.4627 | U86: =Dźwignie!$G$9 -> 150000 | V86: 185727.4627 | W86: =V86-Dźwignie!$D$6 -> 165727.4627 | X86: =IF(W86>0,W86*(1-Dźwignie!$D$9),W86) -> 134239.2448 | Y86: =X86/Dźwignie!$D$5 -> 13.42392448 | Z86: =V86/Dźwignie!$D$2 -> 0.9286373134 | AA86: =X86/Dźwignie!$D$3 -> 1.342392448 | AB86: 1.807635004 | AC86: 1.120680059 | AD86: 2.025780503
A87: 75 | B87: 0.8256803155 | C87: =NORMINV(B87,Dźwignie!$L$8,Dźwignie!$L$9) -> 396861.5867 | D87: =Dźwignie!$L$7*C87 -> 595292.3801 | F87: =C87*Dźwignie!$G$5 -> 396861.5867 | G87: 198430.7934 | H87: =Dźwignie!$G$6 -> 50000 | I87: 148430.7934 | J87: =I87-Dźwignie!$D$6 -> 128430.7934 | K87: =IF(J87>0,J87*(1-Dźwignie!$D$9),J87) -> 104028.9426 | L87: =K87/Dźwignie!$D$5 -> 10.40289426 | M87: =I87/Dźwignie!$D$2 -> 0.7421539669 | N87: =K87/Dźwignie!$D$3 -> 1.040289426 | O87: 1.336857325 | P87: 1.155725893 | Q87: 1.545040626 | S87: =C87*Dźwignie!$G$8 -> 198430.7934 | T87: 396861.5867 | U87: =Dźwignie!$G$9 -> 150000 | V87: 246861.5867 | W87: =V87-Dźwignie!$D$6 -> 226861.5867 | X87: =IF(W87>0,W87*(1-Dźwignie!$D$9),W87) -> 183757.8853 | Y87: =X87/Dźwignie!$D$5 -> 18.37578853 | Z87: =V87/Dźwignie!$D$2 -> 1.234307934 | AA87: =X87/Dźwignie!$D$3 -> 1.837578853 | AB87: 1.60762795 | AC87: 1.088159482 | AD87: 1.749355598
A88: 76 | B88: 0.374563694 | C88: =NORMINV(B88,Dźwignie!$L$8,Dźwignie!$L$9) -> 334010.4907 | D88: =Dźwignie!$L$7*C88 -> 501015.7361 | F88: =C88*Dźwignie!$G$5 -> 334010.4907 | G88: 167005.2454 | H88: =Dźwignie!$G$6 -> 50000 | I88: 117005.2454 | J88: =I88-Dźwignie!$D$6 -> 97005.24536 | K88: =IF(J88>0,J88*(1-Dźwignie!$D$9),J88) -> 78574.24874 | L88: =K88/Dźwignie!$D$5 -> 7.857424874 | M88: =I88/Dźwignie!$D$2 -> 0.5850262268 | N88: =K88/Dźwignie!$D$3 -> 0.7857424874 | O88: 1.427331269 | P88: 1.206174418 | Q88: 1.721610463 | S88: =C88*Dźwignie!$G$8 -> 167005.2454 | T88: 334010.4907 | U88: =Dźwignie!$G$9 -> 150000 | V88: 184010.4907 | W88: =V88-Dźwignie!$D$6 -> 164010.4907 | X88: =IF(W88>0,W88*(1-Dźwignie!$D$9),W88) -> 132848.4975 | Y88: =X88/Dźwignie!$D$5 -> 13.28484975 | Z88: =V88/Dźwignie!$D$2 -> 0.9200524536 | AA88: =X88/Dźwignie!$D$3 -> 1.328484975 | AB88: 1.815170915 | AC88: 1.121943419 | AD88: 2.036519062
A89: 77 | B89: 0.8264853358 | C89: =NORMINV(B89,Dźwignie!$L$8,Dźwignie!$L$9) -> 397018.3515 | D89: =Dźwignie!$L$7*C89 -> 595527.5272 | F89: =C89*Dźwignie!$G$5 -> 397018.3515 | G89: 198509.1757 | H89: =Dźwignie!$G$6 -> 50000 | I89: 148509.1757 | J89: =I89-Dźwignie!$D$6 -> 128509.1757 | K89: =IF(J89>0,J89*(1-Dźwignie!$D$9),J89) -> 104092.4323 | L89: =K89/Dźwignie!$D$5 -> 10.40924323 | M89: =I89/Dźwignie!$D$2 -> 0.7425458786 | N89: =K89/Dźwignie!$D$3 -> 1.040924323 | O89: 1.336679533 | P89: 1.15563091 | Q89: 1.544708186 | S89: =C89*Dźwignie!$G$8 -> 198509.1757 | T89: 397018.3515 | U89: =Dźwignie!$G$9 -> 150000 | V89: 247018.3515 | W89: =V89-Dźwignie!$D$6 -> 227018.3515 | X89: =IF(W89>0,W89*(1-Dźwignie!$D$9),W89) -> 183884.8647 | Y89: =X89/Dźwignie!$D$5 -> 18.38848647 | Z89: =V89/Dźwignie!$D$2 -> 1.235091757 | AA89: =X89/Dźwignie!$D$3 -> 1.838848647 | AB89: 1.607242333 | AC89: 1.088098605 | AD89: 1.74883814
A90: 78 | B90: 0.1125050783 | C90: =NORMINV(B90,Dźwignie!$L$8,Dźwignie!$L$9) -> 289334.3477 | D90: =Dźwignie!$L$7*C90 -> 434001.5215 | F90: =C90*Dźwignie!$G$5 -> 289334.3477 | G90: 144667.1738 | H90: =Dźwignie!$G$6 -> 50000 | I90: 94667.17383 | J90: =I90-Dźwignie!$D$6 -> 74667.17383 | K90: =IF(J90>0,J90*(1-Dźwignie!$D$9),J90) -> 60480.4108 | L90: =K90/Dźwignie!$D$5 -> 6.04804108 | M90: =I90/Dźwignie!$D$2 -> 0.4733358692 | N90: =K90/Dźwignie!$D$3 -> 0.604804108 | O90: 1.528166185 | P90: 1.267855323 | Q90: 1.937493632 | S90: =C90*Dźwignie!$G$8 -> 144667.1738 | T90: 289334.3477 | U90: =Dźwignie!$G$9 -> 150000 | V90: 139334.3477 | W90: =V90-Dźwignie!$D$6 -> 119334.3477 | X90: =IF(W90>0,W90*(1-Dźwignie!$D$9),W90) -> 96660.82161 | Y90: =X90/Dźwignie!$D$5 -> 9.666082161 | Z90: =V90/Dźwignie!$D$2 -> 0.6966717383 | AA90: =X90/Dźwignie!$D$3 -> 0.9666082161 | AB90: 2.076547187 | AC90: 1.167596341 | AD90: 2.424568897
A91: 79 | B91: 0.5165918469 | C91: =NORMINV(B91,Dźwignie!$L$8,Dźwignie!$L$9) -> 352080.0795 | D91: =Dźwignie!$L$7*C91 -> 528120.1192 | F91: =C91*Dźwignie!$G$5 -> 352080.0795 | G91: 176040.0397 | H91: =Dźwignie!$G$6 -> 50000 | I91: 126040.0397 | J91: =I91-Dźwignie!$D$6 -> 106040.0397 | K91: =IF(J91>0,J91*(1-Dźwignie!$D$9),J91) -> 85892.43219 | L91: =K91/Dźwignie!$D$5 -> 8.589243219 | M91: =I91/Dźwignie!$D$2 -> 0.6302001987 | N91: =K91/Dźwignie!$D$3 -> 0.8589243219 | O91: 1.396699335 | P91: 1.188608002 | Q91: 1.660128006 | S91: =C91*Dźwignie!$G$8 -> 176040.0397 | T91: 352080.0795 | U91: =Dźwignie!$G$9 -> 150000 | V91: 202080.0795 | W91: =V91-Dźwignie!$D$6 -> 182080.0795 | X91: =IF(W91>0,W91*(1-Dźwignie!$D$9),W91) -> 147484.8644 | Y91: =X91/Dźwignie!$D$5 -> 14.74848644 | Z91: =V91/Dźwignie!$D$2 -> 1.010400397 | AA91: =X91/Dźwignie!$D$3 -> 1.474848644 | AB91: 1.742279993 | AC91: 1.10984178 | AD91: 1.933655129
A92: 80 | B92: 0.9553935528 | C92: =NORMINV(B92,Dźwignie!$L$8,Dźwignie!$L$9) -> 434978.2192 | D92: =Dźwignie!$L$7*C92 -> 652467.3288 | F92: =C92*Dźwignie!$G$5 -> 434978.2192 | G92: 217489.1096 | H92: =Dźwignie!$G$6 -> 50000 | I92: 167489.1096 | J92: =I92-Dźwignie!$D$6 -> 147489.1096 | K92: =IF(J92>0,J92*(1-Dźwignie!$D$9),J92) -> 119466.1788 | L92: =K92/Dźwignie!$D$5 -> 11.94661788 | M92: =I92/Dźwignie!$D$2 -> 0.837445548 | N92: =K92/Dźwignie!$D$3 -> 1.194661788 | O92: 1.298526872 | P92: 1.135603232 | Q92: 1.474611313 | S92: =C92*Dźwignie!$G$8 -> 217489.1096 | T92: 434978.2192 | U92: =Dźwignie!$G$9 -> 150000 | V92: 284978.2192 | W92: =V92-Dźwignie!$D$6 -> 264978.2192 | X92: =IF(W92>0,W92*(1-Dźwignie!$D$9),W92) -> 214632.3575 | Y92: =X92/Dźwignie!$D$5 -> 21.46323575 | Z92: =V92/Dźwignie!$D$2 -> 1.424891096 | AA92: =X92/Dźwignie!$D$3 -> 2.146323575 | AB92: 1.526356016 | AC92: 1.075477902 | AD92: 1.641562165
A93: 81 | B93: 0.3733024001 | C93: =NORMINV(B93,Dźwignie!$L$8,Dźwignie!$L$9) -> 333844.0288 | D93: =Dźwignie!$L$7*C93 -> 500766.0432 | F93: =C93*Dźwignie!$G$5 -> 333844.0288 | G93: 166922.0144 | H93: =Dźwignie!$G$6 -> 50000 | I93: 116922.0144 | J93: =I93-Dźwignie!$D$6 -> 96922.01439 | K93: =IF(J93>0,J93*(1-Dźwignie!$D$9),J93) -> 78506.83166 | L93: =K93/Dźwignie!$D$5 -> 7.850683166 | M93: =I93/Dźwignie!$D$2 -> 0.584610072 | N93: =K93/Dźwignie!$D$3 -> 0.7850683166 | O93: 1.427635465 | P93: 1.206351468 | Q93: 1.72223014 | S93: =C93*Dźwignie!$G$8 -> 166922.0144 | T93: 333844.0288 | U93: =Dźwignie!$G$9 -> 150000 | V93: 183844.0288 | W93: =V93-Dźwignie!$D$6 -> 163844.0288 | X93: =IF(W93>0,W93*(1-Dźwignie!$D$9),W93) -> 132713.6633 | Y93: =X93/Dźwignie!$D$5 -> 13.27136633 | Z93: =V93/Dźwignie!$D$2 -> 0.9192201439 | AA93: =X93/Dźwignie!$D$3 -> 1.327136633 | AB93: 1.815909013 | AC93: 1.122067311 | AD93: 2.037572143
A94: 82 | B94: 0.8541339636 | C94: =NORMINV(B94,Dźwignie!$L$8,Dźwignie!$L$9) -> 402716.4766 | D94: =Dźwignie!$L$7*C94 -> 604074.7148 | F94: =C94*Dźwignie!$G$5 -> 402716.4766 | G94: 201358.2383 | H94: =Dźwignie!$G$6 -> 50000 | I94: 151358.2383 | J94: =I94-Dźwignie!$D$6 -> 131358.2383 | K94: =IF(J94>0,J94*(1-Dźwignie!$D$9),J94) -> 106400.173 | L94: =K94/Dźwignie!$D$5 -> 10.6400173 | M94: =I94/Dźwignie!$D$2 -> 0.7567911914 | N94: =K94/Dźwignie!$D$3 -> 1.06400173 | O94: 1.330342111 | P94: 1.152255392 | Q94: 1.53289387 | S94: =C94*Dźwignie!$G$8 -> 201358.2383 | T94: 402716.4766 | U94: =Dźwignie!$G$9 -> 150000 | V94: 252716.4766 | W94: =V94-Dźwignie!$D$6 -> 232716.4766 | X94: =IF(W94>0,W94*(1-Dźwignie!$D$9),W94) -> 188500.346 | Y94: =X94/Dźwignie!$D$5 -> 18.8500346 | Z94: =V94/Dźwignie!$D$2 -> 1.263582383 | AA94: =X94/Dźwignie!$D$3 -> 1.88500346 | AB94: 1.593550536 | AC94: 1.085941487 | AD94: 1.730502638
A95: 83 | B95: 0.3954649568 | C95: =NORMINV(B95,Dźwignie!$L$8,Dźwignie!$L$9) -> 336744.8368 | D95: =Dźwignie!$L$7*C95 -> 505117.2553 | F95: =C95*Dźwignie!$G$5 -> 336744.8368 | G95: 168372.4184 | H95: =Dźwignie!$G$6 -> 50000 | I95: 118372.4184 | J95: =I95-Dźwignie!$D$6 -> 98372.41842 | K95: =IF(J95>0,J95*(1-Dźwignie!$D$9),J95) -> 79681.65892 | L95: =K95/Dźwignie!$D$5 -> 7.968165892 | M95: =I95/Dźwignie!$D$2 -> 0.5918620921 | N95: =K95/Dźwignie!$D$3 -> 0.7968165892 | O95: 1.422395695 | P95: 1.20330902 | Q95: 1.711581571 | S95: =C95*Dźwignie!$G$8 -> 168372.4184 | T95: 336744.8368 | U95: =Dźwignie!$G$9 -> 150000 | V95: 186744.8368 | W95: =V95-Dźwignie!$D$6 -> 166744.8368 | X95: =IF(W95>0,W95*(1-Dźwignie!$D$9),W95) -> 135063.3178 | Y95: =X95/Dźwignie!$D$5 -> 13.50633178 | Z95: =V95/Dźwignie!$D$2 -> 0.9337241842 | AA95: =X95/Dźwignie!$D$3 -> 1.350633178 | AB95: 1.803235059 | AC95: 1.119943744 | AD95: 2.019521823
A96: 84 | B96: 0.2574949265 | C96: =NORMINV(B96,Dźwignie!$L$8,Dźwignie!$L$9) -> 317445.6132 | D96: =Dźwignie!$L$7*C96 -> 476168.4198 | F96: =C96*Dźwignie!$G$5 -> 317445.6132 | G96: 158722.8066 | H96: =Dźwignie!$G$6 -> 50000 | I96: 108722.8066 | J96: =I96-Dźwignie!$D$6 -> 88722.80661 | K96: =IF(J96>0,J96*(1-Dźwignie!$D$9),J96) -> 71865.47335 | L96: =K96/Dźwignie!$D$5 -> 7.186547335 | M96: =I96/Dźwignie!$D$2 -> 0.543614033 | N96: =K96/Dźwignie!$D$3 -> 0.7186547335 | O96: 1.459885111 | P96: 1.225421183 | Q96: 1.78897414 | S96: =C96*Dźwignie!$G$8 -> 158722.8066 | T96: 317445.6132 | U96: =Dźwignie!$G$9 -> 150000 | V96: 167445.6132 | W96: =V96-Dźwignie!$D$6 -> 147445.6132 | X96: =IF(W96>0,W96*(1-Dźwignie!$D$9),W96) -> 119430.9467 | Y96: =X96/Dźwignie!$D$5 -> 11.94309467 | Z96: =V96/Dźwignie!$D$2 -> 0.8372280661 | AA96: =X96/Dźwignie!$D$3 -> 1.194309467 | AB96: 1.895813256 | AC96: 1.135643235 | AD96: 2.1529675
A97: 85 | B97: 0.9008361697 | C97: =NORMINV(B97,Dźwignie!$L$8,Dźwignie!$L$9) -> 414316.5367 | D97: =Dźwignie!$L$7*C97 -> 621474.8051 | F97: =C97*Dźwignie!$G$5 -> 414316.5367 | G97: 207158.2684 | H97: =Dźwignie!$G$6 -> 50000 | I97: 157158.2684 | J97: =I97-Dźwignie!$D$6 -> 137158.2684 | K97: =IF(J97>0,J97*(1-Dźwignie!$D$9),J97) -> 111098.1974 | L97: =K97/Dźwignie!$D$5 -> 11.10981974 | M97: =I97/Dźwignie!$D$2 -> 0.7857913418 | N97: =K97/Dźwignie!$D$3 -> 1.110981974 | O97: 1.318150617 | P97: 1.145816947 | Q97: 1.510359316 | S97: =C97*Dźwignie!$G$8 -> 207158.2684 | T97: 414316.5367 | U97: =Dźwignie!$G$9 -> 150000 | V97: 264316.5367 | W97: =V97-Dźwignie!$D$6 -> 244316.5367 | X97: =IF(W97>0,W97*(1-Dźwignie!$D$9),W97) -> 197896.3947 | Y97: =X97/Dźwignie!$D$5 -> 19.78963947 | Z97: =V97/Dźwignie!$D$2 -> 1.321582684 | AA97: =X97/Dźwignie!$D$3 -> 1.978963947 | AB97: 1.567501382 | AC97: 1.081861016 | AD97: 1.695818639
A98: 86 | B98: 0.2200189829 | C98: =NORMINV(B98,Dźwignie!$L$8,Dźwignie!$L$9) -> 311393.5448 | D98: =Dźwignie!$L$7*C98 -> 467090.3171 | F98: =C98*Dźwignie!$G$5 -> 311393.5448 | G98: 155696.7724 | H98: =Dźwignie!$G$6 -> 50000 | I98: 105696.7724 | J98: =I98-Dźwignie!$D$6 -> 85696.77238 | K98: =IF(J98>0,J98*(1-Dźwignie!$D$9),J98) -> 69414.38563 | L98: =K98/Dźwignie!$D$5 -> 6.941438563 | M98: =I98/Dźwignie!$D$2 -> 0.5284838619 | N98: =K98/Dźwignie!$D$3 -> 0.6941438563 | O98: 1.473051342 | P98: 1.233381018 | Q98: 1.816833564 | S98: =C98*Dźwignie!$G$8 -> 155696.7724 | T98: 311393.5448 | U98: =Dźwignie!$G$9 -> 150000 | V98: 161393.5448 | W98: =V98-Dźwignie!$D$6 -> 141393.5448 | X98: =IF(W98>0,W98*(1-Dźwignie!$D$9),W98) -> 114528.7713 | Y98: =X98/Dźwignie!$D$5 -> 11.45287713 | Z98: =V98/Dźwignie!$D$2 -> 0.8069677238 | AA98: =X98/Dźwignie!$D$3 -> 1.145287713 | AB98: 1.929405202 | AC98: 1.141449173 | AD98: 2.202317972
A99: 87 | B99: 0.7023509145 | C99: =NORMINV(B99,Dźwignie!$L$8,Dźwignie!$L$9) -> 376558.7027 | D99: =Dźwignie!$L$7*C99 -> 564838.054 | F99: =C99*Dźwignie!$G$5 -> 376558.7027 | G99: 188279.3513 | H99: =Dźwignie!$G$6 -> 50000 | I99: 138279.3513 | J99: =I99-Dźwignie!$D$6 -> 118279.3513 | K99: =IF(J99>0,J99*(1-Dźwignie!$D$9),J99) -> 95806.27459 | L99: =K99/Dźwignie!$D$5 -> 9.580627459 | M99: =I99/Dźwignie!$D$2 -> 0.6913967567 | N99: =K99/Dźwignie!$D$3 -> 0.9580627459 | O99: 1.361586886 | P99: 1.169091222 | Q99: 1.591819275 | S99: =C99*Dźwignie!$G$8 -> 188279.3513 | T99: 376558.7027 | U99: =Dźwignie!$G$9 -> 150000 | V99: 226558.7027 | W99: =V99-Dźwignie!$D$6 -> 206558.7027 | X99: =IF(W99>0,W99*(1-Dźwignie!$D$9),W99) -> 167312.5492 | Y99: =X99/Dźwignie!$D$5 -> 16.73125492 | Z99: =V99/Dźwignie!$D$2 -> 1.132793513 | AA99: =X99/Dźwignie!$D$3 -> 1.673125492 | AB99: 1.662080062 | AC99: 1.096824775 | AD99: 1.823010591
A100: 88 | B100: 0.3732140064 | C100: =NORMINV(B100,Dźwignie!$L$8,Dźwignie!$L$9) -> 333832.3561 | D100: =Dźwignie!$L$7*C100 -> 500748.5342 | F100: =C100*Dźwignie!$G$5 -> 333832.3561 | G100: 166916.1781 | H100: =Dźwignie!$G$6 -> 50000 | I100: 116916.1781 | J100: =I100-Dźwignie!$D$6 -> 96916.17807 | K100: =IF(J100>0,J100*(1-Dźwignie!$D$9),J100) -> 78502.10424 | L100: =K100/Dźwignie!$D$5 -> 7.850210424 | M100: =I100/Dźwignie!$D$2 -> 0.5845808904 | N100: =K100/Dźwignie!$D$3 -> 0.7850210424 | O100: 1.427656812 | P100: 1.206363895 | Q100: 1.722273633 | S100: =C100*Dźwignie!$G$8 -> 166916.1781 | T100: 333832.3561 | U100: =Dźwignie!$G$9 -> 150000 | V100: 183832.3561 | W100: =V100-Dźwignie!$D$6 -> 163832.3561 | X100: =IF(W100>0,W100*(1-Dźwignie!$D$9),W100) -> 132704.2085 | Y100: =X100/Dźwignie!$D$5 -> 13.27042085 | Z100: =V100/Dźwignie!$D$2 -> 0.9191617807 | AA100: =X100/Dźwignie!$D$3 -> 1.327042085 | AB100: 1.81596082 | AC100: 1.122076008 | AD100: 2.037646067
A101: 89 | B101: 0.6945480704 | C101: =NORMINV(B101,Dźwignie!$L$8,Dźwignie!$L$9) -> 375439.1841 | D101: =Dźwignie!$L$7*C101 -> 563158.7761 | F101: =C101*Dźwignie!$G$5 -> 375439.1841 | G101: 187719.592 | H101: =Dźwignie!$G$6 -> 50000 | I101: 137719.592 | J101: =I101-Dźwignie!$D$6 -> 117719.592 | K101: =IF(J101>0,J101*(1-Dźwignie!$D$9),J101) -> 95352.86954 | L101: =K101/Dźwignie!$D$5 -> 9.535286954 | M101: =I101/Dźwignie!$D$2 -> 0.6885979601 | N101: =K101/Dźwignie!$D$3 -> 0.9535286954 | O101: 1.36305655 | P101: 1.169895254 | Q101: 1.594633389 | S101: =C101*Dźwignie!$G$8 -> 187719.592 | T101: 375439.1841 | U101: =Dźwignie!$G$9 -> 150000 | V101: 225439.1841 | W101: =V101-Dźwignie!$D$6 -> 205439.1841 | X101: =IF(W101>0,W101*(1-Dźwignie!$D$9),W101) -> 166405.7391 | Y101: =X101/Dźwignie!$D$5 -> 16.64057391 | Z101: =V101/Dźwignie!$D$2 -> 1.12719592 | AA101: =X101/Dźwignie!$D$3 -> 1.664057391 | AB101: 1.665367916 | AC101: 1.097352412 | AD101: 1.827495498
A102: 90 | B102: 0.6662758589 | C102: =NORMINV(B102,Dźwignie!$L$8,Dźwignie!$L$9) -> 371482.6359 | D102: =Dźwignie!$L$7*C102 -> 557223.9539 | F102: =C102*Dźwignie!$G$5 -> 371482.6359 | G102: 185741.318 | H102: =Dźwignie!$G$6 -> 50000 | I102: 135741.318 | J102: =I102-Dźwignie!$D$6 -> 115741.318 | K102: =IF(J102>0,J102*(1-Dźwignie!$D$9),J102) -> 93750.46754 | L102: =K102/Dźwignie!$D$5 -> 9.375046754 | M102: =I102/Dźwignie!$D$2 -> 0.6787065898 | N102: =K102/Dźwignie!$D$3 -> 0.9375046754 | O102: 1.368347683 | P102: 1.172799138 | Q102: 1.604796984 | S102: =C102*Dźwignie!$G$8 -> 185741.318 | T102: 371482.6359 | U102: =Dźwignie!$G$9 -> 150000 | V102: 221482.6359 | W102: =V102-Dźwignie!$D$6 -> 201482.6359 | X102: =IF(W102>0,W102*(1-Dźwignie!$D$9),W102) -> 163200.9351 | Y102: =X102/Dźwignie!$D$5 -> 16.32009351 | Z102: =V102/Dźwignie!$D$2 -> 1.10741318 | AA102: =X102/Dźwignie!$D$3 -> 1.632009351 | AB102: 1.677253995 | AC102: 1.099264137 | AD102: 1.843745166
A103: 91 | B103: 0.1314025521 | C103: =NORMINV(B103,Dźwignie!$L$8,Dźwignie!$L$9) -> 294010.7161 | D103: =Dźwignie!$L$7*C103 -> 441016.0742 | F103: =C103*Dźwignie!$G$5 -> 294010.7161 | G103: 147005.3581 | H103: =Dźwignie!$G$6 -> 50000 | I103: 97005.35807 | J103: =I103-Dźwignie!$D$6 -> 77005.35807 | K103: =IF(J103>0,J103*(1-Dźwignie!$D$9),J103) -> 62374.34004 | L103: =K103/Dźwignie!$D$5 -> 6.237434004 | M103: =I103/Dźwignie!$D$2 -> 0.4850267904 | N103: =K103/Dźwignie!$D$3 -> 0.6237434004 | O103: 1.515435446 | P103: 1.259722187 | Q103: 1.909027654 | S103: =C103*Dźwignie!$G$8 -> 147005.3581 | T103: 294010.7161 | U103: =Dźwignie!$G$9 -> 150000 | V103: 144010.7161 | W103: =V103-Dźwignie!$D$6 -> 124010.7161 | X103: =IF(W103>0,W103*(1-Dźwignie!$D$9),W103) -> 100448.6801 | Y103: =X103/Dźwignie!$D$5 -> 10.04486801 | Z103: =V103/Dźwignie!$D$2 -> 0.7200535807 | AA103: =X103/Dźwignie!$D$3 -> 1.004486801 | AB103: 2.041589154 | AC103: 1.161276385 | AD103: 2.370849272
A104: 92 | B104: 0.0325922966 | C104: =NORMINV(B104,Dźwignie!$L$8,Dźwignie!$L$9) -> 257800.4985 | D104: =Dźwignie!$L$7*C104 -> 386700.7478 | F104: =C104*Dźwignie!$G$5 -> 257800.4985 | G104: 128900.2493 | H104: =Dźwignie!$G$6 -> 50000 | I104: 78900.24925 | J104: =I104-Dźwignie!$D$6 -> 58900.24925 | K104: =IF(J104>0,J104*(1-Dźwignie!$D$9),J104) -> 47709.2019 | L104: =K104/Dźwignie!$D$5 -> 4.77092019 | M104: =I104/Dźwignie!$D$2 -> 0.3945012463 | N104: =K104/Dźwignie!$D$3 -> 0.477092019 | O104: 1.63371156 | P104: 1.339557137 | Q104: 2.188449979 | S104: =C104*Dźwignie!$G$8 -> 128900.2493 | T104: 257800.4985 | U104: =Dźwignie!$G$9 -> 150000 | V104: 107800.4985 | W104: =V104-Dźwignie!$D$6 -> 87800.49851 | X104: =IF(W104>0,W104*(1-Dźwignie!$D$9),W104) -> 71118.40379 | Y104: =X104/Dźwignie!$D$5 -> 7.111840379 | Z104: =V104/Dźwignie!$D$2 -> 0.5390024925 | AA104: =X104/Dźwignie!$D$3 -> 0.7111840379 | AB104: 2.391459243 | AC104: 1.227789139 | AD104: 2.936207685
A105: 93 | B105: 0.1268135905 | C105: =NORMINV(B105,Dźwignie!$L$8,Dźwignie!$L$9) -> 292920.8244 | D105: =Dźwignie!$L$7*C105 -> 439381.2367 | F105: =C105*Dźwignie!$G$5 -> 292920.8244 | G105: 146460.4122 | H105: =Dźwignie!$G$6 -> 50000 | I105: 96460.41222 | J105: =I105-Dźwignie!$D$6 -> 76460.41222 | K105: =IF(J105>0,J105*(1-Dźwignie!$D$9),J105) -> 61932.9339 | L105: =K105/Dźwignie!$D$5 -> 6.19329339 | M105: =I105/Dźwignie!$D$2 -> 0.4823020611 | N105: =K105/Dźwignie!$D$3 -> 0.619329339 | O105: 1.51834736 | P105: 1.261573269 | Q105: 1.915506443 | S105: =C105*Dźwignie!$G$8 -> 146460.4122 | T105: 292920.8244 | U105: =Dźwignie!$G$9 -> 150000 | V105: 142920.8244 | W105: =V105-Dźwignie!$D$6 -> 122920.8244 | X105: =IF(W105>0,W105*(1-Dźwignie!$D$9),W105) -> 99565.8678 | Y105: =X105/Dźwignie!$D$5 -> 9.95658678 | Z105: =V105/Dźwignie!$D$2 -> 0.7146041222 | AA105: =X105/Dźwignie!$D$3 -> 0.995658678 | AB105: 2.049532149 | AC105: 1.162706361 | AD105: 2.383004066
A106: 94 | B106: 0.3882781267 | C106: =NORMINV(B106,Dźwignie!$L$8,Dźwignie!$L$9) -> 335809.5171 | D106: =Dźwignie!$L$7*C106 -> 503714.2757 | F106: =C106*Dźwignie!$G$5 -> 335809.5171 | G106: 167904.7586 | H106: =Dźwignie!$G$6 -> 50000 | I106: 117904.7586 | J106: =I106-Dźwignie!$D$6 -> 97904.75857 | K106: =IF(J106>0,J106*(1-Dźwignie!$D$9),J106) -> 79302.85444 | L106: =K106/Dźwignie!$D$5 -> 7.930285444 | M106: =I106/Dźwignie!$D$2 -> 0.5895237929 | N106: =K106/Dźwignie!$D$3 -> 0.7930285444 | O106: 1.424071094 | P106: 1.204280163 | Q106: 1.714980569 | S106: =C106*Dźwignie!$G$8 -> 167904.7586 | T106: 335809.5171 | U106: =Dźwignie!$G$9 -> 150000 | V106: 185809.5171 | W106: =V106-Dźwignie!$D$6 -> 165809.5171 | X106: =IF(W106>0,W106*(1-Dźwignie!$D$9),W106) -> 134305.7089 | Y106: =X106/Dźwignie!$D$5 -> 13.43057089 | Z106: =V106/Dźwignie!$D$2 -> 0.9290475857 | AA106: =X106/Dźwignie!$D$3 -> 1.343057089 | AB106: 1.807278348 | AC106: 1.120620338 | AD106: 2.025272873
A107: 95 | B107: 0.1589992642 | C107: =NORMINV(B107,Dźwignie!$L$8,Dźwignie!$L$9) -> 300071.0347 | D107: =Dźwignie!$L$7*C107 -> 450106.552 | F107: =C107*Dźwignie!$G$5 -> 300071.0347 | G107: 150035.5173 | H107: =Dźwignie!$G$6 -> 50000 | I107: 100035.5173 | J107: =I107-Dźwignie!$D$6 -> 80035.51733 | K107: =IF(J107>0,J107*(1-Dźwignie!$D$9),J107) -> 64828.76903 | L107: =K107/Dźwignie!$D$5 -> 6.482876903 | M107: =I107/Dźwignie!$D$2 -> 0.5001775866 | N107: =K107/Dźwignie!$D$3 -> 0.6482876903 | O107: 1.499822476 | P107: 1.249889058 | Q107: 1.874611702 | S107: =C107*Dźwignie!$G$8 -> 150035.5173 | T107: 300071.0347 | U107: =Dźwignie!$G$9 -> 150000 | V107: 150071.0347 | W107: =V107-Dźwignie!$D$6 -> 130071.0347 | X107: =IF(W107>0,W107*(1-Dźwignie!$D$9),W107) -> 105357.5381 | Y107: =X107/Dźwignie!$D$5 -> 10.53575381 | Z107: =V107/Dźwignie!$D$2 -> 0.7503551733 | AA107: =X107/Dźwignie!$D$3 -> 1.053575381 | AB107: 1.99952666 | AC107: 1.153762135 | AD107: 2.306978148
A108: 96 | B108: 0.6189916134 | C108: =NORMINV(B108,Dźwignie!$L$8,Dźwignie!$L$9) -> 365141.6736 | D108: =Dźwignie!$L$7*C108 -> 547712.5104 | F108: =C108*Dźwignie!$G$5 -> 365141.6736 | G108: 182570.8368 | H108: =Dźwignie!$G$6 -> 50000 | I108: 132570.8368 | J108: =I108-Dźwignie!$D$6 -> 112570.8368 | K108: =IF(J108>0,J108*(1-Dźwignie!$D$9),J108) -> 91182.37781 | L108: =K108/Dźwignie!$D$5 -> 9.118237781 | M108: =I108/Dźwignie!$D$2 -> 0.662854184 | N108: =K108/Dźwignie!$D$3 -> 0.9118237781 | O108: 1.377156856 | P108: 1.177665909 | Q108: 1.62183068 | S108: =C108*Dźwignie!$G$8 -> 182570.8368 | T108: 365141.6736 | U108: =Dźwignie!$G$9 -> 150000 | V108: 215141.6736 | W108: =V108-Dźwignie!$D$6 -> 195141.6736 | X108: =IF(W108>0,W108*(1-Dźwignie!$D$9),W108) -> 158064.7556 | Y108: =X108/Dźwignie!$D$5 -> 15.80647556 | Z108: =V108/Dźwignie!$D$2 -> 1.075708368 | AA108: =X108/Dźwignie!$D$3 -> 1.580647556 | AB108: 1.697214991 | AC108: 1.102489641 | AD108: 1.871161945
A109: 97 | B109: 0.6100472808 | C109: =NORMINV(B109,Dźwignie!$L$8,Dźwignie!$L$9) -> 363972.1133 | D109: =Dźwignie!$L$7*C109 -> 545958.17 | F109: =C109*Dźwignie!$G$5 -> 363972.1133 | G109: 181986.0567 | H109: =Dźwignie!$G$6 -> 50000 | I109: 131986.0567 | J109: =I109-Dźwignie!$D$6 -> 111986.0567 | K109: =IF(J109>0,J109*(1-Dźwignie!$D$9),J109) -> 90708.7059 | L109: =K109/Dźwignie!$D$5 -> 9.07087059 | M109: =I109/Dźwignie!$D$2 -> 0.6599302833 | N109: =K109/Dźwignie!$D$3 -> 0.907087059 | O109: 1.378827895 | P109: 1.178593662 | Q109: 1.625077818 | S109: =C109*Dźwignie!$G$8 -> 181986.0567 | T109: 363972.1133 | U109: =Dźwignie!$G$9 -> 150000 | V109: 213972.1133 | W109: =V109-Dźwignie!$D$6 -> 193972.1133 | X109: =IF(W109>0,W109*(1-Dźwignie!$D$9),W109) -> 157117.4118 | Y109: =X109/Dźwignie!$D$5 -> 15.71174118 | Z109: =V109/Dźwignie!$D$2 -> 1.069860567 | AA109: =X109/Dźwignie!$D$3 -> 1.571174118 | AB109: 1.701025931 | AC109: 1.103107605 | AD109: 1.876414641
A110: 98 | B110: 0.4612821341 | C110: =NORMINV(B110,Dźwignie!$L$8,Dźwignie!$L$9) -> 345139.7922 | D110: =Dźwignie!$L$7*C110 -> 517709.6883 | F110: =C110*Dźwignie!$G$5 -> 345139.7922 | G110: 172569.8961 | H110: =Dźwignie!$G$6 -> 50000 | I110: 122569.8961 | J110: =I110-Dźwignie!$D$6 -> 102569.8961 | K110: =IF(J110>0,J110*(1-Dźwignie!$D$9),J110) -> 83081.61585 | L110: =K110/Dźwignie!$D$5 -> 8.308161585 | M110: =I110/Dźwignie!$D$2 -> 0.6128494806 | N110: =K110/Dźwignie!$D$3 -> 0.8308161585 | O110: 1.407930508 | P110: 1.194988986 | Q110: 1.68246145 | S110: =C110*Dźwignie!$G$8 -> 172569.8961 | T110: 345139.7922 | U110: =Dźwignie!$G$9 -> 150000 | V110: 195139.7922 | W110: =V110-Dźwignie!$D$6 -> 175139.7922 | X110: =IF(W110>0,W110*(1-Dźwignie!$D$9),W110) -> 141863.2317 | Y110: =X110/Dźwignie!$D$5 -> 14.18632317 | Z110: =V110/Dźwignie!$D$2 -> 0.9756989611 | AA110: =X110/Dźwignie!$D$3 -> 1.418632317 | AB110: 1.768679716 | AC110: 1.114194494 | AD110: 1.970653201
A111: 99 | B111: 0.6218720078 | C111: =NORMINV(B111,Dźwignie!$L$8,Dźwignie!$L$9) -> 365520.0533 | D111: =Dźwignie!$L$7*C111 -> 548280.0799 | F111: =C111*Dźwignie!$G$5 -> 365520.0533 | G111: 182760.0266 | H111: =Dźwignie!$G$6 -> 50000 | I111: 132760.0266 | J111: =I111-Dźwignie!$D$6 -> 112760.0266 | K111: =IF(J111>0,J111*(1-Dźwignie!$D$9),J111) -> 91335.62157 | L111: =K111/Dźwignie!$D$5 -> 9.133562157 | M111: =I111/Dźwignie!$D$2 -> 0.6638001331 | N111: =K111/Dźwignie!$D$3 -> 0.9133562157 | O111: 1.376619388 | P111: 1.177367819 | Q111: 1.620787367 | S111: =C111*Dźwignie!$G$8 -> 182760.0266 | T111: 365520.0533 | U111: =Dźwignie!$G$9 -> 150000 | V111: 215520.0533 | W111: =V111-Dźwignie!$D$6 -> 195520.0533 | X111: =IF(W111>0,W111*(1-Dźwignie!$D$9),W111) -> 158371.2431 | Y111: =X111/Dźwignie!$D$5 -> 15.83712431 | Z111: =V111/Dźwignie!$D$2 -> 1.077600266 | AA111: =X111/Dźwignie!$D$3 -> 1.583712431 | AB111: 1.695990919 | AC111: 1.102291298 | AD111: 1.869476032
A112: 100 | B112: 0.4347190857 | C112: =NORMINV(B112,Dźwignie!$L$8,Dźwignie!$L$9) -> 341781.3915 | D112: =Dźwignie!$L$7*C112 -> 512672.0873 | F112: =C112*Dźwignie!$G$5 -> 341781.3915 | G112: 170890.6958 | H112: =Dźwignie!$G$6 -> 50000 | I112: 120890.6958 | J112: =I112-Dźwignie!$D$6 -> 100890.6958 | K112: =IF(J112>0,J112*(1-Dźwignie!$D$9),J112) -> 81721.46358 | L112: =K112/Dźwignie!$D$5 -> 8.172146358 | M112: =I112/Dźwignie!$D$2 -> 0.6044534789 | N112: =K112/Dźwignie!$D$3 -> 0.8172146358 | O112: 1.413596759 | P112: 1.198234335 | Q112: 1.693820173 | S112: =C112*Dźwignie!$G$8 -> 170890.6958 | T112: 341781.3915 | U112: =Dźwignie!$G$9 -> 150000 | V112: 191781.3915 | W112: =V112-Dźwignie!$D$6 -> 171781.3915 | X112: =IF(W112>0,W112*(1-Dźwignie!$D$9),W112) -> 139142.9272 | Y112: =X112/Dźwignie!$D$5 -> 13.91429272 | Z112: =V112/Dźwignie!$D$2 -> 0.9589069577 | AA112: =X112/Dźwignie!$D$3 -> 1.391429272 | AB112: 1.782140534 | AC112: 1.116427046 | AD112: 1.989629892
A113: 101 | B113: 0.7998277545 | C113: =NORMINV(B113,Dźwignie!$L$8,Dźwignie!$L$9) -> 392050.3073 | D113: =Dźwignie!$L$7*C113 -> 588075.461 | F113: =C113*Dźwignie!$G$5 -> 392050.3073 | G113: 196025.1537 | H113: =Dźwignie!$G$6 -> 50000 | I113: 146025.1537 | J113: =I113-Dźwignie!$D$6 -> 126025.1537 | K113: =IF(J113>0,J113*(1-Dźwignie!$D$9),J113) -> 102080.3745 | L113: =K113/Dźwignie!$D$5 -> 10.20803745 | M113: =I113/Dźwignie!$D$2 -> 0.7301257683 | N113: =K113/Dźwignie!$D$3 -> 1.020803745 | O113: 1.342406762 | P113: 1.158698477 | Q113: 1.555444671 | S113: =C113*Dźwignie!$G$8 -> 196025.1537 | T113: 392050.3073 | U113: =Dźwignie!$G$9 -> 150000 | V113: 242050.3073 | W113: =V113-Dźwignie!$D$6 -> 222050.3073 | X113: =IF(W113>0,W113*(1-Dźwignie!$D$9),W113) -> 179860.7489 | Y113: =X113/Dźwignie!$D$5 -> 17.98607489 | Z113: =V113/Dźwignie!$D$2 -> 1.210251537 | AA113: =X113/Dźwignie!$D$3 -> 1.798607489 | AB113: 1.619705885 | AC113: 1.090069679 | AD113: 1.765592275
A114: 102 | B114: 0.2310520411 | C114: =NORMINV(B114,Dźwignie!$L$8,Dźwignie!$L$9) -> 313230.6701 | D114: =Dźwignie!$L$7*C114 -> 469846.0052 | F114: =C114*Dźwignie!$G$5 -> 313230.6701 | G114: 156615.3351 | H114: =Dźwignie!$G$6 -> 50000 | I114: 106615.3351 | J114: =I114-Dźwignie!$D$6 -> 86615.33507 | K114: =IF(J114>0,J114*(1-Dźwignie!$D$9),J114) -> 70158.42141 | L114: =K114/Dźwignie!$D$5 -> 7.015842141 | M114: =I114/Dźwignie!$D$2 -> 0.5330766754 | N114: =K114/Dźwignie!$D$3 -> 0.7015842141 | O114: 1.468975687 | P114: 1.230905994 | Q114: 1.808170977 | S114: =C114*Dźwignie!$G$8 -> 156615.3351 | T114: 313230.6701 | U114: =Dźwignie!$G$9 -> 150000 | V114: 163230.6701 | W114: =V114-Dźwignie!$D$6 -> 143230.6701 | X114: =IF(W114>0,W114*(1-Dźwignie!$D$9),W114) -> 116016.8428 | Y114: =X114/Dźwignie!$D$5 -> 11.60168428 | Z114: =V114/Dźwignie!$D$2 -> 0.8161533507 | AA114: =X114/Dźwignie!$D$3 -> 1.160168428 | AB114: 1.91894495 | AC114: 1.139634898 | AD114: 2.186896632
A115: 103 | B115: 0.5452283025 | C115: =NORMINV(B115,Dźwignie!$L$8,Dźwignie!$L$9) -> 355680.7248 | D115: =Dźwignie!$L$7*C115 -> 533521.0873 | F115: =C115*Dźwignie!$G$5 -> 355680.7248 | G115: 177840.3624 | H115: =Dźwignie!$G$6 -> 50000 | I115: 127840.3624 | J115: =I115-Dźwignie!$D$6 -> 107840.3624 | K115: =IF(J115>0,J115*(1-Dźwignie!$D$9),J115) -> 87350.69356 | L115: =K115/Dźwignie!$D$5 -> 8.735069356 | M115: =I115/Dźwignie!$D$2 -> 0.6392018121 | N115: =K115/Dźwignie!$D$3 -> 0.8735069356 | O115: 1.391112784 | P115: 1.185459317 | Q115: 1.649107611 | S115: =C115*Dźwignie!$G$8 -> 177840.3624 | T115: 355680.7248 | U115: =Dźwignie!$G$9 -> 150000 | V115: 205680.7248 | W115: =V115-Dźwignie!$D$6 -> 185680.7248 | X115: =IF(W115>0,W115*(1-Dźwignie!$D$9),W115) -> 150401.3871 | Y115: =X115/Dźwignie!$D$5 -> 15.04013871 | Z115: =V115/Dźwignie!$D$2 -> 1.028403624 | AA115: =X115/Dźwignie!$D$3 -> 1.504013871 | AB115: 1.729285645 | AC115: 1.107711773 | AD115: 1.915550067
A116: 104 | B116: 0.2166521549 | C116: =NORMINV(B116,Dźwignie!$L$8,Dźwignie!$L$9) -> 310822.509 | D116: =Dźwignie!$L$7*C116 -> 466233.7635 | F116: =C116*Dźwignie!$G$5 -> 310822.509 | G116: 155411.2545 | H116: =Dźwignie!$G$6 -> 50000 | I116: 105411.2545 | J116: =I116-Dźwignie!$D$6 -> 85411.2545 | K116: =IF(J116>0,J116*(1-Dźwignie!$D$9),J116) -> 69183.11615 | L116: =K116/Dźwignie!$D$5 -> 6.918311615 | M116: =I116/Dźwignie!$D$2 -> 0.5270562725 | N116: =K116/Dźwignie!$D$3 -> 0.6918311615 | O116: 1.474332653 | P116: 1.234161178 | Q116: 1.819564124 | S116: =C116*Dźwignie!$G$8 -> 155411.2545 | T116: 310822.509 | U116: =Dźwignie!$G$9 -> 150000 | V116: 160822.509 | W116: =V116-Dźwignie!$D$6 -> 140822.509 | X116: =IF(W116>0,W116*(1-Dźwignie!$D$9),W116) -> 114066.2323 | Y116: =X116/Dźwignie!$D$5 -> 11.40662323 | Z116: =V116/Dźwignie!$D$2 -> 0.804112545 | AA116: =X116/Dźwignie!$D$3 -> 1.140662323 | AB116: 1.93270526 | AC116: 1.14202275 | AD116: 2.207193376
A117: 105 | B117: 0.04802268744 | C117: =NORMINV(B117,Dźwignie!$L$8,Dźwignie!$L$9) -> 266783.2182 | D117: =Dźwignie!$L$7*C117 -> 400174.8274 | F117: =C117*Dźwignie!$G$5 -> 266783.2182 | G117: 133391.6091 | H117: =Dźwignie!$G$6 -> 50000 | I117: 83391.60912 | J117: =I117-Dźwignie!$D$6 -> 63391.60912 | K117: =IF(J117>0,J117*(1-Dźwignie!$D$9),J117) -> 51347.20339 | L117: =K117/Dźwignie!$D$5 -> 5.134720339 | M117: =I117/Dźwignie!$D$2 -> 0.4169580456 | N117: =K117/Dźwignie!$D$3 -> 0.5134720339 | O117: 1.599580708 | P117: 1.315499169 | Q117: 2.104247092 | S117: =C117*Dźwignie!$G$8 -> 133391.6091 | T117: 266783.2182 | U117: =Dźwignie!$G$9 -> 150000 | V117: 116783.2182 | W117: =V117-Dźwignie!$D$6 -> 96783.21824 | X117: =IF(W117>0,W117*(1-Dźwignie!$D$9),W117) -> 78394.40678 | Y117: =X117/Dźwignie!$D$5 -> 7.839440678 | Z117: =V117/Dźwignie!$D$2 -> 0.5839160912 | AA117: =X117/Dźwignie!$D$3 -> 0.7839440678 | AB117: 2.284431122 | AC117: 1.206647396 | AD117: 2.756502864
A118: 106 | B118: 0.9544848204 | C118: =NORMINV(B118,Dźwignie!$L$8,Dźwignie!$L$9) -> 434499.3716 | D118: =Dźwignie!$L$7*C118 -> 651749.0573 | F118: =C118*Dźwignie!$G$5 -> 434499.3716 | G118: 217249.6858 | H118: =Dźwignie!$G$6 -> 50000 | I118: 167249.6858 | J118: =I118-Dźwignie!$D$6 -> 147249.6858 | K118: =IF(J118>0,J118*(1-Dźwignie!$D$9),J118) -> 119272.2455 | L118: =K118/Dźwignie!$D$5 -> 11.92722455 | M118: =I118/Dźwignie!$D$2 -> 0.8362484289 | N118: =K118/Dźwignie!$D$3 -> 1.192722455 | O118: 1.298954224 | P118: 1.135823719 | Q118: 1.475383018 | S118: =C118*Dźwignie!$G$8 -> 217249.6858 | T118: 434499.3716 | U118: =Dźwignie!$G$9 -> 150000 | V118: 284499.3716 | W118: =V118-Dźwignie!$D$6 -> 264499.3716 | X118: =IF(W118>0,W118*(1-Dźwignie!$D$9),W118) -> 214244.491 | Y118: =X118/Dźwignie!$D$5 -> 21.4244491 | Z118: =V118/Dźwignie!$D$2 -> 1.422496858 | AA118: =X118/Dźwignie!$D$3 -> 2.14244491 | AB118: 1.527241938 | AC118: 1.075614546 | AD118: 1.642723644
A119: 107 | B119: 0.2208772302 | C119: =NORMINV(B119,Dźwignie!$L$8,Dźwignie!$L$9) -> 311538.3043 | D119: =Dźwignie!$L$7*C119 -> 467307.4564 | F119: =C119*Dźwignie!$G$5 -> 311538.3043 | G119: 155769.1521 | H119: =Dźwignie!$G$6 -> 50000 | I119: 105769.1521 | J119: =I119-Dźwignie!$D$6 -> 85769.15213 | K119: =IF(J119>0,J119*(1-Dźwignie!$D$9),J119) -> 69473.01322 | L119: =K119/Dźwignie!$D$5 -> 6.947301322 | M119: =I119/Dźwignie!$D$2 -> 0.5288457606 | N119: =K119/Dźwignie!$D$3 -> 0.6947301322 | O119: 1.472727624 | P119: 1.23318407 | Q119: 1.816144246 | S119: =C119*Dźwignie!$G$8 -> 155769.1521 | T119: 311538.3043 | U119: =Dźwignie!$G$9 -> 150000 | V119: 161538.3043 | W119: =V119-Dźwignie!$D$6 -> 141538.3043 | X119: =IF(W119>0,W119*(1-Dźwignie!$D$9),W119) -> 114646.0264 | Y119: =X119/Dźwignie!$D$5 -> 11.46460264 | Z119: =V119/Dźwignie!$D$2 -> 0.8076915213 | AA119: =X119/Dźwignie!$D$3 -> 1.146460264 | AB119: 1.928572333 | AC119: 1.141304505 | AD119: 2.201088291
A120: 108 | B120: 0.901863575 | C120: =NORMINV(B120,Dźwignie!$L$8,Dźwignie!$L$9) -> 414612.1723 | D120: =Dźwignie!$L$7*C120 -> 621918.2585 | F120: =C120*Dźwignie!$G$5 -> 414612.1723 | G120: 207306.0862 | H120: =Dźwignie!$G$6 -> 50000 | I120: 157306.0862 | J120: =I120-Dźwignie!$D$6 -> 137306.0862 | K120: =IF(J120>0,J120*(1-Dźwignie!$D$9),J120) -> 111217.9298 | L120: =K120/Dźwignie!$D$5 -> 11.12179298 | M120: =I120/Dźwignie!$D$2 -> 0.7865304308 | N120: =K120/Dźwignie!$D$3 -> 1.112179298 | O120: 1.317851656 | P120: 1.145659967 | Q120: 1.509809885 | S120: =C120*Dźwignie!$G$8 -> 207306.0862 | T120: 414612.1723 | U120: =Dźwignie!$G$9 -> 150000 | V120: 264612.1723 | W120: =V120-Dźwignie!$D$6 -> 244612.1723 | X120: =IF(W120>0,W120*(1-Dźwignie!$D$9),W120) -> 198135.8596 | Y120: =X120/Dźwignie!$D$5 -> 19.81358596 | Z120: =V120/Dźwignie!$D$2 -> 1.323060862 | AA120: =X120/Dźwignie!$D$3 -> 1.981358596 | AB120: 1.566867347 | AC120: 1.08176208 | AD120: 1.69497768
A121: 109 | B121: 0.1059138179 | C121: =NORMINV(B121,Dźwignie!$L$8,Dźwignie!$L$9) -> 287572.2166 | D121: =Dźwignie!$L$7*C121 -> 431358.3249 | F121: =C121*Dźwignie!$G$5 -> 287572.2166 | G121: 143786.1083 | H121: =Dźwignie!$G$6 -> 50000 | I121: 93786.10831 | J121: =I121-Dźwignie!$D$6 -> 73786.10831 | K121: =IF(J121>0,J121*(1-Dźwignie!$D$9),J121) -> 59766.74773 | L121: =K121/Dźwignie!$D$5 -> 5.976674773 | M121: =I121/Dźwignie!$D$2 -> 0.4689305416 | N121: =K121/Dźwignie!$D$3 -> 0.5976674773 | O121: 1.533127996 | P121: 1.271053732 | Q121: 1.948688061 | S121: =C121*Dźwignie!$G$8 -> 143786.1083 | T121: 287572.2166 | U121: =Dźwignie!$G$9 -> 150000 | V121: 137572.2166 | W121: =V121-Dźwignie!$D$6 -> 117572.2166 | X121: =IF(W121>0,W121*(1-Dźwignie!$D$9),W121) -> 95233.49547 | Y121: =X121/Dźwignie!$D$5 -> 9.523349547 | Z121: =V121/Dźwignie!$D$2 -> 0.6878610831 | AA121: =X121/Dźwignie!$D$3 -> 0.9523349547 | AB121: 2.090336433 | AC121: 1.170108216 | AD121: 2.445919834
A122: 110 | B122: 0.6902352571 | C122: =NORMINV(B122,Dźwignie!$L$8,Dźwignie!$L$9) -> 374825.8649 | D122: =Dźwignie!$L$7*C122 -> 562238.7974 | F122: =C122*Dźwignie!$G$5 -> 374825.8649 | G122: 187412.9325 | H122: =Dźwignie!$G$6 -> 50000 | I122: 137412.9325 | J122: =I122-Dźwignie!$D$6 -> 117412.9325 | K122: =IF(J122>0,J122*(1-Dźwignie!$D$9),J122) -> 95104.4753 | L122: =K122/Dźwignie!$D$5 -> 9.51044753 | M122: =I122/Dźwignie!$D$2 -> 0.6870646623 | N122: =K122/Dźwignie!$D$3 -> 0.951044753 | O122: 1.363866771 | P122: 1.170338987 | Q122: 1.596186455 | S122: =C122*Dźwignie!$G$8 -> 187412.9325 | T122: 374825.8649 | U122: =Dźwignie!$G$9 -> 150000 | V122: 224825.8649 | W122: =V122-Dźwignie!$D$6 -> 204825.8649 | X122: =IF(W122>0,W122*(1-Dźwignie!$D$9),W122) -> 165908.9506 | Y122: =X122/Dźwignie!$D$5 -> 16.59089506 | Z122: =V122/Dźwignie!$D$2 -> 1.124129325 | AA122: =X122/Dźwignie!$D$3 -> 1.659089506 | AB122: 1.667183022 | AC122: 1.097643918 | AD122: 1.829973305
A123: 111 | B123: 0.5353544354 | C123: =NORMINV(B123,Dźwignie!$L$8,Dźwignie!$L$9) -> 354436.8373 | D123: =Dźwignie!$L$7*C123 -> 531655.2559 | F123: =C123*Dźwignie!$G$5 -> 354436.8373 | G123: 177218.4186 | H123: =Dźwignie!$G$6 -> 50000 | I123: 127218.4186 | J123: =I123-Dźwignie!$D$6 -> 107218.4186 | K123: =IF(J123>0,J123*(1-Dźwignie!$D$9),J123) -> 86846.91909 | L123: =K123/Dźwignie!$D$5 -> 8.684691909 | M123: =I123/Dźwignie!$D$2 -> 0.6360920932 | N123: =K123/Dźwignie!$D$3 -> 0.8684691909 | O123: 1.393024851 | P123: 1.186535115 | Q123: 1.652872901 | S123: =C123*Dźwignie!$G$8 -> 177218.4186 | T123: 354436.8373 | U123: =Dźwignie!$G$9 -> 150000 | V123: 204436.8373 | W123: =V123-Dźwignie!$D$6 -> 184436.8373 | X123: =IF(W123>0,W123*(1-Dźwignie!$D$9),W123) -> 149393.8382 | Y123: =X123/Dźwignie!$D$5 -> 14.93938382 | Z123: =V123/Dźwignie!$D$2 -> 1.022184186 | AA123: =X123/Dźwignie!$D$3 -> 1.493938382 | AB123: 1.733722953 | AC123: 1.108438207 | AD123: 1.921724762
A124: 112 | B124: 0.6432464123 | C124: =NORMINV(B124,Dźwignie!$L$8,Dźwignie!$L$9) -> 368357.4972 | D124: =Dźwignie!$L$7*C124 -> 552536.2457 | F124: =C124*Dźwignie!$G$5 -> 368357.4972 | G124: 184178.7486 | H124: =Dźwignie!$G$6 -> 50000 | I124: 134178.7486 | J124: =I124-Dźwignie!$D$6 -> 114178.7486 | K124: =IF(J124>0,J124*(1-Dźwignie!$D$9),J124) -> 92484.78635 | L124: =K124/Dźwignie!$D$5 -> 9.248478635 | M124: =I124/Dźwignie!$D$2 -> 0.6708937429 | N124: =K124/Dźwignie!$D$3 -> 0.9248478635 | O124: 1.372637251 | P124: 1.175163945 | Q124: 1.613073806 | S124: =C124*Dźwignie!$G$8 -> 184178.7486 | T124: 368357.4972 | U124: =Dźwignie!$G$9 -> 150000 | V124: 218357.4972 | W124: =V124-Dźwignie!$D$6 -> 198357.4972 | X124: =IF(W124>0,W124*(1-Dźwignie!$D$9),W124) -> 160669.5727 | Y124: =X124/Dźwignie!$D$5 -> 16.06695727 | Z124: =V124/Dźwignie!$D$2 -> 1.091787486 | AA124: =X124/Dźwignie!$D$3 -> 1.606695727 | AB124: 1.686946874 | AC124: 1.100828052 | AD124: 1.85703844
A125: 113 | B125: 0.07732194662 | C125: =NORMINV(B125,Dźwignie!$L$8,Dźwignie!$L$9) -> 278834.0831 | D125: =Dźwignie!$L$7*C125 -> 418251.1246 | F125: =C125*Dźwignie!$G$5 -> 278834.0831 | G125: 139417.0415 | H125: =Dźwignie!$G$6 -> 50000 | I125: 89417.04154 | J125: =I125-Dźwignie!$D$6 -> 69417.04154 | K125: =IF(J125>0,J125*(1-Dźwignie!$D$9),J125) -> 56227.80365 | L125: =K125/Dźwignie!$D$5 -> 5.622780365 | M125: =I125/Dźwignie!$D$2 -> 0.4470852077 | N125: =K125/Dźwignie!$D$3 -> 0.5622780365 | O125: 1.559177525 | P125: 1.28811369 | Q125: 2.008397916 | S125: =C125*Dźwignie!$G$8 -> 139417.0415 | T125: 278834.0831 | U125: =Dźwignie!$G$9 -> 150000 | V125: 128834.0831 | W125: =V125-Dźwignie!$D$6 -> 108834.0831 | X125: =IF(W125>0,W125*(1-Dźwignie!$D$9),W125) -> 88155.6073 | Y125: =X125/Dźwignie!$D$5 -> 8.81556073 | Z125: =V125/Dźwignie!$D$2 -> 0.6441704154 | AA125: =X125/Dźwignie!$D$3 -> 0.881556073 | AB125: 2.164288179 | AC125: 1.183765962 | AD125: 2.562010679
A126: 114 | B126: 0.4393409491 | C126: =NORMINV(B126,Dźwignie!$L$8,Dźwignie!$L$9) -> 342367.9822 | D126: =Dźwignie!$L$7*C126 -> 513551.9733 | F126: =C126*Dźwignie!$G$5 -> 342367.9822 | G126: 171183.9911 | H126: =Dźwignie!$G$6 -> 50000 | I126: 121183.9911 | J126: =I126-Dźwignie!$D$6 -> 101183.9911 | K126: =IF(J126>0,J126*(1-Dźwignie!$D$9),J126) -> 81959.03278 | L126: =K126/Dźwignie!$D$5 -> 8.195903278 | M126: =I126/Dźwignie!$D$2 -> 0.6059199555 | N126: =K126/Dźwignie!$D$3 -> 0.8195903278 | O126: 1.412595753 | P126: 1.197659726 | Q126: 1.691809043 | S126: =C126*Dźwignie!$G$8 -> 171183.9911 | T126: 342367.9822 | U126: =Dźwignie!$G$9 -> 150000 | V126: 192367.9822 | W126: =V126-Dźwignie!$D$6 -> 172367.9822 | X126: =IF(W126>0,W126*(1-Dźwignie!$D$9),W126) -> 139618.0656 | Y126: =X126/Dźwignie!$D$5 -> 13.96180656 | Z126: =V126/Dźwignie!$D$2 -> 0.9618399109 | AA126: =X126/Dźwignie!$D$3 -> 1.396180656 | AB126: 1.779755541 | AC126: 1.11603083 | AD126: 1.986262053
A127: 115 | B127: 0.5480471253 | C127: =NORMINV(B127,Dźwignie!$L$8,Dźwignie!$L$9) -> 356036.4461 | D127: =Dźwignie!$L$7*C127 -> 534054.6692 | F127: =C127*Dźwignie!$G$5 -> 356036.4461 | G127: 178018.2231 | H127: =Dźwignie!$G$6 -> 50000 | I127: 128018.2231 | J127: =I127-Dźwignie!$D$6 -> 108018.2231 | K127: =IF(J127>0,J127*(1-Dźwignie!$D$9),J127) -> 87494.76069 | L127: =K127/Dźwignie!$D$5 -> 8.749476069 | M127: =I127/Dźwignie!$D$2 -> 0.6400911154 | N127: =K127/Dźwignie!$D$3 -> 0.8749476069 | O127: 1.390569396 | P127: 1.185153944 | Q127: 1.648038803 | S127: =C127*Dźwignie!$G$8 -> 178018.2231 | T127: 356036.4461 | U127: =Dźwignie!$G$9 -> 150000 | V127: 206036.4461 | W127: =V127-Dźwignie!$D$6 -> 186036.4461 | X127: =IF(W127>0,W127*(1-Dźwignie!$D$9),W127) -> 150689.5214 | Y127: =X127/Dźwignie!$D$5 -> 15.06895214 | Z127: =V127/Dźwignie!$D$2 -> 1.030182231 | AA127: =X127/Dźwignie!$D$3 -> 1.506895214 | AB127: 1.728026535 | AC127: 1.107505816 | AD127: 1.913799438
A128: 116 | B128: 0.07513904572 | C128: =NORMINV(B128,Dźwignie!$L$8,Dźwignie!$L$9) -> 278072.5053 | D128: =Dźwignie!$L$7*C128 -> 417108.7579 | F128: =C128*Dźwignie!$G$5 -> 278072.5053 | G128: 139036.2526 | H128: =Dźwignie!$G$6 -> 50000 | I128: 89036.25265 | J128: =I128-Dźwignie!$D$6 -> 69036.25265 | K128: =IF(J128>0,J128*(1-Dźwignie!$D$9),J128) -> 55919.36464 | L128: =K128/Dźwignie!$D$5 -> 5.591936464 | M128: =I128/Dźwignie!$D$2 -> 0.4451812632 | N128: =K128/Dźwignie!$D$3 -> 0.5591936464 | O128: 1.561569007 | P128: 1.289702862 | Q128: 2.013960018 | S128: =C128*Dźwignie!$G$8 -> 139036.2526 | T128: 278072.5053 | U128: =Dźwignie!$G$9 -> 150000 | V128: 128072.5053 | W128: =V128-Dźwignie!$D$6 -> 108072.5053 | X128: =IF(W128>0,W128*(1-Dźwignie!$D$9),W128) -> 87538.72929 | Y128: =X128/Dźwignie!$D$5 -> 8.753872929 | Z128: =V128/Dźwignie!$D$2 -> 0.6403625265 | AA128: =X128/Dźwignie!$D$3 -> 0.8753872929 | AB128: 2.17121157 | AC128: 1.185060945 | AD128: 2.573018036
A129: 117 | B129: 0.6217319369 | C129: =NORMINV(B129,Dźwignie!$L$8,Dźwignie!$L$9) -> 365501.6326 | D129: =Dźwignie!$L$7*C129 -> 548252.4489 | F129: =C129*Dźwignie!$G$5 -> 365501.6326 | G129: 182750.8163 | H129: =Dźwignie!$G$6 -> 50000 | I129: 132750.8163 | J129: =I129-Dźwignie!$D$6 -> 112750.8163 | K129: =IF(J129>0,J129*(1-Dźwignie!$D$9),J129) -> 91328.1612 | L129: =K129/Dźwignie!$D$5 -> 9.13281612 | M129: =I129/Dźwignie!$D$2 -> 0.6637540815 | N129: =K129/Dźwignie!$D$3 -> 0.913281612 | O129: 1.376645518 | P129: 1.177382308 | Q129: 1.620838077 | S129: =C129*Dźwignie!$G$8 -> 182750.8163 | T129: 365501.6326 | U129: =Dźwignie!$G$9 -> 150000 | V129: 215501.6326 | W129: =V129-Dźwignie!$D$6 -> 195501.6326 | X129: =IF(W129>0,W129*(1-Dźwignie!$D$9),W129) -> 158356.3224 | Y129: =X129/Dźwignie!$D$5 -> 15.83563224 | Z129: =V129/Dźwignie!$D$2 -> 1.077508163 | AA129: =X129/Dźwignie!$D$3 -> 1.583563224 | AB129: 1.696050411 | AC129: 1.102300936 | AD129: 1.869557956
A130: 118 | B130: 0.5358473063 | C130: =NORMINV(B130,Dźwignie!$L$8,Dźwignie!$L$9) -> 354498.8566 | D130: =Dźwignie!$L$7*C130 -> 531748.2849 | F130: =C130*Dźwignie!$G$5 -> 354498.8566 | G130: 177249.4283 | H130: =Dźwignie!$G$6 -> 50000 | I130: 127249.4283 | J130: =I130-Dźwignie!$D$6 -> 107249.4283 | K130: =IF(J130>0,J130*(1-Dźwignie!$D$9),J130) -> 86872.03691 | L130: =K130/Dźwignie!$D$5 -> 8.687203691 | M130: =I130/Dźwignie!$D$2 -> 0.6362471414 | N130: =K130/Dźwignie!$D$3 -> 0.8687203691 | O130: 1.392929074 | P130: 1.186481181 | Q130: 1.652684132 | S130: =C130*Dźwignie!$G$8 -> 177249.4283 | T130: 354498.8566 | U130: =Dźwignie!$G$9 -> 150000 | V130: 204498.8566 | W130: =V130-Dźwignie!$D$6 -> 184498.8566 | X130: =IF(W130>0,W130*(1-Dźwignie!$D$9),W130) -> 149444.0738 | Y130: =X130/Dźwignie!$D$5 -> 14.94440738 | Z130: =V130/Dźwignie!$D$2 -> 1.022494283 | AA130: =X130/Dźwignie!$D$3 -> 1.494440738 | AB130: 1.733500434 | AC130: 1.108401756 | AD130: 1.921414924
A131: 119 | B131: 0.3193190694 | C131: =NORMINV(B131,Dźwignie!$L$8,Dźwignie!$L$9) -> 326519.8121 | D131: =Dźwignie!$L$7*C131 -> 489779.7181 | F131: =C131*Dźwignie!$G$5 -> 326519.8121 | G131: 163259.906 | H131: =Dźwignie!$G$6 -> 50000 | I131: 113259.906 | J131: =I131-Dźwignie!$D$6 -> 93259.90603 | K131: =IF(J131>0,J131*(1-Dźwignie!$D$9),J131) -> 75540.52389 | L131: =K131/Dźwignie!$D$5 -> 7.554052389 | M131: =I131/Dźwignie!$D$2 -> 0.5662995302 | N131: =K131/Dźwignie!$D$3 -> 0.7554052389 | O131: 1.441462489 | P131: 1.21445443 | Q131: 1.750590505 | S131: =C131*Dźwignie!$G$8 -> 163259.906 | T131: 326519.8121 | U131: =Dźwignie!$G$9 -> 150000 | V131: 176519.8121 | W131: =V131-Dźwignie!$D$6 -> 156519.8121 | X131: =IF(W131>0,W131*(1-Dźwignie!$D$9),W131) -> 126781.0478 | Y131: =X131/Dźwignie!$D$5 -> 12.67810478 | Z131: =V131/Dźwignie!$D$2 -> 0.8825990603 | AA131: =X131/Dźwignie!$D$3 -> 1.267810478 | AB131: 1.849762971 | AC131: 1.127779351 | AD131: 2.086124483
A132: 120 | B132: 0.8289501667 | C132: =NORMINV(B132,Dźwignie!$L$8,Dźwignie!$L$9) -> 397501.2385 | D132: =Dźwignie!$L$7*C132 -> 596251.8578 | F132: =C132*Dźwignie!$G$5 -> 397501.2385 | G132: 198750.6193 | H132: =Dźwignie!$G$6 -> 50000 | I132: 148750.6193 | J132: =I132-Dźwignie!$D$6 -> 128750.6193 | K132: =IF(J132>0,J132*(1-Dźwignie!$D$9),J132) -> 104288.0016 | L132: =K132/Dźwignie!$D$5 -> 10.42880016 | M132: =I132/Dźwignie!$D$2 -> 0.7437530963 | N132: =K132/Dźwignie!$D$3 -> 1.042880016 | O132: 1.336133054 | P132: 1.155339059 | Q132: 1.543686705 | S132: =C132*Dźwignie!$G$8 -> 198750.6193 | T132: 397501.2385 | U132: =Dźwignie!$G$9 -> 150000 | V132: 247501.2385 | W132: =V132-Dźwignie!$D$6 -> 227501.2385 | X132: =IF(W132>0,W132*(1-Dźwignie!$D$9),W132) -> 184276.0032 | Y132: =X132/Dźwignie!$D$5 -> 18.42760032 | Z132: =V132/Dźwignie!$D$2 -> 1.237506193 | AA132: =X132/Dźwignie!$D$3 -> 1.842760032 | AB132: 1.606057573 | AC132: 1.087911609 | AD132: 1.747248679
A133: 121 | B133: 0.4074177146 | C133: =NORMINV(B133,Dźwignie!$L$8,Dźwignie!$L$9) -> 338290.368 | D133: =Dźwignie!$L$7*C133 -> 507435.5521 | F133: =C133*Dźwignie!$G$5 -> 338290.368 | G133: 169145.184 | H133: =Dźwignie!$G$6 -> 50000 | I133: 119145.184 | J133: =I133-Dźwignie!$D$6 -> 99145.18402 | K133: =IF(J133>0,J133*(1-Dźwignie!$D$9),J133) -> 80307.59906 | L133: =K133/Dźwignie!$D$5 -> 8.030759906 | M133: =I133/Dźwignie!$D$2 -> 0.5957259201 | N133: =K133/Dźwignie!$D$3 -> 0.8030759906 | O133: 1.419656073 | P133: 1.201724372 | Q133: 1.706035303 | S133: =C133*Dźwignie!$G$8 -> 169145.184 | T133: 338290.368 | U133: =Dźwignie!$G$9 -> 150000 | V133: 188290.368 | W133: =V133-Dźwignie!$D$6 -> 168290.368 | X133: =IF(W133>0,W133*(1-Dźwignie!$D$9),W133) -> 136315.1981 | Y133: =X133/Dźwignie!$D$5 -> 13.63151981 | Z133: =V133/Dźwignie!$D$2 -> 0.9414518402 | AA133: =X133/Dźwignie!$D$3 -> 1.363151981 | AB133: 1.796641918 | AC133: 1.118842214 | AD133: 2.010158822
A134: 122 | B134: 0.2874325514 | C134: =NORMINV(B134,Dźwignie!$L$8,Dźwignie!$L$9) -> 321954.9555 | D134: =Dźwignie!$L$7*C134 -> 482932.4332 | F134: =C134*Dźwignie!$G$5 -> 321954.9555 | G134: 160977.4777 | H134: =Dźwignie!$G$6 -> 50000 | I134: 110977.4777 | J134: =I134-Dźwignie!$D$6 -> 90977.47773 | K134: =IF(J134>0,J134*(1-Dźwignie!$D$9),J134) -> 73691.75696 | L134: =K134/Dźwignie!$D$5 -> 7.369175696 | M134: =I134/Dźwignie!$D$2 -> 0.5548873887 | N134: =K134/Dźwignie!$D$3 -> 0.7369175696 | O134: 1.450541867 | P134: 1.219834628 | Q134: 1.769421199 | S134: =C134*Dźwignie!$G$8 -> 160977.4777 | T134: 321954.9555 | U134: =Dźwignie!$G$9 -> 150000 | V134: 171954.9555 | W134: =V134-Dźwignie!$D$6 -> 151954.9555 | X134: =IF(W134>0,W134*(1-Dźwignie!$D$9),W134) -> 123083.5139 | Y134: =X134/Dźwignie!$D$5 -> 12.30835139 | Z134: =V134/Dźwignie!$D$2 -> 0.8597747773 | AA134: =X134/Dźwignie!$D$3 -> 1.230835139 | AB134: 1.872321473 | AC134: 1.131617952 | AD134: 2.11875259
A135: 123 | B135: 0.9886355996 | C135: =NORMINV(B135,Dźwignie!$L$8,Dźwignie!$L$9) -> 463898.1344 | D135: =Dźwignie!$L$7*C135 -> 695847.2016 | F135: =C135*Dźwignie!$G$5 -> 463898.1344 | G135: 231949.0672 | H135: =Dźwignie!$G$6 -> 50000 | I135: 181949.0672 | J135: =I135-Dźwignie!$D$6 -> 161949.0672 | K135: =IF(J135>0,J135*(1-Dźwignie!$D$9),J135) -> 131178.7444 | L135: =K135/Dźwignie!$D$5 -> 13.11787444 | M135: =I135/Dźwignie!$D$2 -> 0.9097453359 | N135: =K135/Dźwignie!$D$3 -> 1.311787444 | O135: 1.274802178 | P135: 1.123495617 | Q135: 1.43223466 | S135: =C135*Dźwignie!$G$8 -> 231949.0672 | T135: 463898.1344 | U135: =Dźwignie!$G$9 -> 150000 | V135: 313898.1344 | W135: =V135-Dźwignie!$D$6 -> 293898.1344 | X135: =IF(W135>0,W135*(1-Dźwignie!$D$9),W135) -> 238057.4888 | Y135: =X135/Dźwignie!$D$5 -> 23.80574888 | Z135: =V135/Dźwignie!$D$2 -> 1.569490672 | AA135: =X135/Dźwignie!$D$3 -> 2.380574888 | AB135: 1.477862031 | AC135: 1.068050789 | AD135: 1.578431709
A136: 124 | B136: 0.2987837791 | C136: =NORMINV(B136,Dźwignie!$L$8,Dźwignie!$L$9) -> 323604.9145 | D136: =Dźwignie!$L$7*C136 -> 485407.3718 | F136: =C136*Dźwignie!$G$5 -> 323604.9145 | G136: 161802.4573 | H136: =Dźwignie!$G$6 -> 50000 | I136: 111802.4573 | J136: =I136-Dźwignie!$D$6 -> 91802.45727 | K136: =IF(J136>0,J136*(1-Dźwignie!$D$9),J136) -> 74359.99039 | L136: =K136/Dźwignie!$D$5 -> 7.435999039 | M136: =I136/Dźwignie!$D$2 -> 0.5590122863 | N136: =K136/Dźwignie!$D$3 -> 0.7435999039 | O136: 1.447217362 | P136: 1.217859092 | Q136: 1.762506823 | S136: =C136*Dźwignie!$G$8 -> 161802.4573 | T136: 323604.9145 | U136: =Dźwignie!$G$9 -> 150000 | V136: 173604.9145 | W136: =V136-Dźwignie!$D$6 -> 153604.9145 | X136: =IF(W136>0,W136*(1-Dźwignie!$D$9),W136) -> 124419.9808 | Y136: =X136/Dźwignie!$D$5 -> 12.44199808 | Z136: =V136/Dźwignie!$D$2 -> 0.8680245727 | AA136: =X136/Dźwignie!$D$3 -> 1.244199808 | AB136: 1.864030839 | AC136: 1.130204167 | AD136: 2.106735423
A137: 125 | B137: 0.8145672679 | C137: =NORMINV(B137,Dźwignie!$L$8,Dźwignie!$L$9) -> 394742.6696 | D137: =Dźwignie!$L$7*C137 -> 592114.0044 | F137: =C137*Dźwignie!$G$5 -> 394742.6696 | G137: 197371.3348 | H137: =Dźwignie!$G$6 -> 50000 | I137: 147371.3348 | J137: =I137-Dźwignie!$D$6 -> 127371.3348 | K137: =IF(J137>0,J137*(1-Dźwignie!$D$9),J137) -> 103170.7812 | L137: =K137/Dźwignie!$D$5 -> 10.31707812 | M137: =I137/Dźwignie!$D$2 -> 0.7368566741 | N137: =K137/Dźwignie!$D$3 -> 1.031707812 | O137: 1.339279006 | P137: 1.157021201 | Q137: 1.549574204 | S137: =C137*Dźwignie!$G$8 -> 197371.3348 | T137: 394742.6696 | U137: =Dźwignie!$G$9 -> 150000 | V137: 244742.6696 | W137: =V137-Dźwignie!$D$6 -> 224742.6696 | X137: =IF(W137>0,W137*(1-Dźwignie!$D$9),W137) -> 182041.5624 | Y137: =X137/Dźwignie!$D$5 -> 18.20415624 | Z137: =V137/Dźwignie!$D$2 -> 1.223713348 | AA137: =X137/Dźwignie!$D$3 -> 1.820415624 | AB137: 1.612888632 | AC137: 1.088990667 | AD137: 1.756420667
A138: 126 | B138: 0.8660327196 | C138: =NORMINV(B138,Dźwignie!$L$8,Dźwignie!$L$9) -> 405391.5788 | D138: =Dźwignie!$L$7*C138 -> 608087.3682 | F138: =C138*Dźwignie!$G$5 -> 405391.5788 | G138: 202695.7894 | H138: =Dźwignie!$G$6 -> 50000 | I138: 152695.7894 | J138: =I138-Dźwignie!$D$6 -> 132695.7894 | K138: =IF(J138>0,J138*(1-Dźwignie!$D$9),J138) -> 107483.5894 | L138: =K138/Dźwignie!$D$5 -> 10.74835894 | M138: =I138/Dźwignie!$D$2 -> 0.7634789469 | N138: =K138/Dźwignie!$D$3 -> 1.074835894 | O138: 1.327448453 | P138: 1.150720683 | Q138: 1.52752239 | S138: =C138*Dźwignie!$G$8 -> 202695.7894 | T138: 405391.5788 | U138: =Dźwignie!$G$9 -> 150000 | V138: 255391.5788 | W138: =V138-Dźwignie!$D$6 -> 235391.5788 | X138: =IF(W138>0,W138*(1-Dźwignie!$D$9),W138) -> 190667.1788 | Y138: =X138/Dźwignie!$D$5 -> 19.06671788 | Z138: =V138/Dźwignie!$D$2 -> 1.276957894 | AA138: =X138/Dźwignie!$D$3 -> 1.906671788 | AB138: 1.587333383 | AC138: 1.084964807 | AD138: 1.722200857
A139: 127 | B139: 0.1026886106 | C139: =NORMINV(B139,Dźwignie!$L$8,Dźwignie!$L$9) -> 286681.0214 | D139: =Dźwignie!$L$7*C139 -> 430021.5321 | F139: =C139*Dźwignie!$G$5 -> 286681.0214 | G139: 143340.5107 | H139: =Dźwignie!$G$6 -> 50000 | I139: 93340.51071 | J139: =I139-Dźwignie!$D$6 -> 73340.51071 | K139: =IF(J139>0,J139*(1-Dźwignie!$D$9),J139) -> 59405.81368 | L139: =K139/Dźwignie!$D$5 -> 5.940581368 | M139: =I139/Dźwignie!$D$2 -> 0.4667025536 | N139: =K139/Dźwignie!$D$3 -> 0.5940581368 | O139: 1.535673092 | P139: 1.272700583 | Q139: 1.954452039 | S139: =C139*Dźwignie!$G$8 -> 143340.5107 | T139: 286681.0214 | U139: =Dźwignie!$G$9 -> 150000 | V139: 136681.0214 | W139: =V139-Dźwignie!$D$6 -> 116681.0214 | X139: =IF(W139>0,W139*(1-Dźwignie!$D$9),W139) -> 94511.62735 | Y139: =X139/Dźwignie!$D$5 -> 9.451162735 | Z139: =V139/Dźwignie!$D$2 -> 0.6834051071 | AA139: =X139/Dźwignie!$D$3 -> 0.9451162735 | AB139: 2.097445706 | AC139: 1.171407481 | AD139: 2.456963591
A140: 128 | B140: 0.6570641994 | C140: =NORMINV(B140,Dźwignie!$L$8,Dźwignie!$L$9) -> 370223.1962 | D140: =Dźwignie!$L$7*C140 -> 555334.7943 | F140: =C140*Dźwignie!$G$5 -> 370223.1962 | G140: 185111.5981 | H140: =Dźwignie!$G$6 -> 50000 | I140: 135111.5981 | J140: =I140-Dźwignie!$D$6 -> 115111.5981 | K140: =IF(J140>0,J140*(1-Dźwignie!$D$9),J140) -> 93240.39447 | L140: =K140/Dźwignie!$D$5 -> 9.324039447 | M140: =I140/Dźwignie!$D$2 -> 0.6755579906 | N140: =K140/Dźwignie!$D$3 -> 0.9324039447 | O140: 1.370064456 | P140: 1.173744439 | Q140: 1.608105535 | S140: =C140*Dźwignie!$G$8 -> 185111.5981 | T140: 370223.1962 | U140: =Dźwignie!$G$9 -> 150000 | V140: 220223.1962 | W140: =V140-Dźwignie!$D$6 -> 200223.1962 | X140: =IF(W140>0,W140*(1-Dźwignie!$D$9),W140) -> 162180.7889 | Y140: =X140/Dźwignie!$D$5 -> 16.21807889 | Z140: =V140/Dźwignie!$D$2 -> 1.101115981 | AA140: =X140/Dźwignie!$D$3 -> 1.621807889 | AB140: 1.681127159 | AC140: 1.099888526 | AD140: 1.849052473
A141: 129 | B141: 0.8884076476 | C141: =NORMINV(B141,Dźwignie!$L$8,Dźwignie!$L$9) -> 410905.167 | D141: =Dźwignie!$L$7*C141 -> 616357.7505 | F141: =C141*Dźwignie!$G$5 -> 410905.167 | G141: =$D141-F141 -> 205452.5835 | H141: =Dźwignie!$G$6 -> 50000 | I141: =G141-H141 -> 155452.5835 | J141: =I141-Dźwignie!$D$6 -> 135452.5835 | K141: =IF(J141>0,J141*(1-Dźwignie!$D$9),J141) -> 109716.5926 | L141: =K141/Dźwignie!$D$5 -> 10.97165926 | M141: =I141/Dźwignie!$D$2 -> 0.7772629175 | N141: =K141/Dźwignie!$D$3 -> 1.097165926 | O141: =IF(I141<>0,G141/I141,"N ") -> 1.321641486 | P141: =IF(J141<>0,I141/J141,"N ") -> 1.147653145 | Q141: =IF(ISTEXT(O141),O141,IF(ISTEXT(P141),P141,O141*P141)) -> 1.516786009 | S141: =C141*Dźwignie!$G$8 -> 205452.5835 | T141: =$D141-S141 -> 410905.167 | U141: =Dźwignie!$G$9 -> 150000 | V141: =T141-U141 -> 260905.167 | W141: =V141-Dźwignie!$D$6 -> 240905.167 | X141: =IF(W141>0,W141*(1-Dźwignie!$D$9),W141) -> 195133.1853 | Y141: =X141/Dźwignie!$D$5 -> 19.51331853 | Z141: =V141/Dźwignie!$D$2 -> 1.304525835 | AA141: =X141/Dźwignie!$D$3 -> 1.951331853 | AB141: =IF(V141<>0,T141/V141,"N ") -> 1.574921538 | AC141: =IF(W141<>0,V141/W141,"N ") -> 1.08302022 | AD141: =IF(ISTEXT(AB141),AB141,IF(ISTEXT(AC141),AC141,AB141*AC141)) -> 1.705671871
A142: 130 | B142: 0.4484666586 | C142: =NORMINV(B142,Dźwignie!$L$8,Dźwignie!$L$9) -> 343523.1859 | D142: =Dźwignie!$L$7*C142 -> 515284.7788 | F142: =C142*Dźwignie!$G$5 -> 343523.1859 | G142: 171761.5929 | H142: =Dźwignie!$G$6 -> 50000 | I142: 121761.5929 | J142: =I142-Dźwignie!$D$6 -> 101761.5929 | K142: =IF(J142>0,J142*(1-Dźwignie!$D$9),J142) -> 82426.89027 | L142: =K142/Dźwignie!$D$5 -> 8.242689027 | M142: =I142/Dźwignie!$D$2 -> 0.6088079646 | N142: =K142/Dźwignie!$D$3 -> 0.8242689027 | O142: 1.410638517 | P142: 1.196537804 | Q142: 1.687882314 | S142: =C142*Dźwignie!$G$8 -> 171761.5929 | T142: 343523.1859 | U142: =Dźwignie!$G$9 -> 150000 | V142: 193523.1859 | W142: =V142-Dźwignie!$D$6 -> 173523.1859 | X142: =IF(W142>0,W142*(1-Dźwignie!$D$9),W142) -> 140553.7805 | Y142: =X142/Dźwignie!$D$5 -> 14.05537805 | Z142: =V142/Dźwignie!$D$2 -> 0.9676159293 | AA142: =X142/Dźwignie!$D$3 -> 1.405537805 | AB142: 1.775100923 | AC142: 1.115258373 | AD142: 1.979696167
A143: 131 | B143: 0.1935215592 | C143: =NORMINV(B143,Dźwignie!$L$8,Dźwignie!$L$9) -> 306750.3944 | D143: =Dźwignie!$L$7*C143 -> 460125.5916 | F143: =C143*Dźwignie!$G$5 -> 306750.3944 | G143: 153375.1972 | H143: =Dźwignie!$G$6 -> 50000 | I143: 103375.1972 | J143: =I143-Dźwignie!$D$6 -> 83375.19721 | K143: =IF(J143>0,J143*(1-Dźwignie!$D$9),J143) -> 67533.90974 | L143: =K143/Dźwignie!$D$5 -> 6.753390974 | M143: =I143/Dźwignie!$D$2 -> 0.5168759861 | N143: =K143/Dźwignie!$D$3 -> 0.6753390974 | O143: 1.483675014 | P143: 1.239879493 | Q143: 1.839578224 | S143: =C143*Dźwignie!$G$8 -> 153375.1972 | T143: 306750.3944 | U143: =Dźwignie!$G$9 -> 150000 | V143: 156750.3944 | W143: =V143-Dźwignie!$D$6 -> 136750.3944 | X143: =IF(W143>0,W143*(1-Dźwignie!$D$9),W143) -> 110767.8195 | Y143: =X143/Dźwignie!$D$5 -> 11.07678195 | Z143: =V143/Dźwignie!$D$2 -> 0.7837519721 | AA143: =X143/Dźwignie!$D$3 -> 1.107678195 | AB143: 1.956935391 | AC143: 1.146251863 | AD143: 2.243140839
A144: 132 | B144: 0.1201610565 | C144: =NORMINV(B144,Dźwignie!$L$8,Dźwignie!$L$9) -> 291290.8974 | D144: =Dźwignie!$L$7*C144 -> 436936.346 | F144: =C144*Dźwignie!$G$5 -> 291290.8974 | G144: 145645.4487 | H144: =Dźwignie!$G$6 -> 50000 | I144: 95645.44868 | J144: =I144-Dźwignie!$D$6 -> 75645.44868 | K144: =IF(J144>0,J144*(1-Dźwignie!$D$9),J144) -> 61272.81343 | L144: =K144/Dźwignie!$D$5 -> 6.127281343 | M144: =I144/Dźwignie!$D$2 -> 0.4782272434 | N144: =K144/Dźwignie!$D$3 -> 0.6127281343 | O144: 1.522764028 | P144: 1.26439132 | Q144: 1.925369619 | S144: =C144*Dźwignie!$G$8 -> 145645.4487 | T144: 291290.8974 | U144: =Dźwignie!$G$9 -> 150000 | V144: 141290.8974 | W144: =V144-Dźwignie!$D$6 -> 121290.8974 | X144: =IF(W144>0,W144*(1-Dźwignie!$D$9),W144) -> 98245.62686 | Y144: =X144/Dźwignie!$D$5 -> 9.824562686 | Z144: =V144/Dźwignie!$D$2 -> 0.7064544868 | AA144: =X144/Dźwignie!$D$3 -> 0.9824562686 | AB144: 2.061639517 | AC144: 1.164892836 | AD144: 2.401589103
A145: 133 | B145: 0.542329967 | C145: =NORMINV(B145,Dźwignie!$L$8,Dźwignie!$L$9) -> 355315.2688 | D145: =Dźwignie!$L$7*C145 -> 532972.9032 | F145: =C145*Dźwignie!$G$5 -> 355315.2688 | G145: 177657.6344 | H145: =Dźwignie!$G$6 -> 50000 | I145: 127657.6344 | J145: =I145-Dźwignie!$D$6 -> 107657.6344 | K145: =IF(J145>0,J145*(1-Dźwignie!$D$9),J145) -> 87202.68387 | L145: =K145/Dźwignie!$D$5 -> 8.720268387 | M145: =I145/Dźwignie!$D$2 -> 0.6382881721 | N145: =K145/Dźwignie!$D$3 -> 0.8720268387 | O145: 1.391672619 | P145: 1.185774099 | Q145: 1.650209345 | S145: =C145*Dźwignie!$G$8 -> 177657.6344 | T145: 355315.2688 | U145: =Dźwignie!$G$9 -> 150000 | V145: 205315.2688 | W145: =V145-Dźwignie!$D$6 -> 185315.2688 | X145: =IF(W145>0,W145*(1-Dźwignie!$D$9),W145) -> 150105.3677 | Y145: =X145/Dźwignie!$D$5 -> 15.01053677 | Z145: =V145/Dźwignie!$D$2 -> 1.026576344 | AA145: =X145/Dźwignie!$D$3 -> 1.501053677 | AB145: 1.730583755 | AC145: 1.107924188 | AD145: 1.917355602
A146: 134 | B146: 0.6070610285 | C146: =NORMINV(B146,Dźwignie!$L$8,Dźwignie!$L$9) -> 363583.3587 | D146: =Dźwignie!$L$7*C146 -> 545375.0381 | F146: =C146*Dźwignie!$G$5 -> 363583.3587 | G146: 181791.6794 | H146: =Dźwignie!$G$6 -> 50000 | I146: 131791.6794 | J146: =I146-Dźwignie!$D$6 -> 111791.6794 | K146: =IF(J146>0,J146*(1-Dźwignie!$D$9),J146) -> 90551.26029 | L146: =K146/Dźwignie!$D$5 -> 9.055126029 | M146: =I146/Dźwignie!$D$2 -> 0.6589583968 | N146: =K146/Dźwignie!$D$3 -> 0.9055126029 | O146: 1.379386622 | P146: 1.178904191 | Q146: 1.62616467 | S146: =C146*Dźwignie!$G$8 -> 181791.6794 | T146: 363583.3587 | U146: =Dźwignie!$G$9 -> 150000 | V146: 213583.3587 | W146: =V146-Dźwignie!$D$6 -> 193583.3587 | X146: =IF(W146>0,W146*(1-Dźwignie!$D$9),W146) -> 156802.5206 | Y146: =X146/Dźwignie!$D$5 -> 15.68025206 | Z146: =V146/Dźwignie!$D$2 -> 1.067916794 | AA146: =X146/Dźwignie!$D$3 -> 1.568025206 | AB146: 1.702301906 | AC146: 1.103314666 | AD146: 1.878174659
A147: 135 | B147: 0.6066544652 | C147: =NORMINV(B147,Dźwignie!$L$8,Dźwignie!$L$9) -> 363530.4957 | D147: =Dźwignie!$L$7*C147 -> 545295.7436 | F147: =C147*Dźwignie!$G$5 -> 363530.4957 | G147: 181765.2479 | H147: =Dźwignie!$G$6 -> 50000 | I147: 131765.2479 | J147: =I147-Dźwignie!$D$6 -> 111765.2479 | K147: =IF(J147>0,J147*(1-Dźwignie!$D$9),J147) -> 90529.85077 | L147: =K147/Dźwignie!$D$5 -> 9.052985077 | M147: =I147/Dźwignie!$D$2 -> 0.6588262393 | N147: =K147/Dźwignie!$D$3 -> 0.9052985077 | O147: 1.379462725 | P147: 1.178946501 | Q147: 1.626312752 | S147: =C147*Dźwignie!$G$8 -> 181765.2479 | T147: 363530.4957 | U147: =Dźwignie!$G$9 -> 150000 | V147: 213530.4957 | W147: =V147-Dźwignie!$D$6 -> 193530.4957 | X147: =IF(W147>0,W147*(1-Dźwignie!$D$9),W147) -> 156759.7015 | Y147: =X147/Dźwignie!$D$5 -> 15.67597015 | Z147: =V147/Dźwignie!$D$2 -> 1.067652479 | AA147: =X147/Dźwignie!$D$3 -> 1.567597015 | AB147: 1.702475773 | AC147: 1.103342886 | AD147: 1.878414533
A148: 136 | B148: 0.4640142918 | C148: =NORMINV(B148,Dźwignie!$L$8,Dźwignie!$L$9) -> 345483.7267 | D148: =Dźwignie!$L$7*C148 -> 518225.59 | F148: =C148*Dźwignie!$G$5 -> 345483.7267 | G148: 172741.8633 | H148: =Dźwignie!$G$6 -> 50000 | I148: 122741.8633 | J148: =I148-Dźwignie!$D$6 -> 102741.8633 | K148: =IF(J148>0,J148*(1-Dźwignie!$D$9),J148) -> 83220.9093 | L148: =K148/Dźwignie!$D$5 -> 8.32209093 | M148: =I148/Dźwignie!$D$2 -> 0.6137093167 | N148: =K148/Dźwignie!$D$3 -> 0.832209093 | O148: 1.407358978 | P148: 1.194662617 | Q148: 1.68131916 | S148: =C148*Dźwignie!$G$8 -> 172741.8633 | T148: 345483.7267 | U148: =Dźwignie!$G$9 -> 150000 | V148: 195483.7267 | W148: =V148-Dźwignie!$D$6 -> 175483.7267 | X148: =IF(W148>0,W148*(1-Dźwignie!$D$9),W148) -> 142141.8186 | Y148: =X148/Dźwignie!$D$5 -> 14.21418186 | Z148: =V148/Dźwignie!$D$2 -> 0.9774186334 | AA148: =X148/Dźwignie!$D$3 -> 1.421418186 | AB148: 1.767327299 | AC148: 1.113970682 | AD148: 1.968750797
A149: 137 | B149: 0.01101440191 | C149: =NORMINV(B149,Dźwignie!$L$8,Dźwignie!$L$9) -> 235506.4569 | D149: =Dźwignie!$L$7*C149 -> 353259.6854 | F149: =C149*Dźwignie!$G$5 -> 235506.4569 | G149: 117753.2285 | H149: =Dźwignie!$G$6 -> 50000 | I149: 67753.22846 | J149: =I149-Dźwignie!$D$6 -> 47753.22846 | K149: =IF(J149>0,J149*(1-Dźwignie!$D$9),J149) -> 38680.11505 | L149: =K149/Dźwignie!$D$5 -> 3.868011505 | M149: =I149/Dźwignie!$D$2 -> 0.3387661423 | N149: =K149/Dźwignie!$D$3 -> 0.3868011505 | O149: 1.737972214 | P149: 1.41881985 | Q149: 2.465869476 | S149: =C149*Dźwignie!$G$8 -> 117753.2285 | T149: 235506.4569 | U149: =Dźwignie!$G$9 -> 150000 | V149: 85506.45692 | W149: =V149-Dźwignie!$D$6 -> 65506.45692 | X149: =IF(W149>0,W149*(1-Dźwignie!$D$9),W149) -> 53060.23011 | Y149: =X149/Dźwignie!$D$5 -> 5.306023011 | Z149: =V149/Dźwignie!$D$2 -> 0.4275322846 | AA149: =X149/Dźwignie!$D$3 -> 0.5306023011 | AB149: 2.754253484 | AC149: 1.305313414 | AD149: 3.595164019
A150: 138 | B150: 0.9502753019 | C150: =NORMINV(B150,Dźwignie!$L$8,Dźwignie!$L$9) -> 432376.4413 | D150: =Dźwignie!$L$7*C150 -> 648564.662 | F150: =C150*Dźwignie!$G$5 -> 432376.4413 | G150: 216188.2207 | H150: =Dźwignie!$G$6 -> 50000 | I150: 166188.2207 | J150: =I150-Dźwignie!$D$6 -> 146188.2207 | K150: =IF(J150>0,J150*(1-Dźwignie!$D$9),J150) -> 118412.4587 | L150: =K150/Dźwignie!$D$5 -> 11.84124587 | M150: =I150/Dźwignie!$D$2 -> 0.8309411033 | N150: =K150/Dźwignie!$D$3 -> 1.184124587 | O150: 1.300863682 | P150: 1.136809928 | Q150: 1.478834749 | S150: =C150*Dźwignie!$G$8 -> 216188.2207 | T150: 432376.4413 | U150: =Dźwignie!$G$9 -> 150000 | V150: 282376.4413 | W150: =V150-Dźwignie!$D$6 -> 262376.4413 | X150: =IF(W150>0,W150*(1-Dźwignie!$D$9),W150) -> 212524.9175 | Y150: =X150/Dźwignie!$D$5 -> 21.25249175 | Z150: =V150/Dźwignie!$D$2 -> 1.411882207 | AA150: =X150/Dźwignie!$D$3 -> 2.125249175 | AB150: 1.531205788 | AC150: 1.076226356 | AD150: 1.647924025
A151: 139 | B151: 0.5792089105 | C151: =NORMINV(B151,Dźwignie!$L$8,Dźwignie!$L$9) -> 359993.5048 | D151: =Dźwignie!$L$7*C151 -> 539990.2571 | F151: =C151*Dźwignie!$G$5 -> 359993.5048 | G151: 179996.7524 | H151: =Dźwignie!$G$6 -> 50000 | I151: 129996.7524 | J151: =I151-Dźwignie!$D$6 -> 109996.7524 | K151: =IF(J151>0,J151*(1-Dźwignie!$D$9),J151) -> 89097.36943 | L151: =K151/Dźwignie!$D$5 -> 8.909736943 | M151: =I151/Dźwignie!$D$2 -> 0.6499837619 | N151: =K151/Dźwignie!$D$3 -> 0.8909736943 | O151: 1.384624993 | P151: 1.18182355 | Q151: 1.636382425 | S151: =C151*Dźwignie!$G$8 -> 179996.7524 | T151: 359993.5048 | U151: =Dźwignie!$G$9 -> 150000 | V151: 209993.5048 | W151: =V151-Dźwignie!$D$6 -> 189993.5048 | X151: =IF(W151>0,W151*(1-Dźwignie!$D$9),W151) -> 153894.7389 | Y151: =X151/Dźwignie!$D$5 -> 15.38947389 | Z151: =V151/Dźwignie!$D$2 -> 1.049967524 | AA151: =X151/Dźwignie!$D$3 -> 1.538947389 | AB151: 1.714307808 | AC151: 1.105266756 | AD151: 1.89476743
A152: 140 | B152: 0.7897591591 | C152: =NORMINV(B152,Dźwignie!$L$8,Dźwignie!$L$9) -> 390279.293 | D152: =Dźwignie!$L$7*C152 -> 585418.9394 | F152: =C152*Dźwignie!$G$5 -> 390279.293 | G152: 195139.6465 | H152: =Dźwignie!$G$6 -> 50000 | I152: 145139.6465 | J152: =I152-Dźwignie!$D$6 -> 125139.6465 | K152: =IF(J152>0,J152*(1-Dźwignie!$D$9),J152) -> 101363.1136 | L152: =K152/Dźwignie!$D$5 -> 10.13631136 | M152: =I152/Dźwignie!$D$2 -> 0.7256982324 | N152: =K152/Dźwignie!$D$3 -> 1.013631136 | O152: 1.344495809 | P152: 1.159821452 | Q152: 1.559375082 | S152: =C152*Dźwignie!$G$8 -> 195139.6465 | T152: 390279.293 | U152: =Dźwignie!$G$9 -> 150000 | V152: 240279.293 | W152: =V152-Dźwignie!$D$6 -> 220279.293 | X152: =IF(W152>0,W152*(1-Dźwignie!$D$9),W152) -> 178426.2273 | Y152: =X152/Dźwignie!$D$5 -> 17.84262273 | Z152: =V152/Dźwignie!$D$2 -> 1.201396465 | AA152: =X152/Dźwignie!$D$3 -> 1.784262273 | AB152: 1.62427352 | AC152: 1.090793827 | AD152: 1.771747529
A153: 141 | B153: 0.5535551906 | C153: =NORMINV(B153,Dźwignie!$L$8,Dźwignie!$L$9) -> 356732.436 | D153: =Dźwignie!$L$7*C153 -> 535098.654 | F153: =C153*Dźwignie!$G$5 -> 356732.436 | G153: 178366.218 | H153: =Dźwignie!$G$6 -> 50000 | I153: 128366.218 | J153: =I153-Dźwignie!$D$6 -> 108366.218 | K153: =IF(J153>0,J153*(1-Dźwignie!$D$9),J153) -> 87776.63659 | L153: =K153/Dźwignie!$D$5 -> 8.777663659 | M153: =I153/Dźwignie!$D$2 -> 0.6418310901 | N153: =K153/Dźwignie!$D$3 -> 0.8777663659 | O153: 1.38951058 | P153: 1.184559361 | Q153: 1.645957765 | S153: =C153*Dźwignie!$G$8 -> 178366.218 | T153: 356732.436 | U153: =Dźwignie!$G$9 -> 150000 | V153: 206732.436 | W153: =V153-Dźwignie!$D$6 -> 186732.436 | X153: =IF(W153>0,W153*(1-Dźwignie!$D$9),W153) -> 151253.2732 | Y153: =X153/Dźwignie!$D$5 -> 15.12532732 | Z153: =V153/Dźwignie!$D$2 -> 1.03366218 | AA153: =X153/Dźwignie!$D$3 -> 1.512532732 | AB153: 1.725575545 | AC153: 1.10710512 | AD153: 1.910393521
A154: 142 | B154: 0.01332676411 | C154: =NORMINV(B154,Dźwignie!$L$8,Dźwignie!$L$9) -> 239172.2593 | D154: =Dźwignie!$L$7*C154 -> 358758.3889 | F154: =C154*Dźwignie!$G$5 -> 239172.2593 | G154: 119586.1296 | H154: =Dźwignie!$G$6 -> 50000 | I154: 69586.12964 | J154: =I154-Dźwignie!$D$6 -> 49586.12964 | K154: =IF(J154>0,J154*(1-Dźwignie!$D$9),J154) -> 40164.76501 | L154: =K154/Dźwignie!$D$5 -> 4.016476501 | M154: =I154/Dźwignie!$D$2 -> 0.3479306482 | N154: =K154/Dźwignie!$D$3 -> 0.4016476501 | O154: 1.718533999 | P154: 1.403338598 | Q154: 2.411685092 | S154: =C154*Dźwignie!$G$8 -> 119586.1296 | T154: 239172.2593 | U154: =Dźwignie!$G$9 -> 150000 | V154: 89172.25927 | W154: =V154-Dźwignie!$D$6 -> 69172.25927 | X154: =IF(W154>0,W154*(1-Dźwignie!$D$9),W154) -> 56029.53001 | Y154: =X154/Dźwignie!$D$5 -> 5.602953001 | Z154: =V154/Dźwignie!$D$2 -> 0.4458612964 | AA154: =X154/Dźwignie!$D$3 -> 0.5602953001 | AB154: 2.682137486 | AC154: 1.289133248 | AD154: 3.457632609
A155: 143 | B155: 0.5680330396 | C155: =NORMINV(B155,Dźwignie!$L$8,Dźwignie!$L$9) -> 358568.4314 | D155: =Dźwignie!$L$7*C155 -> 537852.6471 | F155: =C155*Dźwignie!$G$5 -> 358568.4314 | G155: 179284.2157 | H155: =Dźwignie!$G$6 -> 50000 | I155: 129284.2157 | J155: =I155-Dźwignie!$D$6 -> 109284.2157 | K155: =IF(J155>0,J155*(1-Dźwignie!$D$9),J155) -> 88520.21472 | L155: =K155/Dźwignie!$D$5 -> 8.852021472 | M155: =I155/Dźwignie!$D$2 -> 0.6464210785 | N155: =K155/Dźwignie!$D$3 -> 0.8852021472 | O155: 1.386744814 | P155: 1.183009045 | Q155: 1.640531659 | S155: =C155*Dźwignie!$G$8 -> 179284.2157 | T155: 358568.4314 | U155: =Dźwignie!$G$9 -> 150000 | V155: 208568.4314 | W155: =V155-Dźwignie!$D$6 -> 188568.4314 | X155: =IF(W155>0,W155*(1-Dźwignie!$D$9),W155) -> 152740.4294 | Y155: =X155/Dźwignie!$D$5 -> 15.27404294 | Z155: =V155/Dźwignie!$D$2 -> 1.042842157 | AA155: =X155/Dźwignie!$D$3 -> 1.527404294 | AB155: 1.719188417 | AC155: 1.106062292 | AD155: 1.90152948
A156: 144 | B156: 0.5393512249 | C156: =NORMINV(B156,Dźwignie!$L$8,Dźwignie!$L$9) -> 354939.9697 | D156: =Dźwignie!$L$7*C156 -> 532409.9545 | F156: =C156*Dźwignie!$G$5 -> 354939.9697 | G156: 177469.9848 | H156: =Dźwignie!$G$6 -> 50000 | I156: 127469.9848 | J156: =I156-Dźwignie!$D$6 -> 107469.9848 | K156: =IF(J156>0,J156*(1-Dźwignie!$D$9),J156) -> 87050.68771 | L156: =K156/Dźwignie!$D$5 -> 8.705068771 | M156: =I156/Dźwignie!$D$2 -> 0.6373499242 | N156: =K156/Dźwignie!$D$3 -> 0.8705068771 | O156: 1.392249203 | P156: 1.186098472 | Q156: 1.651344653 | S156: =C156*Dźwignie!$G$8 -> 177469.9848 | T156: 354939.9697 | U156: =Dźwignie!$G$9 -> 150000 | V156: 204939.9697 | W156: =V156-Dźwignie!$D$6 -> 184939.9697 | X156: =IF(W156>0,W156*(1-Dźwignie!$D$9),W156) -> 149801.3754 | Y156: =X156/Dźwignie!$D$5 -> 14.98013754 | Z156: =V156/Dźwignie!$D$2 -> 1.024699848 | AA156: =X156/Dźwignie!$D$3 -> 1.498013754 | AB156: 1.731921646 | AC156: 1.108143199 | AD156: 1.919217194
A157: 145 | B157: 0.4065856338 | C157: =NORMINV(B157,Dźwignie!$L$8,Dźwignie!$L$9) -> 338183.1558 | D157: =Dźwignie!$L$7*C157 -> 507274.7336 | F157: =C157*Dźwignie!$G$5 -> 338183.1558 | G157: 169091.5779 | H157: =Dźwignie!$G$6 -> 50000 | I157: 119091.5779 | J157: =I157-Dźwignie!$D$6 -> 99091.57788 | K157: =IF(J157>0,J157*(1-Dźwignie!$D$9),J157) -> 80264.17808 | L157: =K157/Dźwignie!$D$5 -> 8.026417808 | M157: =I157/Dźwignie!$D$2 -> 0.5954578894 | N157: =K157/Dźwignie!$D$3 -> 0.8026417808 | O157: 1.41984497 | P157: 1.2018335 | Q157: 1.706417251 | S157: =C157*Dźwignie!$G$8 -> 169091.5779 | T157: 338183.1558 | U157: =Dźwignie!$G$9 -> 150000 | V157: 188183.1558 | W157: =V157-Dźwignie!$D$6 -> 168183.1558 | X157: =IF(W157>0,W157*(1-Dźwignie!$D$9),W157) -> 136228.3562 | Y157: =X157/Dźwignie!$D$5 -> 13.62283562 | Z157: =V157/Dźwignie!$D$2 -> 0.9409157788 | AA157: =X157/Dźwignie!$D$3 -> 1.362283562 | AB157: 1.797095784 | AC157: 1.118917973 | AD157: 2.010802772
A158: 146 | B158: 0.3988155127 | C158: =NORMINV(B158,Dźwignie!$L$8,Dźwignie!$L$9) -> 337179.2901 | D158: =Dźwignie!$L$7*C158 -> 505768.9351 | F158: =C158*Dźwignie!$G$5 -> 337179.2901 | G158: 168589.645 | H158: =Dźwignie!$G$6 -> 50000 | I158: 118589.645 | J158: =I158-Dźwignie!$D$6 -> 98589.64503 | K158: =IF(J158>0,J158*(1-Dźwignie!$D$9),J158) -> 79857.61248 | L158: =K158/Dźwignie!$D$5 -> 7.985761248 | M158: =I158/Dźwignie!$D$2 -> 0.5929482252 | N158: =K158/Dźwignie!$D$3 -> 0.7985761248 | O158: 1.421621972 | P158: 1.202861061 | Q158: 1.710013714 | S158: =C158*Dźwignie!$G$8 -> 168589.645 | T158: 337179.2901 | U158: =Dźwignie!$G$9 -> 150000 | V158: 187179.2901 | W158: =V158-Dźwignie!$D$6 -> 167179.2901 | X158: =IF(W158>0,W158*(1-Dźwignie!$D$9),W158) -> 135415.225 | Y158: =X158/Dźwignie!$D$5 -> 13.5415225 | Z158: =V158/Dźwignie!$D$2 -> 0.9358964503 | AA158: =X158/Dźwignie!$D$3 -> 1.35415225 | AB158: 1.801370707 | AC158: 1.119632043 | AD158: 2.016872365
A159: 147 | B159: 0.8278265595 | C159: =NORMINV(B159,Dźwignie!$L$8,Dźwignie!$L$9) -> 397280.5648 | D159: =Dźwignie!$L$7*C159 -> 595920.8472 | F159: =C159*Dźwignie!$G$5 -> 397280.5648 | G159: 198640.2824 | H159: =Dźwignie!$G$6 -> 50000 | I159: 148640.2824 | J159: =I159-Dźwignie!$D$6 -> 128640.2824 | K159: =IF(J159>0,J159*(1-Dźwignie!$D$9),J159) -> 104198.6287 | L159: =K159/Dźwignie!$D$5 -> 10.41986287 | M159: =I159/Dźwignie!$D$2 -> 0.7432014119 | N159: =K159/Dźwignie!$D$3 -> 1.041986287 | O159: 1.336382569 | P159: 1.155472296 | Q159: 1.544153034 | S159: =C159*Dźwignie!$G$8 -> 198640.2824 | T159: 397280.5648 | U159: =Dźwignie!$G$9 -> 150000 | V159: 247280.5648 | W159: =V159-Dźwignie!$D$6 -> 227280.5648 | X159: =IF(W159>0,W159*(1-Dźwignie!$D$9),W159) -> 184097.2575 | Y159: =X159/Dźwignie!$D$5 -> 18.40972575 | Z159: =V159/Dźwignie!$D$2 -> 1.236402824 | AA159: =X159/Dźwignie!$D$3 -> 1.840972575 | AB159: 1.60659842 | AC159: 1.087996965 | AD159: 1.747974206
A160: 148 | B160: 0.7611913681 | C160: =NORMINV(B160,Dźwignie!$L$8,Dźwignie!$L$9) -> 385507.0048 | D160: =Dźwignie!$L$7*C160 -> 578260.5072 | F160: =C160*Dźwignie!$G$5 -> 385507.0048 | G160: 192753.5024 | H160: =Dźwignie!$G$6 -> 50000 | I160: 142753.5024 | J160: =I160-Dźwignie!$D$6 -> 122753.5024 | K160: =IF(J160>0,J160*(1-Dźwignie!$D$9),J160) -> 99430.33695 | L160: =K160/Dźwignie!$D$5 -> 9.943033695 | M160: =I160/Dźwignie!$D$2 -> 0.7137675121 | N160: =K160/Dźwignie!$D$3 -> 0.9943033695 | O160: 1.350254103 | P160: 1.162928141 | Q160: 1.570248495 | S160: =C160*Dźwignie!$G$8 -> 192753.5024 | T160: 385507.0048 | U160: =Dźwignie!$G$9 -> 150000 | V160: 235507.0048 | W160: =V160-Dźwignie!$D$6 -> 215507.0048 | X160: =IF(W160>0,W160*(1-Dźwignie!$D$9),W160) -> 174560.6739 | Y160: =X160/Dźwignie!$D$5 -> 17.45606739 | Z160: =V160/Dźwignie!$D$2 -> 1.177535024 | AA160: =X160/Dźwignie!$D$3 -> 1.745606739 | AB160: 1.63692373 | AC160: 1.092804408 | AD160: 1.788837468
A161: 149 | B161: 0.9874030948 | C161: =NORMINV(B161,Dźwignie!$L$8,Dźwignie!$L$9) -> 461920.8991 | D161: =Dźwignie!$L$7*C161 -> 692881.3487 | F161: =C161*Dźwignie!$G$5 -> 461920.8991 | G161: 230960.4496 | H161: =Dźwignie!$G$6 -> 50000 | I161: 180960.4496 | J161: =I161-Dźwignie!$D$6 -> 160960.4496 | K161: =IF(J161>0,J161*(1-Dźwignie!$D$9),J161) -> 130377.9641 | L161: =K161/Dźwignie!$D$5 -> 13.03779641 | M161: =I161/Dźwignie!$D$2 -> 0.9048022478 | N161: =K161/Dźwignie!$D$3 -> 1.303779641 | O161: 1.276303469 | P161: 1.124254126 | Q161: 1.434889441 | S161: =C161*Dźwignie!$G$8 -> 230960.4496 | T161: 461920.8991 | U161: =Dźwignie!$G$9 -> 150000 | V161: 311920.8991 | W161: =V161-Dźwignie!$D$6 -> 291920.8991 | X161: =IF(W161>0,W161*(1-Dźwignie!$D$9),W161) -> 236455.9283 | Y161: =X161/Dźwignie!$D$5 -> 23.64559283 | Z161: =V161/Dźwignie!$D$2 -> 1.559604496 | AA161: =X161/Dźwignie!$D$3 -> 2.364559283 | AB161: 1.48089115 | AC161: 1.06851171 | AD161: 1.582349536
A162: 150 | B162: 0.1673494577 | C162: =NORMINV(B162,Dźwignie!$L$8,Dźwignie!$L$9) -> 301765.3812 | D162: =Dźwignie!$L$7*C162 -> 452648.0719 | F162: =C162*Dźwignie!$G$5 -> 301765.3812 | G162: 150882.6906 | H162: =Dźwignie!$G$6 -> 50000 | I162: 100882.6906 | J162: =I162-Dźwignie!$D$6 -> 80882.69062 | K162: =IF(J162>0,J162*(1-Dźwignie!$D$9),J162) -> 65514.9794 | L162: =K162/Dźwignie!$D$5 -> 6.55149794 | M162: =I162/Dźwignie!$D$2 -> 0.5044134531 | N162: =K162/Dźwignie!$D$3 -> 0.655149794 | O162: 1.495625163 | P162: 1.247271695 | Q162: 1.865450932 | S162: =C162*Dźwignie!$G$8 -> 150882.6906 | T162: 301765.3812 | U162: =Dźwignie!$G$9 -> 150000 | V162: 151765.3812 | W162: =V162-Dźwignie!$D$6 -> 131765.3812 | X162: =IF(W162>0,W162*(1-Dźwignie!$D$9),W162) -> 106729.9588 | Y162: =X162/Dźwignie!$D$5 -> 10.67299588 | Z162: =V162/Dźwignie!$D$2 -> 0.7588269062 | AA162: =X162/Dźwignie!$D$3 -> 1.067299588 | AB162: 1.988367695 | AC162: 1.151784936 | AD162: 2.290171959
A163: 151 | B163: 0.2392657399 | C163: =NORMINV(B163,Dźwignie!$L$8,Dźwignie!$L$9) -> 314566.6767 | D163: =Dźwignie!$L$7*C163 -> 471850.0151 | F163: =C163*Dźwignie!$G$5 -> 314566.6767 | G163: 157283.3384 | H163: =Dźwignie!$G$6 -> 50000 | I163: 107283.3384 | J163: =I163-Dźwignie!$D$6 -> 87283.33837 | K163: =IF(J163>0,J163*(1-Dźwignie!$D$9),J163) -> 70699.50408 | L163: =K163/Dźwignie!$D$5 -> 7.069950408 | M163: =I163/Dźwignie!$D$2 -> 0.5364166918 | N163: =K163/Dźwignie!$D$3 -> 0.7069950408 | O163: 1.466055594 | P163: 1.229138807 | Q163: 1.801985824 | S163: =C163*Dźwignie!$G$8 -> 157283.3384 | T163: 314566.6767 | U163: =Dźwignie!$G$9 -> 150000 | V163: 164566.6767 | W163: =V163-Dźwignie!$D$6 -> 144566.6767 | X163: =IF(W163>0,W163*(1-Dźwignie!$D$9),W163) -> 117099.0082 | Y163: =X163/Dźwignie!$D$5 -> 11.70990082 | Z163: =V163/Dźwignie!$D$2 -> 0.8228333837 | AA163: =X163/Dźwignie!$D$3 -> 1.170990082 | AB163: 1.911484652 | AC163: 1.138344468 | AD163: 2.175927979
A164: 152 | B164: 0.6257507801 | C164: =NORMINV(B164,Dźwignie!$L$8,Dźwignie!$L$9) -> 366030.996 | D164: =Dźwignie!$L$7*C164 -> 549046.494 | F164: =C164*Dźwignie!$G$5 -> 366030.996 | G164: 183015.498 | H164: =Dźwignie!$G$6 -> 50000 | I164: 133015.498 | J164: =I164-Dźwignie!$D$6 -> 113015.498 | K164: =IF(J164>0,J164*(1-Dźwignie!$D$9),J164) -> 91542.55339 | L164: =K164/Dźwignie!$D$5 -> 9.154255339 | M164: =I164/Dźwignie!$D$2 -> 0.66507749 | N164: =K164/Dźwignie!$D$3 -> 0.9154255339 | O164: 1.375896048 | P164: 1.176966879 | Q164: 1.619384078 | S164: =C164*Dźwignie!$G$8 -> 183015.498 | T164: 366030.996 | U164: =Dźwignie!$G$9 -> 150000 | V164: 216030.996 | W164: =V164-Dźwignie!$D$6 -> 196030.996 | X164: =IF(W164>0,W164*(1-Dźwignie!$D$9),W164) -> 158785.1068 | Y164: =X164/Dźwignie!$D$5 -> 15.87851068 | Z164: =V164/Dźwignie!$D$2 -> 1.08015498 | AA164: =X164/Dźwignie!$D$3 -> 1.587851068 | AB164: 1.694344806 | AC164: 1.102024682 | AD164: 1.867209796
A165: 153 | B165: 0.3470939994 | C165: =NORMINV(B165,Dźwignie!$L$8,Dźwignie!$L$9) -> 330341.0987 | D165: =Dźwignie!$L$7*C165 -> 495511.6481 | F165: =C165*Dźwignie!$G$5 -> 330341.0987 | G165: 165170.5494 | H165: =Dźwignie!$G$6 -> 50000 | I165: 115170.5494 | J165: =I165-Dźwignie!$D$6 -> 95170.54937 | K165: =IF(J165>0,J165*(1-Dźwignie!$D$9),J165) -> 77088.14499 | L165: =K165/Dźwignie!$D$5 -> 7.708814499 | M165: =I165/Dźwignie!$D$2 -> 0.5758527468 | N165: =K165/Dźwignie!$D$3 -> 0.7708814499 | O165: 1.434138764 | P165: 1.210149044 | Q165: 1.735521655 | S165: =C165*Dźwignie!$G$8 -> 165170.5494 | T165: 330341.0987 | U165: =Dźwignie!$G$9 -> 150000 | V165: 180341.0987 | W165: =V165-Dźwignie!$D$6 -> 160341.0987 | X165: =IF(W165>0,W165*(1-Dźwignie!$D$9),W165) -> 129876.29 | Y165: =X165/Dźwignie!$D$5 -> 12.987629 | Z165: =V165/Dźwignie!$D$2 -> 0.9017054937 | AA165: =X165/Dźwignie!$D$3 -> 1.2987629 | AB165: 1.831757159 | AC165: 1.124734084 | AD165: 2.06023971
A166: 154 | B166: 0.478169322 | C166: =NORMINV(B166,Dźwignie!$L$8,Dźwignie!$L$9) -> 347262.5633 | D166: =Dźwignie!$L$7*C166 -> 520893.845 | F166: =C166*Dźwignie!$G$5 -> 347262.5633 | G166: 173631.2817 | H166: =Dźwignie!$G$6 -> 50000 | I166: 123631.2817 | J166: =I166-Dźwignie!$D$6 -> 103631.2817 | K166: =IF(J166>0,J166*(1-Dźwignie!$D$9),J166) -> 83941.33815 | L166: =K166/Dźwignie!$D$5 -> 8.394133815 | M166: =I166/Dźwignie!$D$2 -> 0.6181564083 | N166: =K166/Dźwignie!$D$3 -> 0.8394133815 | O166: 1.404428388 | P166: 1.19299192 | Q166: 1.675471719 | S166: =C166*Dźwignie!$G$8 -> 173631.2817 | T166: 347262.5633 | U166: =Dźwignie!$G$9 -> 150000 | V166: 197262.5633 | W166: =V166-Dźwignie!$D$6 -> 177262.5633 | X166: =IF(W166>0,W166*(1-Dźwignie!$D$9),W166) -> 143582.6763 | Y166: =X166/Dźwignie!$D$5 -> 14.35826763 | Z166: =V166/Dźwignie!$D$2 -> 0.9863128167 | AA166: =X166/Dźwignie!$D$3 -> 1.435826763 | AB166: 1.760407842 | AC166: 1.112826982 | AD166: 1.959029345
A167: 155 | B167: 0.3871284127 | C167: =NORMINV(B167,Dźwignie!$L$8,Dźwignie!$L$9) -> 335659.436 | D167: =Dźwignie!$L$7*C167 -> 503489.154 | F167: =C167*Dźwignie!$G$5 -> 335659.436 | G167: 167829.718 | H167: =Dźwignie!$G$6 -> 50000 | I167: 117829.718 | J167: =I167-Dźwignie!$D$6 -> 97829.718 | K167: =IF(J167>0,J167*(1-Dźwignie!$D$9),J167) -> 79242.07158 | L167: =K167/Dźwignie!$D$5 -> 7.924207158 | M167: =I167/Dźwignie!$D$2 -> 0.58914859 | N167: =K167/Dźwignie!$D$3 -> 0.7924207158 | O167: 1.424341167 | P167: 1.204436856 | Q167: 1.715528997 | S167: =C167*Dźwignie!$G$8 -> 167829.718 | T167: 335659.436 | U167: =Dźwignie!$G$9 -> 150000 | V167: 185659.436 | W167: =V167-Dźwignie!$D$6 -> 165659.436 | X167: =IF(W167>0,W167*(1-Dźwignie!$D$9),W167) -> 134184.1432 | Y167: =X167/Dźwignie!$D$5 -> 13.41841432 | Z167: =V167/Dźwignie!$D$2 -> 0.92829718 | AA167: =X167/Dźwignie!$D$3 -> 1.341841432 | AB167: 1.807930926 | AC167: 1.120729615 | AD167: 2.026201731
A168: 156 | B168: 0.1911959648 | C168: =NORMINV(B168,Dźwignie!$L$8,Dźwignie!$L$9) -> 306325.1215 | D168: =Dźwignie!$L$7*C168 -> 459487.6822 | F168: =C168*Dźwignie!$G$5 -> 306325.1215 | G168: 153162.5607 | H168: =Dźwignie!$G$6 -> 50000 | I168: 103162.5607 | J168: =I168-Dźwignie!$D$6 -> 83162.56073 | K168: =IF(J168>0,J168*(1-Dźwignie!$D$9),J168) -> 67361.67419 | L168: =K168/Dźwignie!$D$5 -> 6.736167419 | M168: =I168/Dźwignie!$D$2 -> 0.5158128036 | N168: =K168/Dźwignie!$D$3 -> 0.6736167419 | O168: 1.484671955 | P168: 1.240492835 | Q168: 1.841724923 | S168: =C168*Dźwignie!$G$8 -> 153162.5607 | T168: 306325.1215 | U168: =Dźwignie!$G$9 -> 150000 | V168: 156325.1215 | W168: =V168-Dźwignie!$D$6 -> 136325.1215 | X168: =IF(W168>0,W168*(1-Dźwignie!$D$9),W168) -> 110423.3484 | Y168: =X168/Dźwignie!$D$5 -> 11.04233484 | Z168: =V168/Dźwignie!$D$2 -> 0.7816256073 | AA168: =X168/Dźwignie!$D$3 -> 1.104233484 | AB168: 1.959538676 | AC168: 1.146708103 | AD168: 2.247018878
A169: 157 | B169: 0.8736588359 | C169: =NORMINV(B169,Dźwignie!$L$8,Dźwignie!$L$9) -> 407192.9245 | D169: =Dźwignie!$L$7*C169 -> 610789.3868 | F169: =C169*Dźwignie!$G$5 -> 407192.9245 | G169: 203596.4623 | H169: =Dźwignie!$G$6 -> 50000 | I169: 153596.4623 | J169: =I169-Dźwignie!$D$6 -> 133596.4623 | K169: =IF(J169>0,J169*(1-Dźwignie!$D$9),J169) -> 108213.1344 | L169: =K169/Dźwignie!$D$5 -> 10.82131344 | M169: =I169/Dźwignie!$D$2 -> 0.7679823113 | N169: =K169/Dźwignie!$D$3 -> 1.082131344 | O169: 1.325528331 | P169: 1.149704563 | Q169: 1.52396597 | S169: =C169*Dźwignie!$G$8 -> 203596.4623 | T169: 407192.9245 | U169: =Dźwignie!$G$9 -> 150000 | V169: 257192.9245 | W169: =V169-Dźwignie!$D$6 -> 237192.9245 | X169: =IF(W169>0,W169*(1-Dźwignie!$D$9),W169) -> 192126.2689 | Y169: =X169/Dźwignie!$D$5 -> 19.21262689 | Z169: =V169/Dźwignie!$D$2 -> 1.285964623 | AA169: =X169/Dźwignie!$D$3 -> 1.921262689 | AB169: 1.583219777 | AC169: 1.084319547 | AD169: 1.716716151
A170: 158 | B170: 0.4797736406 | C170: =NORMINV(B170,Dźwignie!$L$8,Dźwignie!$L$9) -> 347463.9148 | D170: =Dźwignie!$L$7*C170 -> 521195.8722 | F170: =C170*Dźwignie!$G$5 -> 347463.9148 | G170: 173731.9574 | H170: =Dźwignie!$G$6 -> 50000 | I170: 123731.9574 | J170: =I170-Dźwignie!$D$6 -> 103731.9574 | K170: =IF(J170>0,J170*(1-Dźwignie!$D$9),J170) -> 84022.88549 | L170: =K170/Dźwignie!$D$5 -> 8.402288549 | M170: =I170/Dźwignie!$D$2 -> 0.6186597869 | N170: =K170/Dźwignie!$D$3 -> 0.8402288549 | O170: 1.404099321 | P170: 1.192804614 | Q170: 1.674816149 | S170: =C170*Dźwignie!$G$8 -> 173731.9574 | T170: 347463.9148 | U170: =Dźwignie!$G$9 -> 150000 | V170: 197463.9148 | W170: =V170-Dźwignie!$D$6 -> 177463.9148 | X170: =IF(W170>0,W170*(1-Dźwignie!$D$9),W170) -> 143745.771 | Y170: =X170/Dźwignie!$D$5 -> 14.3745771 | Z170: =V170/Dźwignie!$D$2 -> 0.9873195739 | AA170: =X170/Dźwignie!$D$3 -> 1.43745771 | AB170: 1.759632463 | AC170: 1.112698968 | AD170: 1.957941225
A171: 159 | B171: 0.8884189725 | C171: =NORMINV(B171,Dźwignie!$L$8,Dźwignie!$L$9) -> 410908.1476 | D171: =Dźwignie!$L$7*C171 -> 616362.2214 | F171: =C171*Dźwignie!$G$5 -> 410908.1476 | G171: 205454.0738 | H171: =Dźwignie!$G$6 -> 50000 | I171: 155454.0738 | J171: =I171-Dźwignie!$D$6 -> 135454.0738 | K171: =IF(J171>0,J171*(1-Dźwignie!$D$9),J171) -> 109717.7998 | L171: =K171/Dźwignie!$D$5 -> 10.97177998 | M171: =I171/Dźwignie!$D$2 -> 0.7772703691 | N171: =K171/Dźwignie!$D$3 -> 1.097177998 | O171: 1.321638403 | P171: 1.147651521 | Q171: 1.516780323 | S171: =C171*Dźwignie!$G$8 -> 205454.0738 | T171: 410908.1476 | U171: =Dźwignie!$G$9 -> 150000 | V171: 260908.1476 | W171: =V171-Dźwignie!$D$6 -> 240908.1476 | X171: =IF(W171>0,W171*(1-Dźwignie!$D$9),W171) -> 195135.5996 | Y171: =X171/Dźwignie!$D$5 -> 19.51355996 | Z171: =V171/Dźwignie!$D$2 -> 1.304540738 | AA171: =X171/Dźwignie!$D$3 -> 1.951355996 | AB171: 1.574914971 | AC171: 1.083019193 | AD171: 1.70566314
A172: 160 | B172: 0.4190137386 | C172: =NORMINV(B172,Dźwignie!$L$8,Dźwignie!$L$9) -> 339779.1392 | D172: =Dźwignie!$L$7*C172 -> 509668.7087 | F172: =C172*Dźwignie!$G$5 -> 339779.1392 | G172: 169889.5696 | H172: =Dźwignie!$G$6 -> 50000 | I172: 119889.5696 | J172: =I172-Dźwignie!$D$6 -> 99889.56958 | K172: =IF(J172>0,J172*(1-Dźwignie!$D$9),J172) -> 80910.55136 | L172: =K172/Dźwignie!$D$5 -> 8.091055136 | M172: =I172/Dźwignie!$D$2 -> 0.5994478479 | N172: =K172/Dźwignie!$D$3 -> 0.8091055136 | O172: 1.417050459 | P172: 1.200221105 | Q172: 1.700773868 | S172: =C172*Dźwignie!$G$8 -> 169889.5696 | T172: 339779.1392 | U172: =Dźwignie!$G$9 -> 150000 | V172: 189779.1392 | W172: =V172-Dźwignie!$D$6 -> 169779.1392 | X172: =IF(W172>0,W172*(1-Dźwignie!$D$9),W172) -> 137521.1027 | Y172: =X172/Dźwignie!$D$5 -> 13.75211027 | Z172: =V172/Dźwignie!$D$2 -> 0.9488956958 | AA172: =X172/Dźwignie!$D$3 -> 1.375211027 | AB172: 1.790392457 | AC172: 1.117800103 | AD172: 2.001300871
A173: 161 | B173: 0.2451371551 | C173: =NORMINV(B173,Dźwignie!$L$8,Dźwignie!$L$9) -> 315506.3702 | D173: =Dźwignie!$L$7*C173 -> 473259.5552 | F173: =C173*Dźwignie!$G$5 -> 315506.3702 | G173: 157753.1851 | H173: =Dźwignie!$G$6 -> 50000 | I173: 107753.1851 | J173: =I173-Dźwignie!$D$6 -> 87753.18508 | K173: =IF(J173>0,J173*(1-Dźwignie!$D$9),J173) -> 71080.07992 | L173: =K173/Dźwignie!$D$5 -> 7.108007992 | M173: =I173/Dźwignie!$D$2 -> 0.5387659254 | N173: =K173/Dźwignie!$D$3 -> 0.7108007992 | O173: 1.464023406 | P173: 1.227911955 | Q173: 1.797691844 | S173: =C173*Dźwignie!$G$8 -> 157753.1851 | T173: 315506.3702 | U173: =Dźwignie!$G$9 -> 150000 | V173: 165506.3702 | W173: =V173-Dźwignie!$D$6 -> 145506.3702 | X173: =IF(W173>0,W173*(1-Dźwignie!$D$9),W173) -> 117860.1598 | Y173: =X173/Dźwignie!$D$5 -> 11.78601598 | Z173: =V173/Dźwignie!$D$2 -> 0.8275318508 | AA173: =X173/Dźwignie!$D$3 -> 1.178601598 | AB173: 1.906309527 | AC173: 1.137451027 | AD173: 2.168333729
A174: 162 | B174: 0.4505437613 | C174: =NORMINV(B174,Dźwignie!$L$8,Dźwignie!$L$9) -> 343785.6173 | D174: =Dźwignie!$L$7*C174 -> 515678.426 | F174: =C174*Dźwignie!$G$5 -> 343785.6173 | G174: 171892.8087 | H174: =Dźwignie!$G$6 -> 50000 | I174: 121892.8087 | J174: =I174-Dźwignie!$D$6 -> 101892.8087 | K174: =IF(J174>0,J174*(1-Dźwignie!$D$9),J174) -> 82533.17501 | L174: =K174/Dźwignie!$D$5 -> 8.253317501 | M174: =I174/Dźwignie!$D$2 -> 0.6094640433 | N174: =K174/Dźwignie!$D$3 -> 0.8253317501 | O174: 1.410196471 | P174: 1.196284706 | Q174: 1.686996471 | S174: =C174*Dźwignie!$G$8 -> 171892.8087 | T174: 343785.6173 | U174: =Dźwignie!$G$9 -> 150000 | V174: 193785.6173 | W174: =V174-Dźwignie!$D$6 -> 173785.6173 | X174: =IF(W174>0,W174*(1-Dźwignie!$D$9),W174) -> 140766.35 | Y174: =X174/Dźwignie!$D$5 -> 14.076635 | Z174: =V174/Dźwignie!$D$2 -> 0.9689280866 | AA174: =X174/Dźwignie!$D$3 -> 1.4076635 | AB174: 1.774051254 | AC174: 1.115084322 | AD174: 1.97821674
A175: 163 | B175: 0.9704933763 | C175: =NORMINV(B175,Dźwignie!$L$8,Dźwignie!$L$9) -> 444404.7316 | D175: =Dźwignie!$L$7*C175 -> 666607.0973 | F175: =C175*Dźwignie!$G$5 -> 444404.7316 | G175: 222202.3658 | H175: =Dźwignie!$G$6 -> 50000 | I175: 172202.3658 | J175: =I175-Dźwignie!$D$6 -> 152202.3658 | K175: =IF(J175>0,J175*(1-Dźwignie!$D$9),J175) -> 123283.9163 | L175: =K175/Dźwignie!$D$5 -> 12.32839163 | M175: =I175/Dźwignie!$D$2 -> 0.8610118289 | N175: =K175/Dźwignie!$D$3 -> 1.232839163 | O175: 1.290356057 | P175: 1.131404002 | Q175: 1.459914008 | S175: =C175*Dźwignie!$G$8 -> 222202.3658 | T175: 444404.7316 | U175: =Dźwignie!$G$9 -> 150000 | V175: 294404.7316 | W175: =V175-Dźwignie!$D$6 -> 274404.7316 | X175: =IF(W175>0,W175*(1-Dźwignie!$D$9),W175) -> 222267.8326 | Y175: =X175/Dźwignie!$D$5 -> 22.22678326 | Z175: =V175/Dźwignie!$D$2 -> 1.472023658 | AA175: =X175/Dźwignie!$D$3 -> 2.222678326 | AB175: 1.509502681 | AC175: 1.072885041 | AD175: 1.619522845
A176: 164 | B176: 0.4396362305 | C176: =NORMINV(B176,Dźwignie!$L$8,Dźwignie!$L$9) -> 342405.4217 | D176: =Dźwignie!$L$7*C176 -> 513608.1326 | F176: =C176*Dźwignie!$G$5 -> 342405.4217 | G176: 171202.7109 | H176: =Dźwignie!$G$6 -> 50000 | I176: 121202.7109 | J176: =I176-Dźwignie!$D$6 -> 101202.7109 | K176: =IF(J176>0,J176*(1-Dźwignie!$D$9),J176) -> 81974.1958 | L176: =K176/Dźwignie!$D$5 -> 8.19741958 | M176: =I176/Dźwignie!$D$2 -> 0.6060135543 | N176: =K176/Dźwignie!$D$3 -> 0.819741958 | O176: 1.412532027 | P176: 1.197623165 | Q176: 1.691681077 | S176: =C176*Dźwignie!$G$8 -> 171202.7109 | T176: 342405.4217 | U176: =Dźwignie!$G$9 -> 150000 | V176: 192405.4217 | W176: =V176-Dźwignie!$D$6 -> 172405.4217 | X176: =IF(W176>0,W176*(1-Dźwignie!$D$9),W176) -> 139648.3916 | Y176: =X176/Dźwignie!$D$5 -> 13.96483916 | Z176: =V176/Dźwignie!$D$2 -> 0.9620271086 | AA176: =X176/Dźwignie!$D$3 -> 1.396483916 | AB176: 1.779603811 | AC176: 1.116005633 | AD176: 1.986047877
A177: 165 | B177: 0.6327325702 | C177: =NORMINV(B177,Dźwignie!$L$8,Dźwignie!$L$9) -> 366954.9694 | D177: =Dźwignie!$L$7*C177 -> 550432.4541 | F177: =C177*Dźwignie!$G$5 -> 366954.9694 | G177: 183477.4847 | H177: =Dźwignie!$G$6 -> 50000 | I177: 133477.4847 | J177: =I177-Dźwignie!$D$6 -> 113477.4847 | K177: =IF(J177>0,J177*(1-Dźwignie!$D$9),J177) -> 91916.7626 | L177: =K177/Dźwignie!$D$5 -> 9.19167626 | M177: =I177/Dźwignie!$D$2 -> 0.6673874235 | N177: =K177/Dźwignie!$D$3 -> 0.919167626 | O177: 1.374595012 | P177: 1.176246416 | Q177: 1.616862457 | S177: =C177*Dźwignie!$G$8 -> 183477.4847 | T177: 366954.9694 | U177: =Dźwignie!$G$9 -> 150000 | V177: 216954.9694 | W177: =V177-Dźwignie!$D$6 -> 196954.9694 | X177: =IF(W177>0,W177*(1-Dźwignie!$D$9),W177) -> 159533.5252 | Y177: =X177/Dźwignie!$D$5 -> 15.95335252 | Z177: =V177/Dźwignie!$D$2 -> 1.084774847 | AA177: =X177/Dźwignie!$D$3 -> 1.595335252 | AB177: 1.691387713 | AC177: 1.101546054 | AD177: 1.863141461
A178: 166 | B178: 0.189368844 | C178: =NORMINV(B178,Dźwignie!$L$8,Dźwignie!$L$9) -> 305988.7736 | D178: =Dźwignie!$L$7*C178 -> 458983.1603 | F178: =C178*Dźwignie!$G$5 -> 305988.7736 | G178: 152994.3868 | H178: =Dźwignie!$G$6 -> 50000 | I178: 102994.3868 | J178: =I178-Dźwignie!$D$6 -> 82994.38678 | K178: =IF(J178>0,J178*(1-Dźwignie!$D$9),J178) -> 67225.45329 | L178: =K178/Dźwignie!$D$5 -> 6.722545329 | M178: =I178/Dźwignie!$D$2 -> 0.5149719339 | N178: =K178/Dźwignie!$D$3 -> 0.6722545329 | O178: 1.48546335 | P178: 1.240980153 | Q178: 1.843430534 | S178: =C178*Dźwignie!$G$8 -> 152994.3868 | T178: 305988.7736 | U178: =Dźwignie!$G$9 -> 150000 | V178: 155988.7736 | W178: =V178-Dźwignie!$D$6 -> 135988.7736 | X178: =IF(W178>0,W178*(1-Dźwignie!$D$9),W178) -> 110150.9066 | Y178: =X178/Dźwignie!$D$5 -> 11.01509066 | Z178: =V178/Dźwignie!$D$2 -> 0.7799438678 | AA178: =X178/Dźwignie!$D$3 -> 1.101509066 | AB178: 1.961607663 | AC178: 1.147070964 | AD178: 2.250103193
A179: 167 | B179: 0.2991841435 | C179: =NORMINV(B179,Dźwignie!$L$8,Dźwignie!$L$9) -> 323662.5776 | D179: =Dźwignie!$L$7*C179 -> 485493.8664 | F179: =C179*Dźwignie!$G$5 -> 323662.5776 | G179: 161831.2888 | H179: =Dźwignie!$G$6 -> 50000 | I179: 111831.2888 | J179: =I179-Dźwignie!$D$6 -> 91831.28881 | K179: =IF(J179>0,J179*(1-Dźwignie!$D$9),J179) -> 74383.34394 | L179: =K179/Dźwignie!$D$5 -> 7.438334394 | M179: =I179/Dźwignie!$D$2 -> 0.5591564441 | N179: =K179/Dźwignie!$D$3 -> 0.7438334394 | O179: 1.447102064 | P179: 1.217790693 | Q179: 1.762267424 | S179: =C179*Dźwignie!$G$8 -> 161831.2888 | T179: 323662.5776 | U179: =Dźwignie!$G$9 -> 150000 | V179: 173662.5776 | W179: =V179-Dźwignie!$D$6 -> 153662.5776 | X179: =IF(W179>0,W179*(1-Dźwignie!$D$9),W179) -> 124466.6879 | Y179: =X179/Dźwignie!$D$5 -> 12.44666879 | Z179: =V179/Dźwignie!$D$2 -> 0.8683128881 | AA179: =X179/Dźwignie!$D$3 -> 1.244666879 | AB179: 1.863743946 | AC179: 1.130155307 | AD179: 2.106320111
A180: 168 | B180: 0.06806588173 | C180: =NORMINV(B180,Dźwignie!$L$8,Dźwignie!$L$9) -> 275482.4109 | D180: =Dźwignie!$L$7*C180 -> 413223.6163 | F180: =C180*Dźwignie!$G$5 -> 275482.4109 | G180: 137741.2054 | H180: =Dźwignie!$G$6 -> 50000 | I180: 87741.20543 | J180: =I180-Dźwignie!$D$6 -> 67741.20543 | K180: =IF(J180>0,J180*(1-Dźwignie!$D$9),J180) -> 54870.37639 | L180: =K180/Dźwignie!$D$5 -> 5.487037639 | M180: =I180/Dźwignie!$D$2 -> 0.4387060271 | N180: =K180/Dźwignie!$D$3 -> 0.5487037639 | O180: 1.569857683 | P180: 1.295241277 | Q180: 2.03334447 | S180: =C180*Dźwignie!$G$8 -> 137741.2054 | T180: 275482.4109 | U180: =Dźwignie!$G$9 -> 150000 | V180: 125482.4109 | W180: =V180-Dźwignie!$D$6 -> 105482.4109 | X180: =IF(W180>0,W180*(1-Dźwignie!$D$9),W180) -> 85440.75279 | Y180: =X180/Dźwignie!$D$5 -> 8.544075279 | Z180: =V180/Dźwignie!$D$2 -> 0.6274120543 | AA180: =X180/Dźwignie!$D$3 -> 0.8544075279 | AB180: 2.19538666 | AC180: 1.189605071 | AD180: 2.611643104
A181: 169 | B181: 0.153937757 | C181: =NORMINV(B181,Dźwignie!$L$8,Dźwignie!$L$9) -> 299015.5009 | D181: =Dźwignie!$L$7*C181 -> 448523.2513 | F181: =C181*Dźwignie!$G$5 -> 299015.5009 | G181: 149507.7504 | H181: =Dźwignie!$G$6 -> 50000 | I181: 99507.75043 | J181: =I181-Dźwignie!$D$6 -> 79507.75043 | K181: =IF(J181>0,J181*(1-Dźwignie!$D$9),J181) -> 64401.27785 | L181: =K181/Dźwignie!$D$5 -> 6.440127785 | M181: =I181/Dźwignie!$D$2 -> 0.4975387522 | N181: =K181/Dźwignie!$D$3 -> 0.6440127785 | O181: 1.502473423 | P181: 1.251547804 | Q181: 1.880417313 | S181: =C181*Dźwignie!$G$8 -> 149507.7504 | T181: 299015.5009 | U181: =Dźwignie!$G$9 -> 150000 | V181: 149015.5009 | W181: =V181-Dźwignie!$D$6 -> 129015.5009 | X181: =IF(W181>0,W181*(1-Dźwignie!$D$9),W181) -> 104502.5557 | Y181: =X181/Dźwignie!$D$5 -> 10.45025557 | Z181: =V181/Dźwignie!$D$2 -> 0.7450775043 | AA181: =X181/Dźwignie!$D$3 -> 1.045025557 | AB181: 2.006606689 | AC181: 1.155020132 | AD181: 2.317671124
A182: 170 | B182: 0.6562708616 | C182: =NORMINV(B182,Dźwignie!$L$8,Dźwignie!$L$9) -> 370115.3382 | D182: =Dźwignie!$L$7*C182 -> 555173.0074 | F182: =C182*Dźwignie!$G$5 -> 370115.3382 | G182: 185057.6691 | H182: =Dźwignie!$G$6 -> 50000 | I182: 135057.6691 | J182: =I182-Dźwignie!$D$6 -> 115057.6691 | K182: =IF(J182>0,J182*(1-Dźwignie!$D$9),J182) -> 93196.71199 | L182: =K182/Dźwignie!$D$5 -> 9.319671199 | M182: =I182/Dźwignie!$D$2 -> 0.6752883456 | N182: =K182/Dźwignie!$D$3 -> 0.9319671199 | O182: 1.370212224 | P182: 1.173825875 | Q182: 1.608390562 | S182: =C182*Dźwignie!$G$8 -> 185057.6691 | T182: 370115.3382 | U182: =Dźwignie!$G$9 -> 150000 | V182: 220115.3382 | W182: =V182-Dźwignie!$D$6 -> 200115.3382 | X182: =IF(W182>0,W182*(1-Dźwignie!$D$9),W182) -> 162093.424 | Y182: =X182/Dźwignie!$D$5 -> 16.2093424 | Z182: =V182/Dźwignie!$D$2 -> 1.100576691 | AA182: =X182/Dźwignie!$D$3 -> 1.62093424 | AB182: 1.681460916 | AC182: 1.099942364 | AD182: 1.849510095
A183: 171 | B183: 0.05692535639 | C183: =NORMINV(B183,Dźwignie!$L$8,Dźwignie!$L$9) -> 270944.0241 | D183: =Dźwignie!$L$7*C183 -> 406416.0362 | F183: =C183*Dźwignie!$G$5 -> 270944.0241 | G183: 135472.0121 | H183: =Dźwignie!$G$6 -> 50000 | I183: 85472.01205 | J183: =I183-Dźwignie!$D$6 -> 65472.01205 | K183: =IF(J183>0,J183*(1-Dźwignie!$D$9),J183) -> 53032.32976 | L183: =K183/Dźwignie!$D$5 -> 5.303232976 | M183: =I183/Dźwignie!$D$2 -> 0.4273600603 | N183: =K183/Dźwignie!$D$3 -> 0.5303232976 | O183: 1.584986814 | P183: 1.30547404 | Q183: 2.069159139 | S183: =C183*Dźwignie!$G$8 -> 135472.0121 | T183: 270944.0241 | U183: =Dźwignie!$G$9 -> 150000 | V183: 120944.0241 | W183: =V183-Dźwignie!$D$6 -> 100944.0241 | X183: =IF(W183>0,W183*(1-Dźwignie!$D$9),W183) -> 81764.65952 | Y183: =X183/Dźwignie!$D$5 -> 8.176465952 | Z183: =V183/Dźwignie!$D$2 -> 0.6047201205 | AA183: =X183/Dźwignie!$D$3 -> 0.8176465952 | AB183: 2.240243171 | AC183: 1.198129609 | AD183: 2.684101674
A184: 172 | B184: 0.5695004463 | C184: =NORMINV(B184,Dźwignie!$L$8,Dźwignie!$L$9) -> 358755.1241 | D184: =Dźwignie!$L$7*C184 -> 538132.6862 | F184: =C184*Dźwignie!$G$5 -> 358755.1241 | G184: 179377.5621 | H184: =Dźwignie!$G$6 -> 50000 | I184: 129377.5621 | J184: =I184-Dźwignie!$D$6 -> 109377.5621 | K184: =IF(J184>0,J184*(1-Dźwignie!$D$9),J184) -> 88595.82528 | L184: =K184/Dźwignie!$D$5 -> 8.859582528 | M184: =I184/Dźwignie!$D$2 -> 0.6468878104 | N184: =K184/Dźwignie!$D$3 -> 0.8859582528 | O184: 1.386465777 | P184: 1.18285286 | Q184: 1.639985009 | S184: =C184*Dźwignie!$G$8 -> 179377.5621 | T184: 358755.1241 | U184: =Dźwignie!$G$9 -> 150000 | V184: 208755.1241 | W184: =V184-Dźwignie!$D$6 -> 188755.1241 | X184: =IF(W184>0,W184*(1-Dźwignie!$D$9),W184) -> 152891.6506 | Y184: =X184/Dźwignie!$D$5 -> 15.28916506 | Z184: =V184/Dźwignie!$D$2 -> 1.043775621 | AA184: =X184/Dźwignie!$D$3 -> 1.528916506 | AB184: 1.718545236 | AC184: 1.105957388 | AD184: 1.900637801
A185: 173 | B185: 0.5756594539 | C185: =NORMINV(B185,Dźwignie!$L$8,Dźwignie!$L$9) -> 359540.0764 | D185: =Dźwignie!$L$7*C185 -> 539310.1145 | F185: =C185*Dźwignie!$G$5 -> 359540.0764 | G185: 179770.0382 | H185: =Dźwignie!$G$6 -> 50000 | I185: 129770.0382 | J185: =I185-Dźwignie!$D$6 -> 109770.0382 | K185: =IF(J185>0,J185*(1-Dźwignie!$D$9),J185) -> 88913.73092 | L185: =K185/Dźwignie!$D$5 -> 8.891373092 | M185: =I185/Dźwignie!$D$2 -> 0.6488501909 | N185: =K185/Dźwignie!$D$3 -> 0.8891373092 | O185: 1.385296951 | P185: 1.18219908 | Q185: 1.637696781 | S185: =C185*Dźwignie!$G$8 -> 179770.0382 | T185: 359540.0764 | U185: =Dźwignie!$G$9 -> 150000 | V185: 209540.0764 | W185: =V185-Dźwignie!$D$6 -> 189540.0764 | X185: =IF(W185>0,W185*(1-Dźwignie!$D$9),W185) -> 153527.4618 | Y185: =X185/Dźwignie!$D$5 -> 15.35274618 | Z185: =V185/Dźwignie!$D$2 -> 1.047700382 | AA185: =X185/Dźwignie!$D$3 -> 1.535274618 | AB185: 1.715853514 | AC185: 1.105518582 | AD185: 1.896907943
A186: 174 | B186: 0.8630295992 | C186: =NORMINV(B186,Dźwignie!$L$8,Dźwignie!$L$9) -> 404701.6162 | D186: =Dźwignie!$L$7*C186 -> 607052.4243 | F186: =C186*Dźwignie!$G$5 -> 404701.6162 | G186: 202350.8081 | H186: =Dźwignie!$G$6 -> 50000 | I186: 152350.8081 | J186: =I186-Dźwignie!$D$6 -> 132350.8081 | K186: =IF(J186>0,J186*(1-Dźwignie!$D$9),J186) -> 107204.1546 | L186: =K186/Dźwignie!$D$5 -> 10.72041546 | M186: =I186/Dźwignie!$D$2 -> 0.7617540405 | N186: =K186/Dźwignie!$D$3 -> 1.072041546 | O186: 1.328189923 | P186: 1.151113547 | Q186: 1.528897413 | S186: =C186*Dźwignie!$G$8 -> 202350.8081 | T186: 404701.6162 | U186: =Dźwignie!$G$9 -> 150000 | V186: 254701.6162 | W186: =V186-Dźwignie!$D$6 -> 234701.6162 | X186: =IF(W186>0,W186*(1-Dźwignie!$D$9),W186) -> 190108.3091 | Y186: =X186/Dźwignie!$D$5 -> 19.01083091 | Z186: =V186/Dźwignie!$D$2 -> 1.273508081 | AA186: =X186/Dźwignie!$D$3 -> 1.901083091 | AB186: 1.588924414 | AC186: 1.085214581 | AD186: 1.724323943
A187: 175 | B187: 0.2708776593 | C187: =NORMINV(B187,Dźwignie!$L$8,Dźwignie!$L$9) -> 319491.9618 | D187: =Dźwignie!$L$7*C187 -> 479237.9428 | F187: =C187*Dźwignie!$G$5 -> 319491.9618 | G187: 159745.9809 | H187: =Dźwignie!$G$6 -> 50000 | I187: 109745.9809 | J187: =I187-Dźwignie!$D$6 -> 89745.98092 | K187: =IF(J187>0,J187*(1-Dźwignie!$D$9),J187) -> 72694.24455 | L187: =K187/Dźwignie!$D$5 -> 7.269424455 | M187: =I187/Dźwignie!$D$2 -> 0.5487299046 | N187: =K187/Dźwignie!$D$3 -> 0.7269424455 | O187: 1.45559755 | P187: 1.222851205 | Q187: 1.779979218 | S187: =C187*Dźwignie!$G$8 -> 159745.9809 | T187: 319491.9618 | U187: =Dźwignie!$G$9 -> 150000 | V187: 169491.9618 | W187: =V187-Dźwignie!$D$6 -> 149491.9618 | X187: =IF(W187>0,W187*(1-Dźwignie!$D$9),W187) -> 121088.4891 | Y187: =X187/Dźwignie!$D$5 -> 12.10884891 | Z187: =V187/Dźwignie!$D$2 -> 0.8474598092 | AA187: =X187/Dźwignie!$D$3 -> 1.210884891 | AB187: 1.884997721 | AC187: 1.133786457 | AD187: 2.137184889
A188: 176 | B188: 0.6749579906 | C188: =NORMINV(B188,Dźwignie!$L$8,Dźwignie!$L$9) -> 372682.2736 | D188: =Dźwignie!$L$7*C188 -> 559023.4105 | F188: =C188*Dźwignie!$G$5 -> 372682.2736 | G188: 186341.1368 | H188: =Dźwignie!$G$6 -> 50000 | I188: 136341.1368 | J188: =I188-Dźwignie!$D$6 -> 116341.1368 | K188: =IF(J188>0,J188*(1-Dźwignie!$D$9),J188) -> 94236.32083 | L188: =K188/Dźwignie!$D$5 -> 9.423632083 | M188: =I188/Dźwignie!$D$2 -> 0.6817056841 | N188: =K188/Dźwignie!$D$3 -> 0.9423632083 | O188: 1.366727175 | P188: 1.171908239 | Q188: 1.601678838 | S188: =C188*Dźwignie!$G$8 -> 186341.1368 | T188: 372682.2736 | U188: =Dźwignie!$G$9 -> 150000 | V188: 222682.2736 | W188: =V188-Dźwignie!$D$6 -> 202682.2736 | X188: =IF(W188>0,W188*(1-Dźwignie!$D$9),W188) -> 164172.6417 | Y188: =X188/Dźwignie!$D$5 -> 16.41726417 | Z188: =V188/Dźwignie!$D$2 -> 1.113411368 | AA188: =X188/Dźwignie!$D$3 -> 1.641726417 | AB188: 1.673605481 | AC188: 1.098676612 | AD188: 1.838751199
A189: 177 | B189: 0.2673434615 | C189: =NORMINV(B189,Dźwignie!$L$8,Dźwignie!$L$9) -> 318956.6339 | D189: =Dźwignie!$L$7*C189 -> 478434.9508 | F189: =C189*Dźwignie!$G$5 -> 318956.6339 | G189: 159478.3169 | H189: =Dźwignie!$G$6 -> 50000 | I189: 109478.3169 | J189: =I189-Dźwignie!$D$6 -> 89478.31693 | K189: =IF(J189>0,J189*(1-Dźwignie!$D$9),J189) -> 72477.43671 | L189: =K189/Dźwignie!$D$5 -> 7.247743671 | M189: =I189/Dźwignie!$D$2 -> 0.5473915847 | N189: =K189/Dźwignie!$D$3 -> 0.7247743671 | O189: 1.456711442 | P189: 1.223517839 | Q189: 1.782312435 | S189: =C189*Dźwignie!$G$8 -> 159478.3169 | T189: 318956.6339 | U189: =Dźwignie!$G$9 -> 150000 | V189: 168956.6339 | W189: =V189-Dźwignie!$D$6 -> 148956.6339 | X189: =IF(W189>0,W189*(1-Dźwignie!$D$9),W189) -> 120654.8734 | Y189: =X189/Dźwignie!$D$5 -> 12.06548734 | Z189: =V189/Dźwignie!$D$2 -> 0.8447831693 | AA189: =X189/Dźwignie!$D$3 -> 1.206548734 | AB189: 1.887801778 | AC189: 1.134267266 | AD189: 2.141271762
A190: 178 | B190: 0.01380765438 | C190: =NORMINV(B190,Dźwignie!$L$8,Dźwignie!$L$9) -> 239864.5807 | D190: =Dźwignie!$L$7*C190 -> 359796.871 | F190: =C190*Dźwignie!$G$5 -> 239864.5807 | G190: 119932.2903 | H190: =Dźwignie!$G$6 -> 50000 | I190: 69932.29033 | J190: =I190-Dźwignie!$D$6 -> 49932.29033 | K190: =IF(J190>0,J190*(1-Dźwignie!$D$9),J190) -> 40445.15517 | L190: =K190/Dźwignie!$D$5 -> 4.044515517 | M190: =I190/Dźwignie!$D$2 -> 0.3496614516 | N190: =K190/Dźwignie!$D$3 -> 0.4044515517 | O190: 1.714977298 | P190: 1.400542412 | Q190: 2.401898442 | S190: =C190*Dźwignie!$G$8 -> 119932.2903 | T190: 239864.5807 | U190: =Dźwignie!$G$9 -> 150000 | V190: 89864.58065 | W190: =V190-Dźwignie!$D$6 -> 69864.58065 | X190: =IF(W190>0,W190*(1-Dźwignie!$D$9),W190) -> 56590.31033 | Y190: =X190/Dźwignie!$D$5 -> 5.659031033 | Z190: =V190/Dźwignie!$D$2 -> 0.4493229033 | AA190: =X190/Dźwignie!$D$3 -> 0.5659031033 | AB190: 2.669178211 | AC190: 1.286268089 | AD190: 3.433278757
A191: 179 | B191: 0.3910532594 | C191: =NORMINV(B191,Dźwignie!$L$8,Dźwignie!$L$9) -> 336171.2536 | D191: =Dźwignie!$L$7*C191 -> 504256.8804 | F191: =C191*Dźwignie!$G$5 -> 336171.2536 | G191: 168085.6268 | H191: =Dźwignie!$G$6 -> 50000 | I191: 118085.6268 | J191: =I191-Dźwignie!$D$6 -> 98085.62681 | K191: =IF(J191>0,J191*(1-Dźwignie!$D$9),J191) -> 79449.35771 | L191: =K191/Dźwignie!$D$5 -> 7.944935771 | M191: =I191/Dźwignie!$D$2 -> 0.590428134 | N191: =K191/Dźwignie!$D$3 -> 0.7944935771 | O191: 1.423421557 | P191: 1.203903473 | Q191: 1.713662157 | S191: =C191*Dźwignie!$G$8 -> 168085.6268 | T191: 336171.2536 | U191: =Dźwignie!$G$9 -> 150000 | V191: 186171.2536 | W191: =V191-Dźwignie!$D$6 -> 166171.2536 | X191: =IF(W191>0,W191*(1-Dźwignie!$D$9),W191) -> 134598.7154 | Y191: =X191/Dźwignie!$D$5 -> 13.45987154 | Z191: =V191/Dźwignie!$D$2 -> 0.9308562681 | AA191: =X191/Dźwignie!$D$3 -> 1.345987154 | AB191: 1.805709781 | AC191: 1.120357761 | AD191: 2.023040967
A192: 180 | B192: 0.8469018936 | C192: =NORMINV(B192,Dźwignie!$L$8,Dźwignie!$L$9) -> 401161.8066 | D192: =Dźwignie!$L$7*C192 -> 601742.7099 | F192: =C192*Dźwignie!$G$5 -> 401161.8066 | G192: 200580.9033 | H192: =Dźwignie!$G$6 -> 50000 | I192: 150580.9033 | J192: =I192-Dźwignie!$D$6 -> 130580.9033 | K192: =IF(J192>0,J192*(1-Dźwignie!$D$9),J192) -> 105770.5317 | L192: =K192/Dźwignie!$D$5 -> 10.57705317 | M192: =I192/Dźwignie!$D$2 -> 0.7529045166 | N192: =K192/Dźwignie!$D$3 -> 1.057705317 | O192: 1.332047417 | P192: 1.153161753 | Q192: 1.536066134 | S192: =C192*Dźwignie!$G$8 -> 200580.9033 | T192: 401161.8066 | U192: =Dźwignie!$G$9 -> 150000 | V192: 251161.8066 | W192: =V192-Dźwignie!$D$6 -> 231161.8066 | X192: =IF(W192>0,W192*(1-Dźwignie!$D$9),W192) -> 187241.0634 | Y192: =X192/Dźwignie!$D$5 -> 18.72410634 | Z192: =V192/Dźwignie!$D$2 -> 1.255809033 | AA192: =X192/Dźwignie!$D$3 -> 1.872410634 | AB192: 1.597224562 | AC192: 1.086519483 | AD192: 1.735415606
A193: 181 | B193: 0.4040996432 | C193: =NORMINV(B193,Dźwignie!$L$8,Dźwignie!$L$9) -> 337862.5139 | D193: =Dźwignie!$L$7*C193 -> 506793.7708 | F193: =C193*Dźwignie!$G$5 -> 337862.5139 | G193: 168931.2569 | H193: =Dźwignie!$G$6 -> 50000 | I193: 118931.2569 | J193: =I193-Dźwignie!$D$6 -> 98931.25694 | K193: =IF(J193>0,J193*(1-Dźwignie!$D$9),J193) -> 80134.31812 | L193: =K193/Dźwignie!$D$5 -> 8.013431812 | M193: =I193/Dźwignie!$D$2 -> 0.5946562847 | N193: =K193/Dźwignie!$D$3 -> 0.8013431812 | O193: 1.420410927 | P193: 1.202160577 | Q193: 1.70756202 | S193: =C193*Dźwignie!$G$8 -> 168931.2569 | T193: 337862.5139 | U193: =Dźwignie!$G$9 -> 150000 | V193: 187862.5139 | W193: =V193-Dźwignie!$D$6 -> 167862.5139 | X193: =IF(W193>0,W193*(1-Dźwignie!$D$9),W193) -> 135968.6362 | Y193: =X193/Dźwignie!$D$5 -> 13.59686362 | Z193: =V193/Dźwignie!$D$2 -> 0.9393125694 | AA193: =X193/Dźwignie!$D$3 -> 1.359686362 | AB193: 1.798456259 | AC193: 1.119145124 | AD193: 2.012733552
A194: 182 | B194: 0.8957754374 | C194: =NORMINV(B194,Dźwignie!$L$8,Dźwignie!$L$9) -> 412892.0693 | D194: =Dźwignie!$L$7*C194 -> 619338.1039 | F194: =C194*Dźwignie!$G$5 -> 412892.0693 | G194: 206446.0346 | H194: =Dźwignie!$G$6 -> 50000 | I194: 156446.0346 | J194: =I194-Dźwignie!$D$6 -> 136446.0346 | K194: =IF(J194>0,J194*(1-Dźwignie!$D$9),J194) -> 110521.2881 | L194: =K194/Dźwignie!$D$5 -> 11.05212881 | M194: =I194/Dźwignie!$D$2 -> 0.7822301732 | N194: =K194/Dźwignie!$D$3 -> 1.105212881 | O194: 1.319599024 | P194: 1.146578096 | Q194: 1.513023337 | S194: =C194*Dźwignie!$G$8 -> 206446.0346 | T194: 412892.0693 | U194: =Dźwignie!$G$9 -> 150000 | V194: 262892.0693 | W194: =V194-Dźwignie!$D$6 -> 242892.0693 | X194: =IF(W194>0,W194*(1-Dźwignie!$D$9),W194) -> 196742.5761 | Y194: =X194/Dźwignie!$D$5 -> 19.67425761 | Z194: =V194/Dźwignie!$D$2 -> 1.314460346 | AA194: =X194/Dźwignie!$D$3 -> 1.967425761 | AB194: 1.57057636 | AC194: 1.082341099 | AD194: 1.699899344
A195: 183 | B195: 0.1184409261 | C195: =NORMINV(B195,Dźwignie!$L$8,Dźwignie!$L$9) -> 290859.1715 | D195: =Dźwignie!$L$7*C195 -> 436288.7573 | F195: =C195*Dźwignie!$G$5 -> 290859.1715 | G195: 145429.5858 | H195: =Dźwignie!$G$6 -> 50000 | I195: 95429.58575 | J195: =I195-Dźwignie!$D$6 -> 75429.58575 | K195: =IF(J195>0,J195*(1-Dźwignie!$D$9),J195) -> 61097.96446 | L195: =K195/Dźwignie!$D$5 -> 6.109796446 | M195: =I195/Dźwignie!$D$2 -> 0.4771479288 | N195: =K195/Dźwignie!$D$3 -> 0.6109796446 | O195: 1.523946527 | P195: 1.26514795 | Q195: 1.928017824 | S195: =C195*Dźwignie!$G$8 -> 145429.5858 | T195: 290859.1715 | U195: =Dźwignie!$G$9 -> 150000 | V195: 140859.1715 | W195: =V195-Dźwignie!$D$6 -> 120859.1715 | X195: =IF(W195>0,W195*(1-Dźwignie!$D$9),W195) -> 97895.92892 | Y195: =X195/Dźwignie!$D$5 -> 9.789592892 | Z195: =V195/Dźwignie!$D$2 -> 0.7042958575 | AA195: =X195/Dźwignie!$D$3 -> 0.9789592892 | AB195: 2.064893385 | AC195: 1.165481856 | AD195: 2.406595775
A196: 184 | B196: 0.7948658466 | C196: =NORMINV(B196,Dźwignie!$L$8,Dźwignie!$L$9) -> 391171.078 | D196: =Dźwignie!$L$7*C196 -> 586756.617 | F196: =C196*Dźwignie!$G$5 -> 391171.078 | G196: 195585.539 | H196: =Dźwignie!$G$6 -> 50000 | I196: 145585.539 | J196: =I196-Dźwignie!$D$6 -> 125585.539 | K196: =IF(J196>0,J196*(1-Dźwignie!$D$9),J196) -> 101724.2866 | L196: =K196/Dźwignie!$D$5 -> 10.17242866 | M196: =I196/Dźwignie!$D$2 -> 0.727927695 | N196: =K196/Dźwignie!$D$3 -> 1.017242866 | O196: 1.343440704 | P196: 1.159254005 | Q196: 1.557389016 | S196: =C196*Dźwignie!$G$8 -> 195585.539 | T196: 391171.078 | U196: =Dźwignie!$G$9 -> 150000 | V196: 241171.078 | W196: =V196-Dźwignie!$D$6 -> 221171.078 | X196: =IF(W196>0,W196*(1-Dźwignie!$D$9),W196) -> 179148.5732 | Y196: =X196/Dźwignie!$D$5 -> 17.91485732 | Z196: =V196/Dźwignie!$D$2 -> 1.20585539 | AA196: =X196/Dźwignie!$D$3 -> 1.791485732 | AB196: 1.621965126 | AC196: 1.090427737 | AD196: 1.768635762
A197: 185 | B197: 0.4198269248 | C197: =NORMINV(B197,Dźwignie!$L$8,Dźwignie!$L$9) -> 339883.1867 | D197: =Dźwignie!$L$7*C197 -> 509824.78 | F197: =C197*Dźwignie!$G$5 -> 339883.1867 | G197: 169941.5933 | H197: =Dźwignie!$G$6 -> 50000 | I197: 119941.5933 | J197: =I197-Dźwignie!$D$6 -> 99941.59333 | K197: =IF(J197>0,J197*(1-Dźwignie!$D$9),J197) -> 80952.6906 | L197: =K197/Dźwignie!$D$5 -> 8.09526906 | M197: =I197/Dźwignie!$D$2 -> 0.5997079667 | N197: =K197/Dźwignie!$D$3 -> 0.809526906 | O197: 1.416869566 | P197: 1.200116882 | Q197: 1.700409086 | S197: =C197*Dźwignie!$G$8 -> 169941.5933 | T197: 339883.1867 | U197: =Dźwignie!$G$9 -> 150000 | V197: 189883.1867 | W197: =V197-Dźwignie!$D$6 -> 169883.1867 | X197: =IF(W197>0,W197*(1-Dźwignie!$D$9),W197) -> 137605.3812 | Y197: =X197/Dźwignie!$D$5 -> 13.76053812 | Z197: =V197/Dźwignie!$D$2 -> 0.9494159333 | AA197: =X197/Dźwignie!$D$3 -> 1.376053812 | AB197: 1.789959357 | AC197: 1.117727954 | AD197: 2.00068761
A198: 186 | B198: 0.5197361708 | C198: =NORMINV(B198,Dźwignie!$L$8,Dźwignie!$L$9) -> 352474.572 | D198: =Dźwignie!$L$7*C198 -> 528711.858 | F198: =C198*Dźwignie!$G$5 -> 352474.572 | G198: 176237.286 | H198: =Dźwignie!$G$6 -> 50000 | I198: 126237.286 | J198: =I198-Dźwignie!$D$6 -> 106237.286 | K198: =IF(J198>0,J198*(1-Dźwignie!$D$9),J198) -> 86052.20167 | L198: =K198/Dźwignie!$D$5 -> 8.605220167 | M198: =I198/Dźwignie!$D$2 -> 0.63118643 | N198: =K198/Dźwignie!$D$3 -> 0.8605220167 | O198: 1.396079491 | P198: 1.188257821 | Q198: 1.658902374 | S198: =C198*Dźwignie!$G$8 -> 176237.286 | T198: 352474.572 | U198: =Dźwignie!$G$9 -> 150000 | V198: 202474.572 | W198: =V198-Dźwignie!$D$6 -> 182474.572 | X198: =IF(W198>0,W198*(1-Dźwignie!$D$9),W198) -> 147804.4033 | Y198: =X198/Dźwignie!$D$5 -> 14.78044033 | Z198: =V198/Dźwignie!$D$2 -> 1.01237286 | AA198: =X198/Dźwignie!$D$3 -> 1.478044033 | AB198: 1.740833767 | AC198: 1.109604312 | AD198: 1.931636656
A199: 187 | B199: 0.4831309915 | C199: =NORMINV(B199,Dźwignie!$L$8,Dźwignie!$L$9) -> 347885.1529 | D199: =Dźwignie!$L$7*C199 -> 521827.7293 | F199: =C199*Dźwignie!$G$5 -> 347885.1529 | G199: 173942.5764 | H199: =Dźwignie!$G$6 -> 50000 | I199: 123942.5764 | J199: =I199-Dźwignie!$D$6 -> 103942.5764 | K199: =IF(J199>0,J199*(1-Dźwignie!$D$9),J199) -> 84193.48692 | L199: =K199/Dźwignie!$D$5 -> 8.419348692 | M199: =I199/Dźwignie!$D$2 -> 0.6197128822 | N199: =K199/Dźwignie!$D$3 -> 0.8419348692 | O199: 1.403412624 | P199: 1.192413934 | Q199: 1.673448768 | S199: =C199*Dźwignie!$G$8 -> 173942.5764 | T199: 347885.1529 | U199: =Dźwignie!$G$9 -> 150000 | V199: 197885.1529 | W199: =V199-Dźwignie!$D$6 -> 177885.1529 | X199: =IF(W199>0,W199*(1-Dźwignie!$D$9),W199) -> 144086.9738 | Y199: =X199/Dźwignie!$D$5 -> 14.40869738 | Z199: =V199/Dźwignie!$D$2 -> 0.9894257645 | AA199: =X199/Dźwignie!$D$3 -> 1.440869738 | AB199: 1.758015434 | AC199: 1.112432093 | AD199: 1.955672788
A200: 188 | B200: 0.2410788536 | C200: =NORMINV(B200,Dźwignie!$L$8,Dźwignie!$L$9) -> 314858.1798 | D200: =Dźwignie!$L$7*C200 -> 472287.2697 | F200: =C200*Dźwignie!$G$5 -> 314858.1798 | G200: 157429.0899 | H200: =Dźwignie!$G$6 -> 50000 | I200: 107429.0899 | J200: =I200-Dźwignie!$D$6 -> 87429.08989 | K200: =IF(J200>0,J200*(1-Dźwignie!$D$9),J200) -> 70817.56281 | L200: =K200/Dźwignie!$D$5 -> 7.081756281 | M200: =I200/Dźwignie!$D$2 -> 0.5371454494 | N200: =K200/Dźwignie!$D$3 -> 0.7081756281 | O200: 1.465423286 | P200: 1.228756813 | Q200: 1.800648847 | S200: =C200*Dźwignie!$G$8 -> 157429.0899 | T200: 314858.1798 | U200: =Dźwignie!$G$9 -> 150000 | V200: 164858.1798 | W200: =V200-Dźwignie!$D$6 -> 144858.1798 | X200: =IF(W200>0,W200*(1-Dźwignie!$D$9),W200) -> 117335.1256 | Y200: =X200/Dźwignie!$D$5 -> 11.73351256 | Z200: =V200/Dźwignie!$D$2 -> 0.8242908989 | AA200: =X200/Dźwignie!$D$3 -> 1.173351256 | AB200: 1.90987296 | AC200: 1.138066073 | AD200: 2.173561619
A201: 189 | B201: 0.7103382945 | C201: =NORMINV(B201,Dźwignie!$L$8,Dźwignie!$L$9) -> 377718.6638 | D201: =Dźwignie!$L$7*C201 -> 566577.9957 | F201: =C201*Dźwignie!$G$5 -> 377718.6638 | G201: 188859.3319 | H201: =Dźwignie!$G$6 -> 50000 | I201: 138859.3319 | J201: =I201-Dźwignie!$D$6 -> 118859.3319 | K201: =IF(J201>0,J201*(1-Dźwignie!$D$9),J201) -> 96276.05885 | L201: =K201/Dźwignie!$D$5 -> 9.627605885 | M201: =I201/Dźwignie!$D$2 -> 0.6942966596 | N201: =K201/Dźwignie!$D$3 -> 0.9627605885 | O201: 1.360076628 | P201: 1.168266132 | Q201: 1.588931461 | S201: =C201*Dźwignie!$G$8 -> 188859.3319 | T201: 377718.6638 | U201: =Dźwignie!$G$9 -> 150000 | V201: 227718.6638 | W201: =V201-Dźwignie!$D$6 -> 207718.6638 | X201: =IF(W201>0,W201*(1-Dźwignie!$D$9),W201) -> 168252.1177 | Y201: =X201/Dźwignie!$D$5 -> 16.82521177 | Z201: =V201/Dźwignie!$D$2 -> 1.138593319 | AA201: =X201/Dźwignie!$D$3 -> 1.682521177 | AB201: 1.658707536 | AC201: 1.096284078 | AD201: 1.818414662
A202: 190 | B202: 0.01075088978 | C202: =NORMINV(B202,Dźwignie!$L$8,Dźwignie!$L$9) -> 235047.2176 | D202: =Dźwignie!$L$7*C202 -> 352570.8264 | F202: =C202*Dźwignie!$G$5 -> 235047.2176 | G202: 117523.6088 | H202: =Dźwignie!$G$6 -> 50000 | I202: 67523.60879 | J202: =I202-Dźwignie!$D$6 -> 47523.60879 | K202: =IF(J202>0,J202*(1-Dźwignie!$D$9),J202) -> 38494.12312 | L202: =K202/Dźwignie!$D$5 -> 3.849412312 | M202: =I202/Dźwignie!$D$2 -> 0.337618044 | N202: =K202/Dźwignie!$D$3 -> 0.3849412312 | O202: 1.74048175 | P202: 1.420843461 | Q202: 2.472952113 | S202: =C202*Dźwignie!$G$8 -> 117523.6088 | T202: 235047.2176 | U202: =Dźwignie!$G$9 -> 150000 | V202: 85047.21759 | W202: =V202-Dźwignie!$D$6 -> 65047.21759 | X202: =IF(W202>0,W202*(1-Dźwignie!$D$9),W202) -> 52688.24625 | Y202: =X202/Dźwignie!$D$5 -> 5.268824625 | Z202: =V202/Dźwignie!$D$2 -> 0.4252360879 | AA202: =X202/Dźwignie!$D$3 -> 0.5268824625 | AB202: 2.763726131 | AC202: 1.307468955 | AD202: 3.613486115
A203: 191 | B203: 0.1724403501 | C203: =NORMINV(B203,Dźwignie!$L$8,Dźwignie!$L$9) -> 302771.7204 | D203: =Dźwignie!$L$7*C203 -> 454157.5806 | F203: =C203*Dźwignie!$G$5 -> 302771.7204 | G203: 151385.8602 | H203: =Dźwignie!$G$6 -> 50000 | I203: 101385.8602 | J203: =I203-Dźwignie!$D$6 -> 81385.86019 | K203: =IF(J203>0,J203*(1-Dźwignie!$D$9),J203) -> 65922.54675 | L203: =K203/Dźwignie!$D$5 -> 6.592254675 | M203: =I203/Dźwignie!$D$2 -> 0.506929301 | N203: =K203/Dźwignie!$D$3 -> 0.6592254675 | O203: 1.493165417 | P203: 1.245742933 | Q203: 1.860100266 | S203: =C203*Dźwignie!$G$8 -> 151385.8602 | T203: 302771.7204 | U203: =Dźwignie!$G$9 -> 150000 | V203: 152771.7204 | W203: =V203-Dźwignie!$D$6 -> 132771.7204 | X203: =IF(W203>0,W203*(1-Dźwignie!$D$9),W203) -> 107545.0935 | Y203: =X203/Dźwignie!$D$5 -> 10.75450935 | Z203: =V203/Dźwignie!$D$2 -> 0.7638586019 | AA203: =X203/Dźwignie!$D$3 -> 1.075450935 | AB203: 1.981857111 | AC203: 1.150634487 | AD203: 2.28039314
A204: 192 | B204: 0.9360902309 | C204: =NORMINV(B204,Dźwignie!$L$8,Dźwignie!$L$9) -> 426137.8447 | D204: =Dźwignie!$L$7*C204 -> 639206.767 | F204: =C204*Dźwignie!$G$5 -> 426137.8447 | G204: 213068.9223 | H204: =Dźwignie!$G$6 -> 50000 | I204: 163068.9223 | J204: =I204-Dźwignie!$D$6 -> 143068.9223 | K204: =IF(J204>0,J204*(1-Dźwignie!$D$9),J204) -> 115885.8271 | L204: =K204/Dźwignie!$D$5 -> 11.58858271 | M204: =I204/Dźwignie!$D$2 -> 0.8153446117 | N204: =K204/Dźwignie!$D$3 -> 1.158858271 | O204: 1.306618817 | P204: 1.139792763 | Q204: 1.489274672 | S204: =C204*Dźwignie!$G$8 -> 213068.9223 | T204: 426137.8447 | U204: =Dźwignie!$G$9 -> 150000 | V204: 276137.8447 | W204: =V204-Dźwignie!$D$6 -> 256137.8447 | X204: =IF(W204>0,W204*(1-Dźwignie!$D$9),W204) -> 207471.6542 | Y204: =X204/Dźwignie!$D$5 -> 20.74716542 | Z204: =V204/Dźwignie!$D$2 -> 1.380689223 | AA204: =X204/Dźwignie!$D$3 -> 2.074716542 | AB204: 1.543206963 | AC204: 1.078082956 | AD204: 1.663705124
... 808 more rows
